Workbook

Sheet CSE Stipend Pmt Sep - 18 (hidden)
E2: Stipend Payment for SEP/ 2018
A6: Ref. HBKU/CSE/Stipend/XXX
A7: To: Accounts Payable Manager / QF-Finance
A8: CC: Executive Director / QF-Finance
A9: CC: Chief Financial Officer / HBKU-Finance
A10: Date: 01/08/2018
A12: Please arrange for the payment of QR 577,000/- stipend to the following students receiving scholarships via bank transfer to their respective below bank accounts. The HBKU account to be charged is HU.BA.856.725011
A14: # | B14: QID Student Name | C14: Banner Student Name | D14: Banner ID | E14: Qatar ID | F14: Admittance Year | G14: Citizenship | H14: College | I14: Program | J14: Amount | K14: IBAN | L14: Bank Name | M14: Swift Code | N14: Status Check | O14: Further Notes
A15: 1 | B15: Ahmad Najjar | C15: Ahmad Najjar | D15: 210003922 | E15: 28382600193 | F15: 2015-16 | G15: United Kingdom | H15: CSE | I15: Biomedical &Biological Science | J15: 9000 | K15: QA39 QISB 0115 4313 0060 2001 3037 1 | L15: Qatar Islamic Bank (QIB) | M15: 0 | N15: Active | O15: 0
A16: 2 | B16: Ahmed Sodiq | C16: Ahmed Sodiq | D16: 210003956 | E16: 28556600717 | F16: 2015-16 | G16: Nigeria | H16: CSE | J16: 9000 | K16: QA02 QNBA 0000 0000 0035 3751 7204 3 | L16: QNB | M16: 0 | N16: Active | O16: 0
A17: 3 | B17: Ahmer Balouch | C17: Ahmer Ali Bozdar Baloch | D17: 210003976 | E17: 28858604890 | F17: 2015-16 | G17: Pakistan | H17: CSE | I17: Sustainable Energy | J17: 9000 | K17: QA94 QNBA 0000 0000 0035 3879 7904 3 | L17: QNB | M17: 0 | N17: Active | O17: 0
A18: 4 | B18: Faisal Mumtaz | C18: Faisal Ahmed Mumtaz | D18: 210003977 | E18: 29058603829 | F18: 2015-16 | G18: Pakistan | H18: CSE | I18: Sustainable Energy | J18: 9000 | K18: QA14 QNBA 0000 0000 0035 3757 0804 3 | L18: QNB - Qatar Foundation | M18: QNBAQAQA | N18: Active | O18: 0
A19: 5 | B19: Hajar Farzaneh | C19: Hajar Ali Hussain Farzaneh | D19: 210003974 | E19: 28736400101 | F19: 2015-16 | G19: Iran (Islamic Republic Of) | H19: CSE | I19: Sustainable Environment | J19: 9000 | K19: QA34 QNBA 0000 0000 0027 3352 6904 3 | L19: QNB | M19: 0 | N19: Active | O19: 0
A20: 6 | B20: Ibrahim Ari | C20: Ibrahim Ari | D20: 210003961 | E20: 28379201466 | F20: 2015-16 | G20: Turkey | H20: CSE | I20: Sustainable Energy | J20: 9000 | K20: QA84 QNBA 0000 0000 0035 3736 2904 3 | L20: QNB - Qatar Foundation | M20: QNBAQAQA | N20: Active | O20: 0
A21: 7 | B21: Irfan Batur | C21: Irfan Batur | D21: 210003962 | E21: 28879200783 | F21: 2015-16 | G21: Turkey | H21: CSE | I21: Sustainable Energy | J21: 9000 | K21: QA40 QNBA 0000 0000 0035 3751 8804 3 | L21: QNB - Qatar Foundation | M21: QNBAQAQA | N21: Active | O21: 0
A22: 8 | B22: Mohamed Alhaj | C22: Mohamed Atta Elmanan Bakhit Alhaj | D22: 210003978 | E22: 29073601675 | F22: 2015-16 | G22: Sudan | H22: CSE | I22: Sustainable Energy | J22: 9000 | K22: QA78 QISB 0000 0000 0150 4583 6001 0 | L22: Qatar Islamic Bank QIB | M22: 0 | N22: Active | O22: 0
A23: 9 | B23: Nurettin Sezer | C23: Nurettin Sezer | D23: 210003979 | E23: 28779200915 | F23: 2015-16 | G23: Turkey | H23: CSE | I23: Sustainable Energy | J23: 9000 | K23: QA21 QNBA 0000 0000 0035 3736 2804 3 | L23: QNB - Qatar Foundation | M23: QNBAQAQA | N23: Active | O23: 0
A24: 10 | B24: Raghavendran Sivasubramanian | C24: Raghavendran Sivasubramanian | D24: 210003985 | E24: 29135605490 | F24: 2015-16 | G24: India | H24: CSE | I24: Sustainable Environment | J24: 9000 | K24: QA07 QNBA 0000 0000 0035 2472 0800 1 | L24: QNB - Qatar Foundation | N24: Active | O24: 0
A25: 12 | B25: Shahzada Pamir Aly | C25: Shahzada Pamir Aly | D25: 210003963 | E25: 28858604676 | F25: 2015-16 | G25: Pakistan | H25: CSE | I25: Sustainable Energy | J25: 9000 | K25: QA72 QNBA 0000 0000 0035 3757 1204 3 | L25: QNB | M25: QNBAQAQA | N25: Active | O25: 0
A26: 13 | B26: Shoukat Khan | C26: Shoukat Alim Khan | D26: 210003980 | E26: 28758604809 | F26: 2015-16 | G26: Pakistan | H26: CSE | I26: Sustainable Energy | J26: 9000 | K26: QA43 QNBA 0000 0000 0035 3757 1004 3 | L26: QNB - Qatar Foundation | M26: QNBAQAQA | N26: Active | O26: 0
A27: 14 | B27: Tejvir Singh | C27: Tejvir Singh | D27: 210003987 | E27: 28935629006 | F27: 2015-16 | G27: India | H27: CSE | I27: Sustainable Energy | J27: 9000 | K27: QA13 QNBA 0000 0000 0230 3767 6804 3 | L27: QNB - Qatar Foundation | M27: 0 | N27: Active | O27: 0
A28: 15 | B28: Waqas Nawaz | C28: Waqas Nawaz | D28: 210003960 | E28: 28558603712 | F28: 2015-16 | G28: Pakistan | H28: CSE | I28: Sustainable Energy | J28: 9000 | K28: QA72 QNBA 0000 0000 0035 2471 6900 1 | L28: QNB - Qatar Foundation | M28: QNBAQAQAXXX | N28: Active | O28: 0
A29: 16 | B29: Abdulghani Khilan | C29: Abdulghani Khilan | D29: 210004371 | E29: 28476001451 | F29: 2016-17 | G29: Syrian Arab Republic | H29: CSE | I29: Biomedical &Biological Science | J29: 9000 | K29: QA59 QNBA 0000 0000 0035 4116 6804 3 | L29: QNB - Qatar Foundation | M29: QNBAQAQA | N29: Active | O29: 0
A30: 17 | B30: Abdurrahman Mohamed Elbasir | C30: Abdurrahman Elbasir | D30: 210005228 | E30: 28143400039 | F30: 2016-17 | G30: Liberia | H30: CSE | I30: Computer Science & Engineering | J30: 9000 | K30: QA02 QNBA 0000 0000 0035 4094 1304 3 | L30: QNB | N30: Active | O30: 0
A31: 18 | B31: Arwa Aldaalis | C31: Arwa A.H. Aldaalis | D31: 210004571 | E31: 28540000086 | F31: 2016-17 | G31: Palestinian Territory, Occupie | H31: CSE | I31: Biomedical &Biological Science | J31: 9000 | K31: QA68 QISB 0109 4889 0110 1001 7190 7 | L31: Qatar Islamic Bank | N31: Active | O31: 0
A32: 19 | B32: Athar Kamal | C32: Athar Kamal | D32: 210004773 | E32: 28958604525 | F32: 2016-17 | G32: Pakistan | H32: CSE | I32: Sustainable Energy | J32: 9000 | K32: QA56 QNBA 0000 0000 0035 4114 3704 3 | L32: QNB | M32: 0 | N32: Active | O32: 0
A33: 20 | B33: Atiq ur Rehman | C33: Atiq Ur Rehman | D33: 210004909 | E33: 28958604524 | F33: 2016-17 | G33: Pakistan | H33: CSE | I33: Computer Science & Engineering | J33: 9000 | K33: QA37 QNBA 0000 0000 0035 4114 2904 3 | L33: QNB | M33: 0 | N33: Active | O33: 0
A34: 21 | B34: AEIT SAMIR | C34: Ayat Samir Mah'd Hammad | D34: 210005086 | E34: 29040000311 | F34: 2016-17 | G34: Jordan | H34: CSE | I34: Biomedical &Biological Science | J34: 9000 | K34: QA76 MAFR 0000 0000 0006 5113 0800 1 | L34: Masraf Al Rayan | N34: Active | O34: 0
A35: 22 | B35: Bilikis Oluwatoyin Banire | C35: Bilikis Oluwatoyin Banire | D35: 210004884 | E35: 28256600748 | F35: 2016-17 | G35: Nigeria | H35: CSE | I35: Computer Science & Engineering | J35: 9000 | K35: QA38 QNBA 0000 0000 0035 4123 7904 3 | L35: QNB | M35: 0 | N35: Active | O35: 0
A36: 23 | B36: Bushra Memon | C36: Bushra Memon | D36: 210004495 | E36: 29435601629 | F36: 2016-17 | G36: India | H36: CSE | J36: 7500 | K36: QA36 QISB 0121 2645 0020 2001 6259 1 | L36: Qatar Islamic Bank (QIB) | M36: 0 | N36: Graduated | O36: Accepted to PhD
A37: 24 | B37: Drishya George | C37: Drishya Maria George | D37: 210004492 | E37: 28935629152 | F37: 2016-17 | G37: India | H37: CSE | I37: Biomedical &Biological Science | J37: 9000 | K37: QA14 CBQA 0000 0000 4610 5195 8710 1 | L37: Commercial Bank of Qatar | N37: Active | O37: 0
A38: 25 | B38: Furqan Tahir | C38: Furqan Tahir | D38: 210004792 | E38: 28958604620 | F38: 2016-17 | G38: Pakistan | H38: CSE | I38: Sustainable Energy | J38: 9000 | K38: QA15 QNBA 0000 0000 0035 4132 2704 3 | L38: QNB | M38: 0 | N38: Active | O38: 0
A39: 26 | B39: Ghadeer Abuoda | C39: Ghadeer Said AbuOda | D39: 210005378 | E39: 28399900515 | F39: 2016-17 | G39: Palestinian Territory, Occupie | H39: CSE | I39: Computer Science & Engineering | J39: 9000 | K39: QA11 QNBA 0000 0000 0035 4157 3204 3 | L39: QNB | N39: Active | O39: 0
A40: 27 | B40: Heba Yasin | C40: Heba Rashid Yasin | D40: 210005072 | E40: 28955400010 | F40: 2016-17 | G40: New Zealand | H40: CSE | J40: 7500 | K40: QA30 QISB 0000 0000 0112 0565 8001 8 | L40: Qatar Islamic Bank | N40: Graduated | O40: Previously applied for extension of scholarship. This case was approved to the end of summer due to changes in advisor and lab access limitations.
A41: 28 | B41: Hend Kamal Gedawy | C41: Hend Kamal Gedawy | D41: 210005166 | E41: 28681800007 | F41: 2016-17 | G41: Egypt | H41: CSE | I41: Computer Science & Engineering | J41: 9000 | K41: QA57 QISB 0000 0000 0151 3988 1001 7 | L41: Qatar Islamic Bank | M41: 0 | N41: Active | O41: 0
A42: 29 | B42: Karim Shalaby | C42: Karim Esmat Shalaby | D42: 210004449 | E42: 29081800115 | F42: 2016-17 | G42: Egypt | H42: CSE | I42: Biomedical &Biological Science | J42: 7500 | K42: QA03 QIIB 0000 0000 2225 0442 2000 1 | L42: Qatar International Islamic Bank | N42: Graduated | O42: New Admission letter to PhD offered. Stipend to continue throughout summer unless offer not accepted.
A43: 30 | B43: Kholoud Khalil Aldous | C43: Kholoud Khalil Aldous | D43: 210004903 | E43: 28899900457 | F43: 2016-17 | G43: Palestinian Territory, Occupie | H43: CSE | I43: Computer Science & Engineering | J43: 9000 | K43: QA41 QNBA 0000 0000 0225 4015 4500 1 | L43: QNB | M43: 0 | N43: Active | O43: 0
A44: 31 | B44: Mehzabeen Mannan | C44: Mehzabeen Mannan | D44: 210004673 | E44: 28905006966 | F44: 2016-17 | G44: Bangladesh | H44: CSE | I44: Sustainable Environment | J44: 7500 | K44: QA57 QNBA 0000 0000 0035 4123 8704 3 | L44: QNB | M44: 0 | N44: Graduated | O44: New Admission letter to PhD offered. Stipend to continue throughout summer unless offer not accepted.
A45: 32 | B45: Nagla Mohamed | C45: Nagla Kamal Mohamed | D45: 210004975 | E45: 27484000461 | F45: 2016-17 | G45: United States | H45: CSE | I45: Sustainable Environment | J45: 9000 | K45: QA44 QISB 0000 0000 0112 1507 2001 2 | L45: QIB | N45: Active | O45: 0
A46: 33 | B46: Rand ElShorafa | C46: Rand Essam ElShorafa | D46: 210004759 | E46: 28899900169 | F46: 2016-17 | G46: Palestinian Territory, Occupie | H46: CSE | I46: Sustainable Environment | J46: 9000 | K46: QA40 QNBA 0000 0000 0224 4131 5304 3 | L46: QNB | N46: Active | O46: 0
A47: 34 | B47: Safae Sali | C47: Safae Sali | D47: 210004971 | E47: 29350400478 | F47: 2016-17 | G47: Morocco | H47: CSE | I47: Sustainable Environment | J47: 7500 | K47: QA17 QNBA 0000 0000 0035 4095 9804 3 | L47: QNB | M47: 0 | N47: Graduated | O47: New Admission letter to PhD offered. Stipend to continue throughout summer unless offer not accepted. May be dependent on GRE submission.
A48: 35 | B48: Sara Ahmad | C48: Sara Ahmad | D48: 210004790 | E48: 29140000549 | F48: 2016-17 | G48: Jordan | H48: CSE | I48: Sustainable Energy | J48: 9000 | K48: QA19 QIIB 0000 0000 2222 4900 4520 1 | L48: Qatar International Islamic Bank | N48: Active | O48: 0
A49: 36 | B49: Tahir Abdul Rehman | C49: TAHIR ABDULREHMAN | D49: 210005791 | E49: 28235654617 | F49: 2016-17 | G49: India | H49: CSE | I49: Biomedical &Biological Science | J49: 9000 | K49: QA43 MAFR 0000 0000 0006 5343 7500 1 | L49: Masraf Al Rayan | N49: Active | O49: 0
A50: 37 | B50: Tsz Ngai Lin | C50: Tsz Ngai Lin | D50: 210005563 | E50: 29115600557 | F50: 2016-17 | G50: China | H50: CSE | I50: Computer Science & Engineering | J50: 9000 | K50: QA06 QNBA 0000 0000 0035 4225 2504 3 | L50: QNB | M50: 0 | N50: Active | O50: 0
A51: 38 | B51: Yasmeen Salameh | C51: Yasmeen Mahmoud Salameh | D51: 210004429 | E51: 28540000288 | F51: 2016-17 | G51: Jordan | H51: CSE | I51: Genomics & Precision Medicine | J51: 7500 | K51: QA60 QIIB 0000 0000 6646 5657 1720 1 | L51: Qatar International Islamic Bank | N51: Graduated | O51: New Admission letter to PhD offered. Stipend to continue throughout summer unless offer not accepted.
A52: 39 | B52: Amal Abdelmageed | C52: Amal Elfatih Abdelmageed | D52: 210008027 | E52: 29073601478 | F52: 2017-18 | G52: Sudan | H52: CSE | I52: Genomics & Precision Medicine | J52: 7000 | K52: QA67QNBA000000000060617928043 | L52: QNB | N52: Active | O52: 0
A53: 40 | B53: Areej Mesleh | C53: Areej Mesleh | D53: 210006692 | E53: 29540000179 | F53: 2017-18 | G53: Jordan | H53: CSE | I53: Genomics &Precision Medicine | J53: 5000 | K53: QA25 QNBA 0000 0000 0224 3201 3904 3 | L53: QNB | M53: QNBAQAQAXXX | N53: Active | O53: 0
A54: 41 | B54: Asma Elashi | C54: Asma Elashi | D54: 210006493 | E54: 29573600364 | F54: 2017-18 | G54: Palestinian Territory, Occupie | H54: CSE | I54: Biological &Biomedical Science | J54: 5000 | K54: QA07 ABQQ 0000 0000 0007 3406 9550 1 | L54: Ahli Bank | M54: ABQQQAQA | N54: Active | O54: 0
A55: 42 | B55: Edin Salkovic | C55: Edin Salkovic | D55: 210005898 | E55: 28349900003 | F55: 2017-18 | G55: Yugoslavia | H55: CSE | I55: Computer Science & Engineering | J55: 7000 | K55: QA49 QNBA 0000 0000 0035 4407 7404 3 | L55: QNB | M55: QNBAQAQA | N55: Active | O55: 0
A56: 43 | B56: Eman Wehedy Elsayed Abdelsalam | C56: Eman Wehedy Elsayed Abdelsalam | D56: 210007495 | E56: 28781809491 | F56: 2017-18 | G56: Egypt | H56: CSE | I56: Genomics & Precision Medicine | J56: 7000 | K56: QA06 QIIB 0000 0000 2007 1139 3020 1 | L56: Qatar international Islamic bank | M56: QIIBQAQA | N56: Active | O56: 0
A57: 44 | B57: Eman Aldous | C57: Eman Khaleel Rashied Aldous | D57: 210003921 | E57: 28499900173 | F57: 2017-18 | G57: Palestinian Territory, Occupie | H57: CSE | I57: Biomedical &Biological Science | J57: 7000 | K57: QA10 QISB 0000 0000 0110 9548 5001 3 | L57: Qatar Islamic Bank (QIB) | M57: QISBQAQA | N57: Active | O57: 0
A58: 45 | B58: Faran Farooq | C58: Faran Farooq | D58: 210008040 | E58: 29458601672 | F58: 2017-18 | G58: Pakistan | H58: CSE | J58: 5000 | K58: QA41 QNBA 0000 0000 0035 2820 4804 3 | L58: QNB | M58: QNBAQAQAXXX | N58: Active | O58: 0
A59: 46 | B59: Ghada Mohammed Yousif | C59: Ghada Yousif Mohammed Yousif | D59: 210008063 | E59: 28673602007 | F59: 2017-18 | G59: Sudan | H59: CSE | I59: Genomics & Precision Medicine | J59: 7000 | K59: QA54 QNBA 0000 0000 0035 4422 2604 3 | L59: QNB | M59: QNBAQAQA | N59: Active | O59: 0
A60: 47 | B60: Haile Tecle Woldesellasse | C60: Haile Tecle Woldesellasse | D60: 210006020 | E60: 29008000470 | F60: 2017-18 | G60: Eritrea | H60: CSE | J60: 7000 | K60: QA95 QNBA 0000 0000 0035 4418 9104 3 | L60: QNB | M60: QNBAQAQAXXX | N60: Active | O60: 0
A61: 48 | B61: Iman Hawari | C61: Iman Hawari | D61: 210007507 | E61: 28776002527 | F61: 2017-18 | G61: Syrian Arab Republic | H61: CSE | I61: Genomics & Precision Medicine | J61: 7000 | K61: QA28 QNBA 0000 0000 0035 4444 9204 3 | L61: QNB | M61: QNBAQAQAXXX | N61: Active | O61: 0
A62: 49 | B62: Ismail Walid Khalil Almanassra | C62: Ismail Walid Khalil Almanassra | D62: 210007734 | E62: 0 | F62: 2017-18 | G62: Jordan | H62: CSE | I62: Sustainable Environment | J62: 7000 | K62: QA72 QNBA 0000 0000 0035 4434 1804 3 | L62: QNB | M62: QNBAQAQAXXX | N62: Active | O62: 0
A63: 50 | B63: Isra Mohamed Ali | C63: Isra Mohamed Ali | D63: 210008037 | E63: 0 | F63: 2017-18 | G63: Libyan Arab Jamahiriya | H63: CSE | I63: Cybersecurity | J63: 5000 | K63: QA21 QNBA 0000 0000 0060 4446 3604 3 | L63: QNB | M63: QNBAQAQAXXX | N63: Active | O63: 0
A64: 51 | B64: Israa Elbashir | C64: Israa Elbashir | D64: 210007817 | E64: 29473600123 | F64: 2017-18 | G64: Sudan | H64: CSE | I64: Genomics &Precision Medicine | J64: 5000 | K64: QA36 MAFR 0000 0000 0006 5143 3900 1 | L64: Masraf Al Rayan | M64: MAFRQAQAXXX | N64: Active | O64: 0
A65: 52 | B65: Kholoud Bastaki | C65: Kholoud Bastaki | D65: 210008183 | E65: 0 | F65: 2017-18 | G65: Qatar | H65: CSE | I65: Genomics & Precision Medicine | J65: 7000 | K65: QA55 QNBA 0000 0000 0171 3767 4504 3 | L65: QNB | M65: QNBAQAQAXXX | N65: Active | O65: 0
A66: 53 | B66: Kripa Subhadra Keyan | C66: Kripa Subhadra Keyan | D66: 210008078 | E66: 0 | F66: 2017-18 | G66: India | H66: CSE | I66: Genomics & Precision Medicine | J66: 7000 | K66: QA86 QNBA 0000 0000 0035 4435 2604 3 | L66: QNB | M66: QNBAQAQA | N66: Active | O66: 0
A67: 54 | B67: Lubna Eliyan | C67: Lubna Eliyan | D67: 210008044 | E67: 29040000572 | F67: 2017-18 | G67: Jordan | H67: CSE | I67: Computer Science & Engineering | J67: 7000 | K67: QA65 MAFR 0000 0000 0006 4964 8010 0 | L67: Masraf Al Rayan | M67: MAFRQAQAXXX | N67: Active | O67: 0
A68: 55 | B68: Maurantonio Caprolu | C68: Maurantonio Caprolu | D68: 210007311 | E68: 28638000114 | F68: 2017-18 | G68: Italy | H68: CSE | I68: Computer Science & Engineering | J68: 7000 | K68: QA57 QNBA 0000 0000 0035 4434 2704 3 | L68: QNB | M68: QNBAQAQA | N68: Active | O68: 0
A69: 56 | B69: Md Shafiqul Islam | C69: Md Shafiqul Islam | D69: 210006054 | E69: 28805030323 | F69: 2017-18 | G69: Bangladesh | H69: CSE | I69: Computer Science & Engineering | J69: 7000 | K69: QA04 QNBA 0000 0000 0035 4411 8904 3 | L69: QNB | M69: QNBAQAQA | N69: Active | O69: 0
A70: 57 | B70: Mounira Walid Jamil Fayyad | C70: Mounira Walid Jamil Fayyad | D70: 210003920 | E70: 29440000251 | F70: 2017-18 | G70: Jordan | H70: CSE | I70: Biomedical &Biological Science | J70: 7000 | K70: QA23 QNBA 0000 0000 0035 3753 3404 3 | L70: QNB | M70: QNBAQAQAXXX | N70: Active | O70: 0
A71: 58 | B71: Naela Mahmoud | C71: Naela Mahmoud | D71: 210007239 | E71: 28673600922 | F71: 2017-18 | G71: Sudan | H71: CSE | I71: Genomics &Precision Medicine | J71: 5000 | K71: QA40 DOHB 0220 0340 1790 0100 1000 0 | L71: Doha Bank | M71: DOHBQAQA | N71: Active | O71: 0
A72: 59 | B72: Omar Adel Ibrahim | C72: Omar Adel Ibrahim | D72: 210007516 | E72: 28881800414 | F72: 2017-18 | G72: Egypt | H72: CSE | I72: Cybersecurity | J72: 5000 | K72: QA74 MAFR 0000 0000 0006 5324 8110 0 | L72: Masraf Al Rayan | M72: MAFRQAQAXXX | N72: Active | O72: 0
A73: 60 | B73: Reem Subhi Mohammad Al-Disi | C73: Reem Subhi Mohammad Al Disi | D73: 210007651 | E73: 29140000269 | F73: 2017-18 | G73: Jordan | H73: CSE | I73: Genomics & Precision Medicine | J73: 7000 | K73: QA03 MAFR 0000 0000 0006 5141 2600 1 | L73: Masraf Al Rayan | M73: MAFRQAQAXXX | N73: Active | O73: 0
A74: 61 | B74: Rim Abdul Kader Mousa Bacha | C74: Rim Abdul Kader Mousa Bacha | D74: 210007511 | E74: 29476000237 | F74: 2017-18 | G74: Syrian Arab Republic | H74: CSE | I74: Biological &Biomedical Science | J74: 5000 | K74: QA82 QIIB 0000 0000 4442 0487 0220 1 | L74: Qatar Islamic International Bank | M74: QIIBQAQA | N74: Active | O74: 0
A75: 62 | B75: Sabah Mariyam | C75: Sabah Mariyam | D75: 210006683 | E75: 29535600084 | F75: 2017-18 | G75: India | H75: CSE | I75: Sustainable Energy | J75: 5000 | K75: QA49 QNBA 0000 0000 0171 4130 4604 3 | L75: QNB | M75: QNBAQAQAXXX | N75: Active | O75: 0
A76: 63 | B76: Safa Salim | C76: Safa Salim | D76: 210007333 | E76: 29435600335 | F76: 2017-18 | G76: India | H76: CSE | I76: Biological &Biomedical Scs | J76: 5000 | K76: QA93 DOHB 0211 0204 9800 0100 2000 0 | L76: Doha Bank | M76: DOHBQAQAWBB | N76: Active | O76: 0
A77: 64 | B77: Samar Elkhalifa | C77: Samar Elkhalifa | D77: 210007211 | E77: 28973600083 | F77: 2017-18 | G77: Sudan | H77: CSE | I77: Sustainable Environment | J77: 7000 | K77: QA83 QISB 0000 0000 0111 4041 1001 9 | L77: Qatar Islamic Bank (QIB) | M77: QISBQAQA | N77: Active | O77: 0
A78: 65 | B78: Sanaa Sharari | C78: Sanaa Ali Sharari | D78: 210004046 | E78: 29299900437 | F78: 2017-18 | G78: Palestinian Territory, Occupie | H78: CSE | I78: Biomedical &Biological Science | J78: 7000 | K78: QA76 QNBA 0000 0000 0035 3859 1404 3 | L78: QNB | M78: 0 | N78: Active | O78: 0
A79: 66 | B79: Sarah Namany | C79: sarah namany | D79: 210007214 | E79: 29550400325 | F79: 2017-18 | G79: Morocco | H79: CSE | I79: Sustainable Energy | J79: 5000 | K79: QA47 QNBA 0000 0000 0035 4408 1404 3 | L79: QNB | M79: QNBAQAQAXXX | N79: Active | O79: 0
A80: 67 | B80: Sarmadia Ashraf | C80: Sarmadia Ashraf | D80: 210008026 | E80: 27635644330 | F80: 2017-18 | G80: India | H80: CSE | I80: Genomics & Precision Medicine | J80: 7000 | K80: QA73 QIIB 0000 0000 2007 1267 5220 1 | L80: Qatar Islamic International Bank | M80: QIIBQAQA | N80: Active | O80: 0
A81: 68 | B81: Shifa Zuhara | C81: Shifa Zuhara | D81: 210007317 | E81: 29535600083 | F81: 2017-18 | G81: India | H81: CSE | I81: Sustainable Environment | J81: 5000 | K81: QA83 QNBA 0000 0000 0171 4130 4504 3 | L81: QNB | M81: QNBAQAQAXXX | N81: Active | O81: 0
A82: 69 | B82: Sura Takiddin | C82: Sura Takiddin | D82: 210007524 | E82: 28876000059 | F82: 2017-18 | G82: Syrian Arab Republic | H82: CSE | I82: Cybersecurity | J82: 5000 | K82: QA02 QISB 0000 0000 0102 8448 3002 2 | L82: QIB | M82: QISBQAQA | N82: Active | O82: 0
A83: 70 | B83: Syed Hassan Mehdi | C83: Syed Hassan Mehdi | D83: 210007878 | E83: 29458601621 | F83: 2017-18 | G83: Pakistan | H83: CSE | J83: 5000 | K83: QA23 QNBA 0000 0000 0035 2837 6604 3 | L83: QNB | M83: QNBAQAQA | N83: Active | O83: 0
A84: 71 | B84: Zeenath Safira | C84: Zeenath Safira | D84: 210008076 | E84: 28735600078 | F84: 2017-18 | G84: India | H84: CSE | I84: Genomics & Precision Medicine | J84: 7000 | K84: QA89 QNBA 0000 0000 0060 2191 0904 3 | L84: QNB, city Centre branch | M84: QNBAQAQA | N84: Active | O84: 0
A85: 72 | B85: Ummkulthum Ismail Umlai | C85: Umm-Kulthum Ismail Umlai | D85: 210004499 | E85: 29540400002 | F85: 2017-18 | G85: Kenya | H85: CSE | I85: Genomics & Precision Medicine | J85: 7000 | K85: QA70 QNBA 0000 0000 0035 7104 9904 3 | L85: Qatar National Bank | M85: 0 | N85: Active | O85: 0
A86: 73 | B86: Muhammad Ijaz | C86: Muhammad Ijaz | D86: 210007562 | E86: 0 | F86: 2017-18 | G86: Pakistan | H86: CSE | I86: Computer Science & Engineering | J86: 7000 | K86: QA51QNBA000000000035548307043 | L86: QNB | M86: 0 | N86: Active | O86: 0
A87: 74 | B87: Muhammad Luqman | C87: Muhammad Luqman | D87: 210007571 | E87: 0 | F87: 2017-18 | G87: Pakistan | H87: CSE | I87: Sustainable Energy | J87: 7000 | K87: QA32QNBA000000000035548766001 | L87: QNB | M87: 0 | N87: Active | O87: 0
A88: 75 | B88: Simone Raponi | C88: Simone Raponi | D88: 210008268 | E88: 0 | F88: 2017-18 | G88: Italy | H88: CSE | I88: Computer Science & Engineering | J88: 7000 | K88: QA81QNBA000000000035617741043 | L88: QNB | M88: 0 | N88: Active | O88: 0
A89: 76 | B89: Idris Omer Mohammed | C89: IDRIS OMER MOHAMMED | D89: 210007494 | E89: 28508000349 | H89: CSE | I89: Genomics &Precision Medicine | J89: 5000 | K89: QA20QIIB0000 0000 3333 0364 2920 1 | L89: QIIB | M89: QIIBQAQA | N89: Active | O89: 0
A90: 77 | B90: Lara Gamgoum | C90: Lara Hesham Gamgoum | D90: 210004898 | E90: 29481800814 | F90: 2017-18 | G90: Egypt | H90: CSE | I90: Genomics &Precision Medicine | J90: 5000 | K90: QA62 DOHB 0230 0277 0140 0100 2000 0 | L90: Doha Bank | M90: DOHBQAQA | N90: Study Abroad | O90: 0
A91: 78 | B91: Xiao Qiang | D91: 210005991 | E91: 29481800814 | F91: 2017-18 | G91: China | H91: CSE | I91: Computer Science & Engineering | J91: 7000 | K91: QA38 QNBA 0000 0000 0035 4424 4904 3 | L91: QNB | M91: QNBAQAQA | N91: Active | O91: 0
A92: 79 | B92: Nuha Swaidan | D92: 210007522 | F92: 2017-18 | G92: Jordan | H92: CSE | I92: Genomics &Precision Medicine | J92: 5000 | K92: QA21QISB000000000150951290010 | L92: Qatar Islamic Bank | N92: ? | O92: New Student not on Argos yet; scholarship agreement available
I95: QR | J95: =SUM(J15:J93) -> 577,000 | L95: Dr. Hamish Mackey

Sheet Sheet1 (hidden)
A2: QID | B2: SPRIDEN_ID | C2: SPRIDEN_FIRST_NAME | D2: SPRIDEN_MI | E2: SPRIDEN_LAST_NAME | F2: SFRSTCR_TERM_CODE | G2: ADMIT_TERM | H2: Name Full | J2: Nationality
A3: EB3088972 | B3: 210004022 | C3: Augusto | D3: Manuel | E3: Lucas | F3: 201820 | G3: 201610 | H3: =CONCATENATE(C3," ",D3," ",E3) -> Augusto Manuel Lucas | I3: EB3088972 | J3: Philippines
A4: 29743400006 | B4: 210004850 | C4: Abdulrahman | D4: Mohamed | E4: ElKelani | F4: 201820 | G4: 201710 | H4: =CONCATENATE(C4," ",D4," ",E4) -> Abdulrahman Mohamed ElKelani | I4: 29743400006 | J4: Libyan Arab Jamahiriya
B5: 210007180 | C5: Mohamed | E5: Al Mohannadi | F5: 201820 | G5: 201810 | H5: Mohamed Al Mohannadi | J5: Qatar
A6: 29863401677 | B6: 210004028 | C6: Mohamed | D6: Ahmed | E6: Al-horr | F6: 201820 | G6: 201610 | H6: Mohamed Ahmed Al-horr | I6: 29863401677 | J6: Qatar
A7: 29860800243 | B7: 210004650 | C7: Johanne Gren | D7: Duhay | E7: Medina | F7: 201820 | G7: 201710 | H7: Johanne Gren Duhay Medina | I7: 29860800243 | J7: Philippines
A8: 29758601464 | B8: 210004655 | C8: Shaheer | D8: Ahmed | E8: Bakali | F8: 201820 | G8: 201710 | H8: Shaheer Ahmed Bakali | I8: 29758601464 | J8: Pakistan
A9: 29899900257 | B9: 210004732 | C9: Rania | E9: Elsharafa | F9: 201820 | G9: 201710 | H9: Rania Elsharafa | I9: 29899900257 | J9: Palestinian Territory, Occupie
B10: 210004890 | C10: Tala | D10: Basem | E10: Anabtawi | F10: 201820 | G10: 201710 | H10: Tala Basem Anabtawi | J10: United States
A11: 29981800536 | B11: 210007477 | C11: Mahmoud | D11: Mohamed | E11: ELraei | F11: 201820 | G11: 201810 | H11: Mahmoud Mohamed ELraei | I11: 29981800536 | J11: Egypt
A12: 29858601871 | B12: 210007760 | C12: Asra | D12: Saeed | E12: Bashir | F12: 201820 | G12: 201810 | H12: Asra Saeed Bashir | I12: 29858601871 | J12: Pakistan
A13: 29581802527 | B13: 210005311 | C13: Omar | D13: Elwalid | E13: Elshal | F13: 201820 | G13: 201710 | H13: Omar Elwalid Elshal | I13: 29581802527 | J13: Egypt
B14: 210007479 | C14: Ghassan | D14: Marwan | E14: Saad | F14: 201820 | G14: 201810 | H14: Ghassan Marwan Saad | J14: Palestinian Territory, Occupie
A15: 30081800701 | B15: 210007753 | C15: Shorok | E15: Ayman | F15: 201820 | G15: 201810 | H15: Shorok Ayman | I15: 30081800701 | J15: Egypt
B16: 210005246 | C16: Mohamed | E16: Amara | F16: 201820 | G16: 201710 | H16: Mohamed Amara | J16: Tunisia
A17: 29163403713 | B17: 210005479 | C17: Mohammad | D17: Ahmad | E17: Al-Sooj | F17: 201820 | G17: 201710 | H17: Mohammad Ahmad Al-Sooj | I17: 29163403713 | J17: Qatar
A18: 29805000160 | B18: 210005821 | C18: Zinia | D18: Jaha | E18: Jalal | F18: 201820 | G18: 201810 | H18: Zinia Jaha Jalal | I18: 29805000160 | J18: Bangladesh
A19: 29873600071 | B19: 210004020 | C19: Almiqdad | D19: Jamal Musa | E19: Elzein | F19: 201820 | G19: 201610 | H19: Almiqdad Jamal Musa Elzein | I19: 29873600071 | J19: Sudan
A20: 29735601200 | B20: 210004030 | C20: Safiya | E20: Jan | F20: 201820 | G20: 201610 | H20: Safiya Jan | I20: 29735601200 | J20: India
B21: 210007478 | C21: Moza | D21: Hamad | E21: Alkaabi | F21: 201820 | G21: 201810 | H21: Moza Hamad Alkaabi | J21: Qatar
A22: 29881801181 | B22: 210007960 | C22: Sara | E22: Gadelmoula | F22: 201820 | G22: 201810 | H22: Sara Gadelmoula | I22: 29881801181 | J22: Egypt
A23: 29663402112 | B23: 210004023 | C23: Bashayer | D23: Abdulla | E23: Al-Mohammed | F23: 201820 | G23: 201610 | H23: Bashayer Abdulla Al-Mohammed | I23: 29663402112 | J23: Qatar
A24: 935390 | B24: 210004232 | C24: Muza | D24: Jassim | E24: Alobaidan | F24: 201820 | G24: 201610 | H24: Muza Jassim Alobaidan | I24: 935390 | J24: Qatar
A25: 29676000114 | B25: 210004651 | C25: Mhd Talal | E25: Al Mahmalji | F25: 201820 | G25: 201710 | H25: Mhd Talal Al Mahmalji | I25: 29676000114 | J25: Syrian Arab Republic
A26: 30063400623 | B26: 210007414 | C26: Mohammed | D26: Nasser N A | E26: Al-Naimi | F26: 201820 | G26: 201810 | H26: Mohammed Nasser N A Al-Naimi | I26: 30063400623 | J26: Qatar
A27: 29763403228 | B27: 210004049 | C27: Zaynab | D27: Hussein | E27: Makki | F27: 201820 | G27: 201610 | H27: Zaynab Hussein Makki | I27: 29763403228 | J27: Qatar
A28: 29863402012 | B28: 210004201 | C28: Muna | D28: Abdulaziz | E28: Al-sulaiti | F28: 201820 | G28: 201610 | H28: Muna Abdulaziz Al-sulaiti | I28: 29863402012 | J28: Qatar
A29: 29842200061 | B29: 210004595 | C29: kenana | E29: Dalle | F29: 201820 | G29: 201710 | H29: kenana Dalle | I29: 29842200061 | J29: Lebanon
A30: 29701200074 | B30: 210004050 | C30: Selmane | D30: Nouar | E30: Tabet | F30: 201820 | G30: 201610 | H30: Selmane Nouar Tabet | I30: 29701200074 | J30: Algeria
A31: 28299900331 | B31: 210004902 | C31: Amna | D31: Solyman Zaid | E31: AbouNahia | F31: 201820 | G31: 201710 | H31: Amna Solyman Zaid AbouNahia | I31: 28299900331 | J31: Palestinian Territory, Occupie
A32: 29263402031 | B32: 210008133 | C32: Majed | D32: Mohammed | E32: Al-Nisf | F32: 201820 | G32: 201810 | H32: Majed Mohammed Al-Nisf | I32: 29263402031 | J32: Qatar
A33: 29358600442 | B33: 210004508 | C33: Aqsa | E33: Nazir | F33: 201820 | G33: 201710 | H33: Aqsa Nazir | I33: 29358600442 | J33: Pakistan
A34: 28481807826 | B34: 210005303 | C34: Omar | D34: Mohamed Marzouk | E34: Ibrahim | F34: 201820 | G34: 201710 | H34: Omar Mohamed Marzouk Ibrahim | I34: 28481807826 | J34: Egypt
A35: 26284000198 | B35: 210007551 | C35: Saleh | E35: Musleh | F35: 201820 | G35: 201810 | H35: Saleh Musleh | I35: 26284000198 | J35: United States
A36: 27699900013 | B36: 210005172 | C36: Wael | D36: Rady Mohamed Khalil | E36: Radwan | F36: 201820 | G36: 201710 | H36: Wael Rady Mohamed Khalil Radwan | I36: 27699900013 | J36: Palestinian Territory, Occupie
A37: 28481809041 | B37: 210007436 | C37: Ahmed | D37: Mosaad | E37: Eldaraa | F37: 201820 | G37: 201810 | H37: Ahmed Mosaad Eldaraa | I37: 28481809041 | J37: Egypt
A38: 29235620528 | B38: 210004339 | C38: Dabeeruddin | E38: Syed | F38: 201820 | G38: 201710 | H38: Dabeeruddin Syed | I38: 29235620528 | J38: India
A39: 28763400514 | B39: 210008017 | C39: Aljazi | D39: Nasseer | E39: Aljabor | F39: 201820 | G39: 201810 | H39: Aljazi Nasseer Aljabor | I39: 28763400514 | J39: Qatar
A40: 28881811099 | B40: 210008039 | C40: Anas | E40: Abdel Rahman | F40: 201820 | G40: 201810 | H40: Anas Abdel Rahman | I40: 28881811099 | J40: Egypt
A41: 29263404368 | B41: 210005068 | C41: Abdulaziz | D41: Yousuf | E41: Al-Homaid | F41: 201820 | G41: 201710 | H41: Abdulaziz Yousuf Al-Homaid | I41: 29263404368 | J41: Qatar
A42: 29163402686 | B42: 210005331 | C42: Noora | D42: Mohammed | E42: Al-Maslamani | F42: 201820 | G42: 201710 | H42: Noora Mohammed Al-Maslamani | I42: 29163402686 | J42: Qatar
A43: 29081801098 | B43: 210005423 | C43: Shaymaa | D43: Fawzi | E43: Khalifa | F43: 201820 | G43: 201710 | H43: Shaymaa Fawzi Khalifa | I43: 29081801098 | J43: Egypt
A44: 29363404074 | B44: 210005441 | C44: Alanood | E44: Alkuwari | F44: 201820 | G44: 201710 | H44: Alanood Alkuwari | I44: 29363404074 | J44: Qatar
A45: 29563404777 | B45: 210006204 | C45: Sarah | E45: Al Hussaini | F45: 201820 | G45: 201810 | H45: Sarah Al Hussaini | I45: 29563404777 | J45: Qatar
A46: 29463401652 | B46: 210007942 | C46: Noora | E46: Al-Mulla | F46: 201820 | G46: 201810 | H46: Noora Al-Mulla | I46: 29463401652 | J46: Qatar
A47: 29235620532 | B47: 210004883 | C47: Ameema | E47: Zainab | F47: 201820 | G47: 201710 | H47: Ameema Zainab | I47: 29235620532 | J47: India
A48: 29299900393 | B48: 210005071 | C48: ALI | D48: KHALIL | E48: ELDOUS | F48: 201820 | G48: 201710 | H48: ALI KHALIL ELDOUS | I48: 29299900393 | J48: Palestinian Territory, Occupie
A49: 27768200192 | B49: 210005765 | C49: sharoug | E49: alkhater | F49: 201820 | G49: 201810 | H49: sharoug alkhater | I49: 27768200192 | J49: Qatar
A50: 29458601672 | B50: 210008040 | C50: Faran | E50: Farooq | F50: 201820 | G50: 201810 | H50: Faran Farooq | I50: 29458601672 | J50: Pakistan
A51: 29063403595 | B51: 210005329 | C51: Afaf | D51: Omar | E51: AlSherawi | F51: 201820 | G51: 201710 | H51: Afaf Omar AlSherawi | I51: 29063403595 | J51: Qatar
A52: 29473600123 | B52: 210007817 | C52: Israa | E52: Elbashir | F52: 201820 | G52: 201810 | H52: Israa Elbashir | I52: 29473600123 | J52: Sudan
A53: 28336400369 | B53: 210008024 | C53: Dalal | D53: Abdureda | E53: Alsharshani | F53: 201820 | G53: 201810 | H53: Dalal Abdureda Alsharshani | I53: 28336400369 | J53: Qatar
A54: 29540000180 | B54: 210007522 | C54: Nuha | D54: Taysir | E54: Swaidan | F54: 201820 | G54: 201810 | H54: Nuha Taysir Swaidan | I54: 29540000180 | J54: Jordan
A55: 28340000155 | B55: 210008069 | C55: Zenat | D55: Mohmmd | E55: Kanfosh | F55: 201820 | G55: 201810 | H55: Zenat Mohmmd Kanfosh | I55: 28340000155 | J55: Jordan
A56: 28508000349 | B56: 210007494 | C56: IDRIS | D56: OMER | E56: MOHAMMED | F56: 201820 | G56: 201810 | H56: IDRIS OMER MOHAMMED | I56: 28508000349 | J56: Eritrea
A57: 29370600178 | B57: 210008023 | C57: Munira | D57: Ali | E57: Aden | F57: 201820 | G57: 201810 | H57: Munira Ali Aden | I57: 29370600178 | J57: Somalia
A58: 29540000179 | B58: 210006692 | C58: Areej | E58: Mesleh | F58: 201820 | G58: 201810 | H58: Areej Mesleh | I58: 29540000179 | J58: Jordan
A59: 28673600922 | B59: 210007239 | C59: Naela | E59: Mahmoud | F59: 201820 | G59: 201810 | H59: Naela Mahmoud | I59: 28673600922 | J59: Sudan
A60: 28342200049 | B60: 210004888 | C60: Mahmoud | D60: Mohamed | E60: El Achi | F60: 201820 | G60: 201710 | H60: Mahmoud Mohamed El Achi | I60: 28342200049 | J60: Lebanon
A61: 28876000059 | B61: 210007524 | C61: Sura | E61: Takiddin | F61: 201820 | G61: 201810 | H61: Sura Takiddin | I61: 28876000059 | J61: Syrian Arab Republic
A62: 28863401330 | B62: 210005070 | C62: Saleh | E62: Almannai | F62: 201820 | G62: 201710 | H62: Saleh Almannai | I62: 28863401330 | J62: Qatar
A63: 28963404316 | B63: 210005405 | C63: Abdulaziz | E63: Al-Thani | F63: 201820 | G63: 201710 | H63: Abdulaziz Al-Thani | I63: 28963404316 | J63: Qatar
A64: 29363401576 | B64: 210005410 | C64: Maryam | E64: Al-Fehani | F64: 201820 | G64: 201710 | H64: Maryam Al-Fehani | I64: 29363401576 | J64: Qatar
A65: 28363401526 | B65: 210005393 | C65: Eman | D65: Mohammed | E65: Radi | F65: 201820 | G65: 201710 | H65: Eman Mohammed Radi | I65: 28363401526 | J65: Qatar
A66: 29358600740 | B66: 210005257 | C66: Talal | E66: Shoeb | F66: 201820 | G66: 201710 | H66: Talal Shoeb | I66: 29358600740 | J66: Pakistan
A67: 28599900087 | B67: 210005180 | C67: Eman | D67: Mohamed | E67: Abouzohri | F67: 201820 | G67: 201710 | H67: Eman Mohamed Abouzohri | I67: 28599900087 | J67: Qatar
A68: 29063402028 | B68: 210005171 | C68: Ahmed | D68: Khalil | E68: Abdulla | F68: 201820 | G68: 201710 | H68: =CONCATENATE(C68," ",D68," ",E68) -> Ahmed Khalil Abdulla | I68: 29063402028 | J68: Qatar
A69: 29463401465 | B69: 210008123 | C69: Adnan | D69: Mahmoud | E69: Fekri | F69: 201820 | G69: 201810 | H69: Adnan Mahmoud Fekri | I69: 29463401465 | J69: Qatar
A70: 29363403828 | B70: 210008035 | C70: Yousef | D70: Eassa | E70: Al-Shriem | F70: 201820 | G70: 201810 | H70: Yousef Eassa Al-Shriem | I70: 29363403828 | J70: Qatar
A71: 29163400888 | B71: 210008016 | C71: Abdulrahman | D71: Misfer | E71: Al-Hababi | F71: 201820 | G71: 201810 | H71: Abdulrahman Misfer Al-Hababi | I71: 29163400888 | J71: Qatar
A72: 29458601621 | B72: 210007878 | C72: Syed Hassan | E72: Mehdi | F72: 201820 | G72: 201810 | H72: Syed Hassan Mehdi | I72: 29458601621 | J72: Pakistan
A73: 29435601181 | B73: 210005297 | C73: Priyanka | D73: GopalSinh | E73: Dodia | F73: 201820 | G73: 201710 | H73: Priyanka GopalSinh Dodia | I73: 29435601181 | J73: India
A74: 28763402948 | B74: 210005412 | C74: Fatima | D74: Ahmed | E74: Saifaldeen | F74: 201820 | G74: 201710 | H74: Fatima Ahmed Saifaldeen | I74: 28763402948 | J74: Qatar
A75: 29263402873 | B75: 210007875 | C75: Maryam | D75: Jamal | E75: Al-Ammari | F75: 201820 | G75: 201810 | H75: Maryam Jamal Al-Ammari | I75: 29263402873 | J75: Qatar
A76: 28881800414 | B76: 210007516 | C76: Omar | D76: Adel | E76: Ibrahim | F76: 201820 | G76: 201810 | H76: Omar Adel Ibrahim | I76: 28881800414 | J76: Egypt
A77: 29363400090 | B77: 210005327 | C77: Abdulaziz | D77: Hamed | E77: Al-Marwani | F77: 201820 | G77: 201710 | H77: Abdulaziz Hamed Al-Marwani | I77: 29363400090 | J77: Qatar
A78: 29440000587 | B78: 210005386 | C78: Aseel | D78: Ahmad | E78: Ghazal | F78: 201820 | G78: 201710 | H78: Aseel Ahmad Ghazal | I78: 29440000587 | J78: Jordan
A79: 29299900234 | B79: 210005578 | C79: Hala | E79: Abou El Oula | F79: 201820 | G79: 201810 | H79: Hala Abou El Oula | I79: 29299900234 | J79: Palestinian Territory, Occupie
A80: 29088600352 | B80: 210006089 | C80: MOHAMMED M. A. | E80: AL-SADI | F80: 201820 | G80: 201810 | H80: MOHAMMED M. A. AL-SADI | I80: 29088600352 | J80: Yemen
A81: 29263404698 | B81: 210005169 | C81: Ahmad | D81: nasser | E81: Alkuwari | F81: 201820 | G81: 201710 | H81: Ahmad nasser Alkuwari | I81: 29263404698 | J81: Qatar
A82: 28863401880 | B82: 210005380 | C82: Amna | D82: Nasser | E82: Almejali | F82: 201820 | G82: 201710 | H82: Amna Nasser Almejali | I82: 28863401880 | J82: Qatar
A83: 28863400595 | B83: 210005417 | C83: Mohammed | D83: Eassa | E83: Alshriem | F83: 201820 | G83: 201710 | H83: Mohammed Eassa Alshriem | I83: 28863400595 | J83: Qatar
A84: 29363403811 | B84: 210005795 | C84: Saeed | D84: Hamad | E84: Al-Marri | F84: 201820 | G84: 201810 | H84: Saeed Hamad Al-Marri | I84: 29363403811 | J84: Qatar
A85: 28863402788 | B85: 210007826 | C85: SHAHEEN | D85: SAAD | E85: AL-KAABI | F85: 201820 | G85: 201810 | H85: SHAHEEN SAAD AL-KAABI | I85: 28863402788 | J85: Qatar
B86: 210008015 | C86: Essa | E86: AlKubaisi | F86: 201820 | G86: 201810 | H86: Essa AlKubaisi | J86: Qatar
B87: 210008037 | C87: Isra | D87: Mohamed | E87: Ali | F87: 201820 | G87: 201810 | H87: Isra Mohamed Ali | J87: Libyan Arab Jamahiriya
A88: 29063403815 | B88: 210005286 | C88: Ghada | E88: Mubarak | F88: 201820 | G88: 201710 | H88: Ghada Mubarak | I88: 29063403815 | J88: Qatar
A89: 29563404133 | B89: 210007510 | C89: Aisha | D89: Abdulla H A | E89: Al-Mulla | F89: 201820 | G89: 201810 | H89: Aisha Abdulla H A Al-Mulla | I89: 29563404133 | J89: Qatar
A90: 28335650815 | B90: 210006883 | C90: Gaurav | E90: Thareja | F90: 201820 | G90: 201810 | H90: Gaurav Thareja | I90: 28335650815 | J90: India
A91: 29140000221 | B91: 210003935 | C91: Sara | D91: Fuad Ahmed | E91: Owaida | F91: 201820 | G91: 201610 | H91: Sara Fuad Ahmed Owaida | I91: 29140000221 | J91: Jordan
A92: 29476000237 | B92: 210007511 | C92: Rim | D92: Abdul Kader | E92: Mousa Bacha | F92: 201820 | G92: 201810 | H92: Rim Abdul Kader Mousa Bacha | I92: 29476000237 | J92: Syrian Arab Republic
A93: 29573600364 | B93: 210006493 | C93: Asma | E93: Elashi | F93: 201820 | G93: 201810 | H93: Asma Elashi | I93: 29573600364 | J93: Palestinian Territory, Occupie
A94: 28663402865 | B94: 210005277 | C94: Muna | D94: Nasser | E94: AL-Noubi | F94: 201820 | G94: 201710 | H94: Muna Nasser AL-Noubi | I94: 28663402865 | J94: Qatar
A95: 28540000288 | B95: 210004429 | C95: Yasmeen | D95: Mahmoud | E95: Salameh | F95: 201820 | G95: 201710 | H95: Yasmeen Mahmoud Salameh | I95: 28540000288 | J95: Jordan
A96: 28563404076 | B96: 210004882 | C96: Maryam | D96: Saleh | E96: Al Motawa | F96: 201820 | G96: 201710 | H96: Maryam Saleh Al Motawa | I96: 28563404076 | J96: Qatar
A97: 29081800115 | B97: 210004449 | C97: Karim | D97: Esmat | E97: Shalaby | F97: 201820 | G97: 201710 | H97: Karim Esmat Shalaby | I97: 29081800115 | J97: Egypt
A98: 29435601629 | B98: 210004495 | C98: Bushra | E98: Memon | F98: 201820 | G98: 201710 | H98: Bushra Memon | I98: 29435601629 | J98: India
A99: 29163403820 | B99: 210005811 | C99: Maha | D99: Abdulla | E99: AL-Thani | F99: 201820 | G99: 201810 | H99: Maha Abdulla AL-Thani | I99: 29163403820 | J99: Qatar
A100: 28955400010 | B100: 210005072 | C100: Heba | D100: Rashid | E100: Yasin | F100: 201820 | G100: 201710 | H100: Heba Rashid Yasin | I100: 28955400010 | J100: New Zealand
B101: 210004411 | C101: Sara | E101: ALTamimi | F101: 201820 | G101: 201710 | H101: Sara ALTamimi | J101: Qatar
A102: 29063402440 | B102: 210003998 | C102: Mohammed | D102: Ibrahim | E102: Al-Housani | F102: 201820 | G102: 201610 | H102: Mohammed Ibrahim Al-Housani | I102: 29063402440 | J102: Qatar
A103: 29535600084 | B103: 210006683 | C103: Sabah | E103: Mariyam | F103: 201820 | G103: 201810 | H103: Sabah Mariyam | I103: 29535600084 | J103: India
A104: 29236800102 | B104: 210004829 | C104: Omar | D104: Farook | E104: Alrawi | F104: 201820 | G104: 201710 | H104: Omar Farook Alrawi | I104: 29236800102 | J104: Iraq
A105: 29550400325 | B105: 210007214 | C105: Sarah | E105: Namany | F105: 201820 | G105: 201810 | H105: Sarah Namany | I105: 29550400325 | J105: Morocco
A106: 29350400478 | B106: 210004971 | C106: Safae | E106: Sali | F106: 201820 | G106: 201710 | H106: Safae Sali | I106: 29350400478 | J106: Morocco
A107: 29163403535 | B107: 210005322 | C107: Maryam | D107: Ali | E107: Al-Hail | F107: 201820 | G107: 201810 | H107: Maryam Ali Al-Hail | I107: 29163403535 | J107: Qatar
A108: 29063401228 | B108: 210004215 | C108: Sara | D108: S. | E108: AlMulla | F108: 201820 | G108: 201610 | H108: Sara S. AlMulla | I108: 29063401228 | J108: Qatar
A109: 29263403066 | B109: 210007429 | C109: Saleh | E109: Al-Hor | F109: 201820 | G109: 201810 | H109: Saleh Al-Hor | I109: 29263403066 | J109: Qatar
A110: 29163402921 | B110: 210004513 | C110: Aisha | D110: Hamad | E110: Al-Rumaihi | F110: 201820 | G110: 201710 | H110: Aisha Hamad Al-Rumaihi | I110: 29163402921 | J110: Qatar
A111: 29363403169 | B111: 210005024 | C111: Abdulwahab | D111: Abdulla | E111: Bukshaisha | F111: 201820 | G111: 201710 | H111: Abdulwahab Abdulla Bukshaisha | I111: 29363403169 | J111: Qatar
A112: 29363402315 | B112: 210005308 | C112: Wadha | E112: Al-Thani | F112: 201820 | G112: 201810 | H112: Wadha Al-Thani | I112: 29363402315 | J112: Qatar
B113: 210004514 | C113: Meaad | D113: Yousef | E113: Al-Jassim | F113: 201820 | G113: 201710 | H113: Meaad Yousef Al-Jassim | J113: Qatar
A114: 29040001275 | B114: 210004675 | C114: Hani | E114: Ababneh | F114: 201820 | G114: 201710 | H114: Hani Ababneh | I114: 29040001275 | J114: Jordan
B115: 210007430 | C115: Shaikha | E115: Al-Nuaimi | F115: 201820 | G115: 201810 | H115: Shaikha Al-Nuaimi | J115: Qatar
A116: 29079200549 | B116: 210004803 | C116: Ebubekir | D116: Sıddık | E116: Sahin | F116: 201820 | G116: 201710 | H116: Ebubekir Sıddık Sahin | I116: 29079200549 | J116: Turkey
A117: 28463401918 | B117: 210004039 | C117: Balqes | D117: Mohsin | E117: Saeed | F117: 201820 | G117: 201610 | H117: Balqes Mohsin Saeed | I117: 28463401918 | J117: Qatar
A118: 28905006966 | B118: 210004673 | C118: Mehzabeen | E118: Mannan | F118: 201820 | G118: 201710 | H118: Mehzabeen Mannan | I118: 28905006966 | J118: Bangladesh
A119: 28763401324 | B119: 210004677 | C119: Khalid | D119: Saqr | E119: Alhajri | F119: 201820 | G119: 201710 | H119: Khalid Saqr Alhajri | I119: 28763401324 | J119: Qatar
A120: 28663400814 | B120: 210004511 | C120: Abdulrahman | E120: Al tamimi | F120: 201820 | G120: 201710 | H120: Abdulrahman Al tamimi | I120: 28663400814 | J120: Qatar
A121: 28204800054 | B121: 210005476 | C121: Haya | D121: Saleh | E121: Alyasi | F121: 201820 | G121: 201710 | H121: Haya Saleh Alyasi | I121: 28204800054 | J121: Qatar
A122: 29535600083 | B122: 210007317 | C122: Shifa | E122: Zuhara | F122: 201820 | G122: 201810 | H122: Shifa Zuhara | I122: 29535600083 | J122: India
A123: 28963400577 | B123: 210005233 | C123: Reem | D123: Hassan | E123: ALNaama | F123: 201820 | G123: 201710 | H123: Reem Hassan ALNaama | I123: 28963400577 | J123: Qatar
A124: 28958603079 | B124: 210003950 | C124: Saad | D124: Ghani Ullah | E124: Hafiz | F124: 201820 | G124: 201610 | H124: Saad Ghani Ullah Hafiz | I124: 28958603079 | J124: Pakistan
A125: 29058604486 | B125: 210004672 | C125: Usman | D125: Bin | E125: Shahid | F125: 201820 | G125: 201710 | H125: Usman Bin Shahid | I125: 29058604486 | J125: Pakistan
A126: 28463402786 | B126: 210003946 | C126: Hanadi | D126: Ghanim | E126: AL- Thani | F126: 201820 | G126: 201610 | H126: Hanadi Ghanim AL- Thani | I126: 28463402786 | J126: Qatar
A127: 29163400623 | B127: 210007368 | C127: Fatima | D127: Essa | E127: Al-Thawadi | F127: 201820 | G127: 201810 | H127: Fatima Essa Al-Thawadi | I127: 29163400623 | J127: Qatar
A128: 29163400206 | B128: 210005028 | C128: Mohammed | D128: Ibrahim A S | E128: Al-Marzooqi | F128: 201820 | G128: 201710 | H128: Mohammed Ibrahim A S Al-Marzooqi | I128: 29163400206 | J128: Qatar
A129: 28763402986 | B129: 210007852 | C129: mohammed | D129: ali | E129: alghamdi | F129: 201820 | G129: 201810 | H129: mohammed ali alghamdi | I129: 28763402986 | J129: Qatar
A130: 28899900457 | B130: 210004903 | C130: Kholoud | D130: Khalil | E130: Aldous | F130: 201820 | G130: 201710 | H130: Kholoud Khalil Aldous | I130: 28899900457 | J130: Palestinian Territory, Occupie
A131: 29563403598 | B131: 210007540 | C131: Noor | D131: Hussain | E131: Al-Ansari | F131: 201820 | G131: 201810 | H131: Noor Hussain Al-Ansari | I131: 29563403598 | J131: Qatar
A132: 28681800007 | B132: 210005166 | C132: Hend | D132: Kamal | E132: Gedawy | F132: 201820 | G132: 201710 | H132: =CONCATENATE(C132," ",D132," ",E132) -> Hend Kamal Gedawy | I132: 28681800007 | J132: Egypt
A133: 29115600557 | B133: 210005563 | C133: Tsz Ngai | E133: Lin | F133: 201820 | G133: 201720 | H133: Tsz Ngai Lin | I133: 29115600557 | J133: China
B134: 210005390 | C134: Kamela | D134: Ali | E134: Al-Mannai | F134: 201820 | G134: 201710 | H134: Kamela Ali Al-Mannai | J134: Qatar
A135: 28963403594 | B135: 210005379 | C135: Hind | D135: Ali | E135: Almerekhi | F135: 201820 | G135: 201710 | H135: Hind Ali Almerekhi | I135: 28963403594 | J135: Qatar
A136: 28399900515 | B136: 210005378 | C136: Ghadeer | D136: Said | E136: AbuOda | F136: 201820 | G136: 201710 | H136: Ghadeer Said AbuOda | I136: 28399900515 | J136: Palestinian Territory, Occupie
A137: 28143400039 | B137: 210005228 | C137: Abdurrahman | E137: Elbasir | F137: 201820 | G137: 201710 | H137: Abdurrahman Elbasir | I137: 28143400039 | J137: Liberia
A138: 28963400636 | B138: 210005289 | C138: Khalid | D138: Mohammed | E138: Al-Kubaisi | F138: 201820 | G138: 201710 | H138: Khalid Mohammed Al-Kubaisi | I138: 28963400636 | J138: Qatar
A139: 28763400971 | B139: 210007673 | C139: Ali | D139: Fahad | E139: Al-Qahtani | F139: 201820 | G139: 201810 | H139: Ali Fahad Al-Qahtani | I139: 28763400971 | J139: Qatar
A140: 28349900003 | B140: 210005898 | C140: Edin | E140: Salkovic | F140: 201820 | G140: 201810 | H140: Edin Salkovic | I140: 28349900003 | J140: Yugoslavia
A141: 29463402084 | B141: 210005294 | C141: Alkhzami | D141: Salman A H | E141: Al-Harami | F141: 201820 | G141: 201710 | H141: Alkhzami Salman A H Al-Harami | I141: 29463402084 | J141: Qatar
A142: 29163402572 | B142: 210005062 | C142: Jaber | D142: Sadiqe | E142: Al-khori | F142: 201820 | G142: 201710 | H142: Jaber Sadiqe Al-khori | I142: 29163402572 | J142: Qatar
A143: 27699900029 | B143: 210005055 | C143: Sami | E143: Elzeiny | F143: 201820 | G143: 201710 | H143: Sami Elzeiny | I143: 27699900029 | J143: Palestinian Territory, Occupie
A144: 28256600748 | B144: 210004884 | C144: Bilikis | D144: Oluwatoyin | E144: Banire | F144: 201820 | G144: 201710 | H144: Bilikis Oluwatoyin Banire | I144: 28256600748 | J144: Nigeria
B145: 210008268 | C145: Simone | E145: Raponi | F145: 201820 | G145: 201820 | H145: Simone Raponi | J145: Italy
A146: 28958604524 | B146: 210004909 | C146: Atiq | D146: Ur | E146: Rehman | F146: 201820 | G146: 201710 | H146: Atiq Ur Rehman | I146: 28958604524 | J146: Pakistan
A147: 27163400443 | B147: 210005056 | C147: Aref | E147: Al-Tamimi | F147: 201820 | G147: 201710 | H147: Aref Al-Tamimi | I147: 27163400443 | J147: Qatar
A148: 26983400003 | B148: 210005333 | C148: Masoud | D148: Udi | E148: Mwinyi | F148: 201820 | G148: 201710 | H148: Masoud Udi Mwinyi | I148: 26983400003 | J148: Tanzania, United Republic of
A149: 28299900124 | B149: 210006162 | C149: Mohnad | E149: Abunada | F149: 201820 | G149: 201810 | H149: Mohnad Abunada | I149: 28299900124 | J149: Palestinian Territory, Occupie
A150: 28638000114 | B150: 210007311 | C150: Maurantonio | E150: Caprolu | F150: 201820 | G150: 201810 | H150: Maurantonio Caprolu | I150: 28638000114 | J150: Italy
A151: 28163403217 | B151: 210005603 | C151: Ali | E151: Al-Rashid | F151: 201820 | G151: 201720 | H151: Ali Al-Rashid | I151: 28163403217 | J151: Qatar
A152: 28836400224 | B152: 210005797 | C152: Hamed | E152: Al-Shaibani | F152: 201820 | G152: 201810 | H152: Hamed Al-Shaibani | I152: 28836400224 | J152: Qatar
A153: 28915600961 | B153: 210005991 | C153: Qiang | E153: Xiao | F153: 201820 | G153: 201810 | H153: Qiang Xiao | I153: 28915600961 | J153: China
A154: 28805030323 | B154: 210006054 | C154: Md Shafiqul | E154: Islam | F154: 201820 | G154: 201810 | H154: Md Shafiqul Islam | I154: 28805030323 | J154: Bangladesh
A155: 28072400156 | B155: 210008043 | C155: Javier | E155: Hernandez Fernandez | F155: 201820 | G155: 201810 | H155: Javier Hernandez Fernandez | I155: 28072400156 | J155: Spain
A156: 29040000572 | B156: 210008044 | C156: Lubna | E156: Eliyan | F156: 201820 | G156: 201810 | H156: Lubna Eliyan | I156: 29040000572 | J156: Jordan
A157: 28099900202 | B157: 210004908 | C157: Aboubakr | D157: Ahmed | E157: Aqle | F157: 201820 | G157: 201710 | H157: Aboubakr Ahmed Aqle | I157: 28099900202 | J157: Palestinian Territory, Occupie
B158: 210007562 | C158: Muhammad | E158: Ijaz | F158: 201820 | G158: 201810 | H158: Muhammad Ijaz | J158: Pakistan
A159: 28636800050 | B159: 210005225 | C159: AlHasan | D159: Adnan | E159: AlSammarraie | F159: 201820 | G159: 201710 | H159: AlHasan Adnan AlSammarraie | I159: 28636800050 | J159: Bahrain
A160: 27651200016 | B160: 210005251 | C160: Sana | D160: Faiyz | E160: Alfarsi | F160: 201820 | G160: 201710 | H160: Sana Faiyz Alfarsi | I160: 27651200016 | J160: Qatar
A161: 29001200111 | B161: 210005288 | C161: Elmahdi Abderrahim | E161: Bentafat | F161: 201820 | G161: 201710 | H161: Elmahdi Abderrahim Bentafat | I161: 29001200111 | J161: Algeria
A162: 29363405028 | B162: 210007444 | C162: Danya | D162: Ahmed | E162: Saifaldeen | F162: 201820 | G162: 201810 | H162: Danya Ahmed Saifaldeen | I162: 29363405028 | J162: Qatar
A163: 28863404386 | B163: 210007950 | C163: Haya | D163: A | E163: Al-Thani | F163: 201820 | G163: 201810 | H163: Haya A Al-Thani | I163: 28863404386 | J163: Qatar
A164: 28963404379 | B164: 210003924 | C164: Hanadi | D164: Mohammed | E164: Al-Mohsin | F164: 201820 | G164: 201610 | H164: Hanadi Mohammed Al-Mohsin | I164: 28963404379 | J164: Qatar
A165: 29042200042 | B165: 210008163 | C165: Maha | D165: Hussin | E165: Hassan | F165: 201820 | G165: 201810 | H165: Maha Hussin Hassan | I165: 29042200042 | J165: Lebanon
A166: 28735600078 | B166: 210008076 | C166: Zeenath | E166: Safira | F166: 201820 | G166: 201810 | H166: Zeenath Safira | I166: 28735600078 | J166: India
A167: 28781809491 | B167: 210007495 | C167: Eman | D167: Wehedy Elsayed | E167: Abdelsalam | F167: 201820 | G167: 201810 | H167: Eman Wehedy Elsayed Abdelsalam | I167: 28781809491 | J167: Egypt
A168: 29540400002 | B168: 210004499 | C168: Umm-Kulthum | D168: Ismail | E168: Umlai | F168: 201820 | G168: 201810 | H168: Umm-Kulthum Ismail Umlai | I168: 29540400002 | J168: Kenya
A169: 28788600425 | B169: 210007497 | C169: Wafa | D169: Abdulsalam Abdulrazzaq | E169: al-Ameri | F169: 201820 | G169: 201810 | H169: Wafa Abdulsalam Abdulrazzaq al-Ameri | I169: 28788600425 | J169: Yemen
B170: 210008078 | C170: KRIPA | D170: SUBHADRA | E170: KEYAN | F170: 201820 | G170: 201810 | H170: KRIPA SUBHADRA KEYAN | J170: India
A171: 28776002527 | B171: 210007507 | C171: Iman | E171: Hawari | F171: 201820 | G171: 201810 | H171: Iman Hawari | I171: 28776002527 | J171: Syrian Arab Republic
A172: 29140000269 | B172: 210007651 | C172: Reem | D172: Subhi Mohammad | E172: Al Disi | F172: 201820 | G172: 201810 | H172: Reem Subhi Mohammad Al Disi | I172: 29140000269 | J172: Jordan
A173: 28673602007 | B173: 210008063 | C173: Ghada | D173: Yousif Mohammed | E173: Yousif | F173: 201820 | G173: 201810 | H173: Ghada Yousif Mohammed Yousif | I173: 28673602007 | J173: Sudan
B174: 210008183 | C174: Kholoud | E174: Bastaki | F174: 201820 | G174: 201810 | H174: Kholoud Bastaki | J174: Qatar
A175: 29073601478 | B175: 210008027 | C175: Amal | D175: Elfatih | E175: abdelmageed | F175: 201820 | G175: 201810 | H175: Amal Elfatih abdelmageed | I175: 29073601478 | J175: Sudan
A176: 27635644330 | B176: 210008026 | C176: Sarmadia | E176: Ashraf | F176: 201820 | G176: 201810 | H176: Sarmadia Ashraf | I176: 27635644330 | J176: India
A177: 28640000341 | B177: 210006152 | C177: Yasmin | D177: Walid | E177: Abu Aqel | F177: 201820 | G177: 201810 | H177: Yasmin Walid Abu Aqel | I177: 28640000341 | J177: Jordan
A178: 28463402655 | B178: 210003919 | C178: Noor | D178: Ali | E178: Al-Maslamani | F178: 201820 | G178: 201610 | H178: Noor Ali Al-Maslamani | I178: 28463402655 | J178: Qatar
A179: 29299900437 | B179: 210004046 | C179: Sanaa | D179: Ali | E179: Sharari | F179: 201820 | G179: 201810 | H179: Sanaa Ali Sharari | I179: 29299900437 | J179: Palestinian Territory, Occupie
A180: 29440000251 | B180: 210003920 | C180: Mounira | D180: Walid Jamil | E180: Fayyad | F180: 201820 | G180: 201810 | H180: Mounira Walid Jamil Fayyad | I180: 29440000251 | J180: Jordan
A181: 28382600193 | B181: 210003922 | C181: Ahmad | E181: Najjar | F181: 201820 | G181: 201610 | H181: Ahmad Najjar | I181: 28382600193 | J181: United Kingdom
A182: 27512400214 | B182: 210003934 | C182: Sahar | D182: Isa | E182: Daas | F182: 201820 | G182: 201610 | H182: Sahar Isa Daas | I182: 27512400214 | J182: Canada
A183: 28363403040 | B183: 210003992 | C183: Ghaneya | D183: Mesaad | E183: Al-Khadairi | F183: 201820 | G183: 201810 | H183: Ghaneya Mesaad Al-Khadairi | I183: 28363403040 | J183: Qatar
A184: 28935629152 | B184: 210004492 | C184: Drishya | D184: Maria | E184: George | F184: 201820 | G184: 201710 | H184: Drishya Maria George | I184: 28935629152 | J184: India
A185: 28982600266 | B185: 210007237 | C185: Hibah | E185: Shaath | F185: 201820 | G185: 201810 | H185: Hibah Shaath | I185: 28982600266 | J185: England
A186: 28670600001 | B186: 210003927 | C186: Asha | D186: Abdelsalam Ali | E186: Elmi | F186: 201820 | G186: 201610 | H186: Asha Abdelsalam Ali Elmi | I186: 28670600001 | J186: Somalia
A187: 28540000086 | B187: 210004571 | C187: Arwa | D187: A.H. | E187: Aldaalis | F187: 201820 | G187: 201710 | H187: Arwa A.H. Aldaalis | I187: 28540000086 | J187: Palestinian Territory, Occupie
A188: 28163401858 | B188: 210003929 | C188: Bakhita | D188: Rashid | E188: Meqbel | F188: 201820 | G188: 201610 | H188: Bakhita Rashid Meqbel | I188: 28163401858 | J188: Qatar
A189: 28426200001 | B189: 210004358 | C189: Idil | E189: Ahmed | F189: 201820 | G189: 201710 | H189: Idil Ahmed | I189: 28426200001 | J189: Djibouti
A190: 28636400054 | B190: 210004614 | C190: Ayeshah | D190: Yaghoub | E190: Madani | F190: 201820 | G190: 201710 | H190: Ayeshah Yaghoub Madani | I190: 28636400054 | J190: Iran (Islamic Republic Of)
A191: 29040000311 | B191: 210005086 | C191: Ayat | D191: Samir Mah'd | E191: Hammad | F191: 201820 | G191: 201710 | H191: Ayat Samir Mah'd Hammad | I191: 29040000311 | J191: Jordan
A192: 28235654617 | B192: 210005791 | C192: TAHIR | E192: ABDULREHMAN | F192: 201820 | G192: 201720 | H192: TAHIR ABDULREHMAN | I192: 28235654617 | J192: India
A193: 29163400793 | B193: 210003918 | C193: Aisha | D193: MOHD | E193: Al-Qahtani | F193: 201820 | G193: 201810 | H193: Aisha MOHD Al-Qahtani | I193: 29163400793 | J193: Qatar
A194: 28499900173 | B194: 210003921 | C194: Eman | D194: Khaleel Rashied | E194: Aldous | F194: 201820 | G194: 201810 | H194: Eman Khaleel Rashied Aldous | I194: 28499900173 | J194: Palestinian Territory, Occupie
A195: 28476001451 | B195: 210004371 | C195: Abdulghani | E195: Khilan | F195: 201820 | G195: 201710 | H195: Abdulghani Khilan | I195: 28476001451 | J195: Syrian Arab Republic
A196: 28663401459 | B196: 210004835 | C196: Kholoud | D196: Nedham | E196: Alshafai | F196: 201820 | G196: 201710 | H196: =CONCATENATE(C196," ",D196," ",E196) -> Kholoud Nedham Alshafai | I196: 28663401459 | J196: Qatar
A197: 29435600335 | B197: 210007333 | C197: Safa | E197: Salim | F197: 201820 | G197: 201810 | H197: Safa Salim | I197: 29435600335 | J197: India
A198: 28376002164 | B198: 210003933 | C198: Yaser | D198: Ammar | E198: AlSarraj | F198: 201820 | G198: 201810 | H198: Yaser Ammar AlSarraj | I198: 28376002164 | J198: Syrian Arab Republic
A199: 28350400006 | B199: 210008421 | C199: Khaoula | E199: Errafii | F199: 201820 | G199: 201820 | H199: Khaoula Errafii | I199: 28350400006 | J199: Morocco
A200: 28363402387 | B200: 210002996 | C200: Manal | D200: Mohamed | E200: Al Salama | F200: 201820 | G200: 201710 | H200: Manal Mohamed Al Salama | I200: 28363402387 | J200: Qatar
A201: 28399900199 | B201: 210006367 | C201: Ahmad | D201: Majed | E201: Alsarraj | F201: 201820 | G201: 201810 | H201: Ahmad Majed Alsarraj | I201: 28399900199 | J201: Palestinian Territory, Occupie
... 53 more rows

Sheet Jan 18 (hidden)
A6: Ref. HBKU/CSE/Stipend/031
A7: To: Accounts Payable Manager / QF-Finance
A8: CC: Executive Director / QF-Finance
A9: CC: Chief Financial Officer / HBKU-Finance
A10: Date: 16/01/2018
A12: Subject: Stipend payment request for the month of Jan 2018
A14: Please arrange for the payment of QR 124,000/- stipend to the following students receiving scholarships via bank transfer to their respective below bank accounts:
B16: Student Name | C16: Citizenship | D16: University | E16: Amount | F16: IBAN | G16: Bank Name | H16: Swift Code
A17: 1 | B17: Tejvir Singh | C17: India | D17: HBKU | E17: 9,000 | F17: QA13 QNBA 0000 0000 0230 3767 6804 3 | G17: QNB - Qatar Foundation
A18: 2 | B18: Waqas Nawaz | C18: Pakistan | D18: HBKU | E18: 9,000 | F18: QA72 QNBA 0000 0000 0035 2471 6900 1 | G18: QNB - Qatar Foundation | H18: QNBAQAQAXXX
A19: 3 | B19: Ahmed Sodiq | C19: Nigeria | D19: HBKU | E19: 9,000 | F19: QA02 QNBA 0000 0000 0035 3751 7204 3 | G19: QNB
A20: 4 | B20: Ahmad Najjar | C20: UK | D20: HBKU | E20: 9,000 | F20: QA39 QISB 0115 4313 0060 2001 3037 1 | G20: Qatar Islamic Bank (QIB)
A21: 5 | B21: Ibrahim Ari | C21: Turkey | D21: HBKU | E21: 9,000 | F21: QA84 QNBA 0000 0000 0035 3736 2904 3 | G21: QNB - Qatar Foundation | H21: QNBAQAQA
A22: 6 | B22: Shoukat Khan | C22: Pakistan | D22: HBKU | E22: 9,000 | F22: QA43 QNBA 0000 0000 0035 3757 1004 3 | G22: QNB - Qatar Foundation | H22: QNBAQAQA
A23: 7 | B23: Nurettin Sezer | C23: Turkey | D23: HBKU | E23: 9,000 | F23: QA21 QNBA 0000 0000 0035 3736 2804 3 | G23: QNB - Qatar Foundation | H23: QNBAQAQA
A24: 8 | B24: Irfan Batur | C24: Turkey | D24: HBKU | E24: 9,000 | F24: QA40 QNBA 0000 0000 0035 3751 8804 3 | G24: QNB - Qatar Foundation | H24: QNBAQAQA
A25: 9 | B25: Faisal Mumtaz | C25: Pakistan | D25: HBKU | E25: 9,000 | F25: QA14 QNBA 0000 0000 0035 3757 0804 3 | G25: QNB - Qatar Foundation | H25: QNBAQAQA
A26: 10 | B26: Mohamed Alhaj | C26: Sudan | D26: HBKU | E26: 9,000 | F26: QA78 QISB 0000 0000 0150 4583 6001 0 | G26: Qatar Islamic Bank QIB
A27: 11 | B27: Shahzada Pamir Aly | C27: Pakistan | D27: HBKU | E27: 9,000 | F27: QA72 QNBA 0000 0000 0035 3757 1204 3 | G27: QNB | H27: QNBAQAQA
A28: 12 | B28: Hajar Farzaneh | C28: Iran | D28: HBKU | E28: 9,000 | F28: QA34 QNBA 0000 0000 0027 3352 6904 3 | G28: QNB
A29: 13 | B29: Ahmer Balouch | C29: Pakistan | D29: HBKU | E29: 9,000 | F29: QA94 QNBA 0000 0000 0035 3879 7904 3 | G29: QNB
A30: 14 | B30: Sanaa Sharari | C30: Palestine | D30: HBKU | E30: 7,000 | F30: QA76 QNBA 0000 0000 0035 3859 1404 3 | G30: QNB
E32: =SUM(E17:E31) -> 124,000.00
F38: Dr. Mounir Hamdi | G38: Dr. Khaled Letaief
F39: Dean - HBKU CSE | G39: Provost - HBKU
A41: Ref. HBKU/CSE/Stipend/031
A42: To: Accounts Payable Manager / QF-Finance
A43: CC: Executive Director / QF-Finance
A44: CC: Chief Financial Officer / HBKU-Finance
A45: Date: 16/01/2018
A47: Subject: Stipend payment request for the month of Jan 2018
A48: Please arrange for the payment of QR 274,500/- stipend to the following students receiving scholarships via bank transfer to their respective below bank accounts:
B50: Student Name | C50: Citizenship | D50: University | E50: Amount | F50: IBAN | G50: Bank Name | H50: Swift Code
A51: 1 | B51: Abdulghani Khilan | C51: Syria | D51: HBKU | E51: 9,000 | F51: QA59 QNBA 0000 0000 0035 4116 6804 3 | G51: QNB - Qatar Foundation | H51: QNBAQAQA
A52: 2 | B52: Arwa Aldaalis | C52: Palestinian | D52: HBKU | E52: 9,000 | F52: QA68 QISB 0109 4889 0110 1001 7190 7 | G52: Qatar Islamic Bank
A53: 3 | B53: Ayat Hammad | C53: Jordan | D53: HBKU | E53: 9,000 | F53: QA76 MAFR 0000 0000 0006 5113 0800 1 | G53: Masraf Al Rayan
A54: 4 | B54: Bushra Memon | C54: India | D54: HBKU | E54: 7,500 | F54: QA36 QISB 0121 2645 0020 2001 6259 1 | G54: Qatar Islamic Bank (QIB)
A55: 5 | B55: Drishya George | C55: India | D55: HBKU | E55: 9,000 | F55: QA14 CBQA 0000 0000 4610 5195 8710 1 | G55: Commercial Bank of Qatar
A56: 6 | B56: Karim Shalaby | C56: Egypt | D56: HBKU | E56: 7,500 | F56: QA03 QIIB 0000 0000 2225 0442 2000 1 | G56: Qatar International Islamic Bank
A57: 7 | B57: Heba Yasin | C57: New Zealand | D57: HBKU | E57: 7,500 | F57: QA30 QISB 0000 0000 0112 0565 8001 8 | G57: Qatar Islamic Bank
A58: 8 | B58: Yasmeen Salameh | C58: Jordan | D58: HBKU | E58: 7,500 | F58: QA60 QIIB 0000 0000 6646 5657 1720 1 | G58: Qatar International Islamic Bank
A59: 9 | B59: Dabeeruddin Syed | C59: India | D59: HBKU | E59: 7,500 | F59: QA26 QNBA 0000 0000 0035 4094 1804 3 | G59: QNB - Qatar Foundation | H59: QNBAQAQA
A60: 10 | B60: Ebubekir Siddik Sahin | C60: Turkey | D60: HBKU | E60: 7,500 | F60: QA08 QNBA 0000 0000 0035 4123 9704 3 | G60: QNB
A61: 11 | B61: Furqan Tahir | C61: Pakistan | D61: HBKU | E61: 9,000 | F61: QA15 QNBA 0000 0000 0035 4132 2704 3 | G61: QNB
A62: 12 | B62: Hani Ababneh | C62: Jordan | D62: HBKU | E62: 7,500 | F62: QA27 BRWA 0000 0000 0200 0002 4069 9 | G62: Barwa Bank
A63: 13 | B63: Rand ElShorafa | C63: Palestine | D63: HBKU | E63: 9,000 | F63: QA40 QNBA 0000 0000 0224 4131 5304 3 | G63: QNB
A64: 14 | B64: Saad Hafiz | C64: Pakistan | D64: HBKU | E64: 7,500 | F64: QA08 BBME 0000 0000 0001 1353 6700 1 | G64: HSBC
A65: 15 | B65: Safae Sali | C65: Morocco | D65: HBKU | E65: 7,500 | F65: QA17 QNBA 0000 0000 0035 4095 9804 3 | G65: QNB
A66: 16 | B66: Usman Shahid | C66: Pakistan | D66: HBKU | E66: 7,500 | F66: QA10 QNBA 0000 0000 0035 4100 2904 3 | G66: QNB
A67: 17 | B67: Ayman Raouf | C67: New Zealand | D67: HBKU | E67: 9,000 | F67: QA73 QNBA 0000 0000 0055 4765 7504 9 | G67: QNB
A68: 18 | B68: Athar Kamal | C68: Pakistan | D68: HBKU | E68: 9,000 | F68: QA56 QNBA 0000 0000 0035 4114 3704 3 | G68: QNB
A69: 19 | B69: Mehzabeen Mannan | C69: Bangladesh | D69: HBKU | E69: 7,500 | F69: QA57 QNBA 0000 0000 0035 4123 8704 3 | G69: QNB
A70: 20 | B70: Nagla Mohamed | C70: United States | D70: HBKU | E70: 9,000 | F70: QA44 QISB 0000 0000 0112 1507 2001 2 | G70: QIB
A71: 21 | B71: Sara Ahmad | C71: Jordan | D71: HBKU | E71: 9,000 | F71: QA19 QIIB 0000 0000 2222 4900 4520 1 | G71: Qatar International Islamic Bank
A72: 22 | B72: Priyanka Gopalsinh Dodia | C72: Indian | D72: HBKU | E72: 7,500 | F72: QA42 DOHB 0206 0239 4970 0100 2000 0 | G72: DOHA BANK
A73: 23 | B73: Aseel Ahmad Ghazal | C73: Jordan | D73: HBKU | E73: 7,500 | F73: QA73 QISB 0000 0000 0111 9088 2001 7 | G73: Qatar Islamic Bank
A74: 24 | B74: Ali Khalil Eldous | C74: Palestinian | D74: HBKU | E74: 7,500 | F74: QA02 QISB 0000 0000 0111 9134 8001 1 | G74: Qatar Islamic Bank (QIB)
A75: 25 | B75: Ameema Zainab | C75: Indian | D75: HBKU | E75: 7,500 | F75: QA94 QNBA 0000 0000 0035 4094 1604 3 | G75: QNB
A76: 26 | B76: Bilikis Oluwatoyin Banire | C76: Nigerian | D76: HBKU | E76: 9,000 | F76: QA38 QNBA 0000 0000 0035 4123 7904 3 | G76: QNB
A77: 27 | B77: Atiq ur Rehman | C77: Pakistani | D77: HBKU | E77: 9,000 | F77: QA37 QNBA 0000 0000 0035 4114 2904 3 | G77: QNB
A78: 28 | B78: Hend Kamal Gedawy | C78: Egyptian | D78: HBKU | E78: 9,000 | F78: QA27 MAFR 0000 0000 0004 3043 7400 1 | G78: Masraf Al Rayan
A79: 29 | B79: Kholoud Khalil Aldous | C79: Palestinian | D79: HBKU | E79: 9,000 | F79: QA41 QNBA 0000 0000 0225 4015 4500 1 | G79: QNB
A80: 30 | B80: Abdurrahman Mohamed Elbasir | C80: Libyan | D80: HBKU | E80: 9,000 | F80: QA02 QNBA 0000 0000 0035 4094 1304 3 | G80: QNB
A81: 31 | B81: Ghadeer Abuoda | C81: Palestinian | D81: HBKU | E81: 9,000 | F81: QA11 QNBA 0000 0000 0035 4157 3204 3 | G81: QNB
A82: 32 | B82: Tsz Ngai Lin | C82: Chinese | D82: HBKU | E82: 9,000 | F82: QA06 QNBA 0000 0000 0035 4225 2504 3 | G82: QNB
A83: 33 | B83: Tahir Abdul Rehman | C83: Indian | D83: HBKU | E83: 9,000 | F83: QA43 MAFR 0000 0000 0006 5343 7500 1 | G83: Masraf Al Rayan
E84: =SUM(E51:E83) -> 274,500
F88: Dr. Mounir Hamdi | G88: Dr. Khaled Letaief
F89: Dean - HBKU CSE | G89: Provost - HBKU
A92: Ref. HBKU/CSE/Stipend/031
A93: To: Accounts Payable Manager / QF-Finance
A94: CC: Executive Director / QF-Finance
A95: CC: Chief Financial Officer / HBKU-Finance
A96: Date: 16/01/2018
A98: Subject: Stipend payment request for the month of Jan 2018
A99: Please arrange for the payment of QR 243,000/- stipend to the following students receiving scholarships via bank transfer to their respective below bank accounts:
B101: Student Name | C101: Citizenship | D101: University | E101: Amount | F101: IBAN | G101: Bank Name | H101: Swift Code
A102: 1 | B102: Asma Elashi | C102: Palestinian | D102: HBKU | E102: 5,000 | F102: QA77 ABQQ 0000 0000 0027 3406 9550 1 | G102: Ahli Bank | H102: ABQQQAQA
A103: 2 | B103: Rim Abdul Kader Mousa Bacha | C103: Qatar | D103: HBKU | E103: 5,000 | F103: QA82 QIIB 0000 0000 4442 0487 0220 1 | G103: Qatar Islamic International Bank | H103: QIIBQAQA
A104: 3 | B104: Eman Aldous | C104: Palestinian | D104: HBKU | E104: 7,000 | F104: QA10 QISB 0000 0000 0110 9548 5001 3 | G104: Qatar Islamic Bank (QIB) | H104: QISBQAQA
A105: 4 | B105: Mounira Walid Jamil Fayyad | C105: Qatar | D105: HBKU | E105: 7,000 | F105: QA23 QNBA 0000 0000 0035 3753 3404 3 | G105: QNB | H105: QNBAQAQAXXX
A106: 5 | B106: Safa Salim | C106: India | D106: HBKU | E106: 7,000 | F106: QA93 DOHB 0211 0204 9800 0100 2000 0 | G106: Doha Bank | H106: DOHBQAQAWBB
A107: 6 | B107: Sabah Mariyam | C107: India | D107: HBKU | E107: 5,000 | F107: QA49 QNBA 0000 0000 0171 4130 4604 3 | G107: QNB | H107: QNBAQAQAXXX
A108: 7 | B108: Sarah Namany | C108: Morocco | D108: HBKU | E108: 5,000 | F108: QA47 QNBA 0000 0000 0035 4408 1404 3 | G108: QNB | H108: QNBAQAQAXXX
A109: 8 | B109: Shifa Zuhara | C109: India | D109: HBKU | E109: 5,000 | F109: QA83 QNBA 0000 0000 0171 4130 4504 3 | G109: QNB | H109: QNBAQAQAXXX
A110: 9 | B110: Haile Tecle Woldesellasse | C110: Eritrea | D110: HBKU | E110: 7,000 | F110: QA95 QNBA 0000 0000 0035 4418 9104 3 | G110: QNB | H110: QNBAQAQAXXX
A111: 10 | B111: Ismail Walid Khalil Almanassra | C111: Jordan | D111: HBKU | E111: 7,000 | F111: QA72 QNBA 0000 0000 0035 4434 1804 3 | G111: QNB | H111: QNBAQAQAXXX
A112: 11 | B112: Samar Elkhalifa | C112: Sudan | D112: HBKU | E112: 7,000 | F112: QA83 QISB 0000 0000 0111 4041 1001 9 | G112: Qatar Islamic Bank (QIB) | H112: QISBQAQA
A113: 12 | B113: Faran Farooq | C113: Pakistan | D113: HBKU | E113: 5,000 | F113: QA41 QNBA 0000 0000 0035 2820 4804 3 | G113: QNB | H113: QNBAQAQAXXX
A114: 13 | B114: Isra Mohamed Ali | C114: Libyan | D114: HBKU | E114: 5,000 | F114: QA21 QNBA 0000 0000 0060 4446 3604 3 | G114: QNB | H114: QNBAQAQAXXX
A115: 14 | B115: Omar Adel Ibrahim | C115: Egyptian | D115: HBKU | E115: 5,000 | F115: QA74 MAFR 0000 0000 0006 5324 8110 0 | G115: Masraf Al Rayan | H115: MAFRQAQAXXX
A116: 15 | B116: Sura Takiddin | C116: USA | D116: HBKU | E116: 5,000 | F116: QA02 QISB 0000 0000 0102 8448 3002 2 | G116: QIB | H116: QISBQAQA
A117: 16 | B117: Syed Hassan Mehdi | C117: Pakistan | D117: HBKU | E117: 5,000 | F117: QA23 QNBA 0000 0000 0035 2837 6604 3 | G117: QNB | H117: QNBAQAQA
A118: 17 | B118: Edin Salkovic | C118: Montserrat | D118: HBKU | E118: 7,000 | F118: QA49 QNBA 0000 0000 0035 4407 7404 3 | G118: QNB | H118: QNBAQAQA
A119: 18 | B119: Lubna Eliyan | C119: Jordan | D119: HBKU | E119: 7,000 | F119: QA65 MAFR 0000 0000 0006 4964 8010 0 | G119: Masraf Al Rayan | H119: MAFRQAQAXXX
A120: 19 | B120: Maurantonio Caprolu | C120: Italy | D120: HBKU | E120: 7,000 | F120: QA57 QNBA 0000 0000 0035 4434 2704 3 | G120: QNB | H120: QNBAQAQA
A121: 20 | B121: Md Shafiqul Islam | C121: Bangladesh | D121: HBKU | E121: 7,000 | F121: QA04 QNBA 0000 0000 0035 4411 8904 3 | G121: QNB | H121: QNBAQAQA
A122: 21 | B122: Xiao Qiang | C122: China | D122: HBKU | E122: 7,000 | F122: QA38 QNBA 0000 0000 0035 4424 4904 3 | G122: QNB | H122: QNBAQAQA
A123: 22 | B123: Israa Elbashir | C123: Sudan | D123: HBKU | E123: 5,000 | F123: QA36 MAFR 0000 0000 0006 5143 3900 1 | G123: Masraf Al Rayan | H123: MAFRQAQAXXX
A124: 23 | B124: Naela Mahmoud | C124: Sudan | D124: HBKU | E124: 5,000 | F124: QA40 DOHB 0220 0340 1790 0100 1000 0 | G124: Doha Bank | H124: DOHBQAQA
A125: 24 | B125: Eman Wehedy Elsayed Abdelsalam | C125: Egypt | D125: HBKU | E125: 7,000 | F125: QA06 QIIB 0000 0000 2007 1139 3020 1 | G125: Qatar international Islamic bank | H125: QIIBQAQA
A126: 25 | B126: Ghada Mohammed Yousif | C126: Sudan | D126: HBKU | E126: 7,000 | F126: QA54 QNBA 0000 0000 0035 4422 2604 3 | G126: QNB | H126: QNBAQAQA
A127: 26 | B127: Kripa Subhadra Keyan | C127: India | D127: HBKU | E127: 7,000 | F127: QA86 QNBA 0000 0000 0035 4435 2604 3 | G127: QNB | H127: QNBAQAQA
A128: 27 | B128: Sarmadia Ashraf | C128: India | D128: HBKU | E128: 7,000 | F128: QA73 QIIB 0000 0000 2007 1267 5220 1 | G128: Qatar Islamic International Bank | H128: QIIBQAQA
A129: 28 | B129: Zeenath Safira | C129: India | D129: HBKU | E129: 7,000 | F129: QA89 QNBA 0000 0000 0060 2191 0904 3 | G129: QNB, city Centre branch | H129: QNBAQAQA
A130: 29 | B130: Areej Mesleh | C130: Jordan | D130: HBKU | E130: 5,000 | F130: QA25 QNBA 0000 0000 0224 3201 3904 3 | G130: QNB | H130: QNBAQAQAXXX
A131: 30 | B131: Reem Subhi Mohammad Al-Disi | C131: Jordan | D131: HBKU | E131: 7,000 | F131: QA03 MAFR 0000 0000 0006 5141 2600 1 | G131: Masraf Al Rayan | H131: MAFRQAQAXXX
A132: 31 | B132: Iman Hawari | C132: Syrian | D132: HBKU | E132: 7,000 | F132: QA28 QNBA 0000 0000 0035 4444 9204 3 | G132: QNB | H132: QNBAQAQAXXX
A133: 32 | B133: Kholoud Bastaki | C133: Qatar | D133: HBKU | E133: 7,000 | F133: QA55 QNBA 0000 0000 0171 3767 4504 3 | G133: QNB | H133: QNBAQAQAXXX
A134: 33 | B134: Amal Abdelmageed | C134: Sudan | D134: HBKU | E134: 7,000 | F134: QA27 ABQQ 0000 0000 0027 3407 2550 1 | G134: Ahli Bank | H134: ABQQQAQA
A135: 34 | B135: Sarah Al Hussaini | C135: Qatar | D135: HBKU | E135: 5,000 | F135: QA72 MAFR 0000 0000 0010 5134 9810 0 | G135: Masraf Al Rayan | H135: MAFRQAQAXXX
A136: 35 | B136: Lara Gamgoum | C136: Egypt | D136: HBKU | E136: 5,000 | F136: QA62 DOHB 0230 0277 0140 0100 2000 0 | G136: Doha Bank | H136: DOHBQAQA
A137: 36 | B137: Ummkulthum Ismail Umlai | C137: Kenya | D137: HBKU | E137: 7,000 | F137: QA48QISB000000000150464770019 | G137: Qatar Islamic Bank
A138: 37 | B138: Muhammad Ijaz | C138: Pakistan | D138: HBKU | E138: 7,000 | F138: QA51QNBA000000000035548307043 | G138: QNB
A139: 38 | B139: Muhammad Luqman | C139: Pakistan | D139: HBKU | E139: 7,000 | F139: QA32QNBA000000000035548766001 | G139: QNB
A140: 39 | B140: Simone Raponi | C140: Italy | D140: HBKU | E140: 7,000 | F140: QA81QNBA000000000035617741043 | G140: QNB
E141: =SUM(E102:E140) -> 243,000
F144: Dr. Mounir Hamdi | G144: Dr. Khaled Letaief
F145: Dean - HBKU CSE | G145: Provost - HBKU

Sheet Sheet4 (hidden)
B2: Student Name | C2: Admittance Year | D2: Citizenship | E2: University | F2: Amount | G2: IBAN | H2: Bank Name | I2: Swift Code
A3: 1 | B3: Tejvir Singh | C3: 2015-16 | D3: India | E3: HBKU | F3: 9,000 | G3: QA13 QNBA 0000 0000 0230 3767 6804 3 | H3: QNB - Qatar Foundation
A4: 2 | B4: Waqas Nawaz | C4: 2015-16 | D4: Pakistan | E4: HBKU | F4: 9,000 | G4: QA72 QNBA 0000 0000 0035 2471 6900 1 | H4: QNB - Qatar Foundation | I4: QNBAQAQAXXX
A5: 3 | B5: Ahmed Sodiq | C5: 2015-16 | D5: Nigeria | E5: HBKU | F5: 9,000 | G5: QA02 QNBA 0000 0000 0035 3751 7204 3 | H5: QNB
A6: 4 | B6: Ahmad Najjar | C6: 2015-16 | D6: UK | E6: HBKU | F6: 9,000 | G6: QA39 QISB 0115 4313 0060 2001 3037 1 | H6: Qatar Islamic Bank (QIB)
A7: 5 | B7: Ibrahim Ari | C7: 2015-16 | D7: Turkey | E7: HBKU | F7: 9,000 | G7: QA84 QNBA 0000 0000 0035 3736 2904 3 | H7: QNB - Qatar Foundation | I7: QNBAQAQA
A8: 6 | B8: Shoukat Alim Khan | C8: 2015-16 | D8: Pakistan | E8: HBKU | F8: 9,000 | G8: QA43 QNBA 0000 0000 0035 3757 1004 3 | H8: QNB - Qatar Foundation | I8: QNBAQAQA
A9: 7 | B9: Nurettin Sezer | C9: 2015-16 | D9: Turkey | E9: HBKU | F9: 9,000 | G9: QA21 QNBA 0000 0000 0035 3736 2804 3 | H9: QNB - Qatar Foundation | I9: QNBAQAQA
A10: 8 | B10: Irfan Batur | C10: 2015-16 | D10: Turkey | E10: HBKU | F10: 9,000 | G10: QA40 QNBA 0000 0000 0035 3751 8804 3 | H10: QNB - Qatar Foundation | I10: QNBAQAQA
A11: 9 | B11: Faisal Ahmed Mumtaz | C11: 2015-16 | D11: Pakistan | E11: HBKU | F11: 9,000 | G11: QA14 QNBA 0000 0000 0035 3757 0804 3 | H11: QNB - Qatar Foundation | I11: QNBAQAQA
A12: 10 | B12: Mohamed Atta Elmanan Bakhit Alhaj | C12: 2015-16 | D12: Sudan | E12: HBKU | F12: 9,000 | G12: QA78 QISB 0000 0000 0150 4583 6001 0 | H12: Qatar Islamic Bank QIB
A13: 11 | B13: Shahzada Pamir Aly | C13: 2015-16 | D13: Pakistan | E13: HBKU | F13: 9,000 | G13: QA72 QNBA 0000 0000 0035 3757 1204 3 | H13: QNB | I13: QNBAQAQA
A14: 12 | B14: Hajar Ali Hussain Farzaneh | C14: 2015-16 | D14: Iran | E14: HBKU | F14: 9,000 | G14: QA34 QNBA 0000 0000 0027 3352 6904 3 | H14: QNB
A15: 13 | B15: Ahmer Ali Bozdar Baloch | C15: 2015-16 | D15: Pakistan | E15: HBKU | F15: 9,000 | G15: QA94 QNBA 0000 0000 0035 3879 7904 3 | H15: QNB
A16: 14 | B16: Sanaa Sharari | C16: 2015-16 | D16: Palestine | E16: HBKU | F16: 7,000 | G16: QA76 QNBA 0000 0000 0035 3859 1404 3 | H16: QNB
A17: 1 | B17: Abdulghani Khilan | C17: 2016-17 | D17: Syria | E17: HBKU | F17: 9,000 | G17: QA59 QNBA 0000 0000 0035 4116 6804 3 | H17: QNB - Qatar Foundation | I17: QNBAQAQA
A18: 2 | B18: Arwa Aldaalis | C18: 2016-17 | D18: Palestinian | E18: HBKU | F18: 9,000 | G18: QA68 QISB 0109 4889 0110 1001 7190 7 | H18: Qatar Islamic Bank
A19: 3 | B19: Ayat Hammad | C19: 2016-17 | D19: Jordan | E19: HBKU | F19: 9,000 | G19: QA76 MAFR 0000 0000 0006 5113 0800 1 | H19: Masraf Al Rayan
A20: 4 | B20: Bushra Memon | C20: 2016-17 | D20: India | E20: HBKU | F20: 7,500 | G20: QA36 QISB 0121 2645 0020 2001 6259 1 | H20: Qatar Islamic Bank (QIB)
A21: 5 | B21: Drishya George | C21: 2016-17 | D21: India | E21: HBKU | F21: 9,000 | G21: QA14 CBQA 0000 0000 4610 5195 8710 1 | H21: Commercial Bank of Qatar
A22: 6 | B22: Karim Shalaby | C22: 2016-17 | D22: Egypt | E22: HBKU | F22: 7,500 | G22: QA03 QIIB 0000 0000 2225 0442 2000 1 | H22: Qatar International Islamic Bank
A23: 7 | B23: Heba Yasin | C23: 2016-17 | D23: New Zealand | E23: HBKU | F23: 7,500 | G23: QA30 QISB 0000 0000 0112 0565 8001 8 | H23: Qatar Islamic Bank
A24: 8 | B24: Yasmeen Salameh | C24: 2016-17 | D24: Jordan | E24: HBKU | F24: 7,500 | G24: QA60 QIIB 0000 0000 6646 5657 1720 1 | H24: Qatar International Islamic Bank
A25: 9 | B25: Dabeeruddin Syed | C25: 2016-17 | D25: India | E25: HBKU | F25: 7,500 | G25: QA26 QNBA 0000 0000 0035 4094 1804 3 | H25: QNB - Qatar Foundation | I25: QNBAQAQA
A26: 10 | B26: Ebubekir Siddik Sahin | C26: 2016-17 | D26: Turkey | E26: HBKU | F26: 7,500 | G26: QA08 QNBA 0000 0000 0035 4123 9704 3 | H26: QNB
A27: 11 | B27: Furqan Tahir | C27: 2016-17 | D27: Pakistan | E27: HBKU | F27: 9,000 | G27: QA15 QNBA 0000 0000 0035 4132 2704 3 | H27: QNB
A28: 12 | B28: Hani Ababneh | C28: 2016-17 | D28: Jordan | E28: HBKU | F28: 7,500 | G28: QA27 BRWA 0000 0000 0200 0002 4069 9 | H28: Barwa Bank
A29: 13 | B29: Rand ElShorafa | C29: 2016-17 | D29: Palestine | E29: HBKU | F29: 9,000 | G29: QA40 QNBA 0000 0000 0224 4131 5304 3 | H29: QNB
A30: 14 | B30: Saad Hafiz | C30: 2016-17 | D30: Pakistan | E30: HBKU | F30: 7,500 | G30: QA08 BBME 0000 0000 0001 1353 6700 1 | H30: HSBC
A31: 15 | B31: Safae Sali | C31: 2016-17 | D31: Morocco | E31: HBKU | F31: 7,500 | G31: QA17 QNBA 0000 0000 0035 4095 9804 3 | H31: QNB
A32: 16 | B32: Usman Shahid | C32: 2016-17 | D32: Pakistan | E32: HBKU | F32: 7,500 | G32: QA10 QNBA 0000 0000 0035 4100 2904 3 | H32: QNB
A33: 17 | B33: Ayman Raouf | C33: 2016-17 | D33: New Zealand | E33: HBKU | F33: 9,000 | G33: QA73 QNBA 0000 0000 0055 4765 7504 9 | H33: QNB
A34: 18 | B34: Athar Kamal | C34: 2016-17 | D34: Pakistan | E34: HBKU | F34: 9,000 | G34: QA56 QNBA 0000 0000 0035 4114 3704 3 | H34: QNB
A35: 19 | B35: Mehzabeen Mannan | C35: 2016-17 | D35: Bangladesh | E35: HBKU | F35: 7,500 | G35: QA57 QNBA 0000 0000 0035 4123 8704 3 | H35: QNB
A36: 20 | B36: Nagla Mohamed | C36: 2016-17 | D36: United States | E36: HBKU | F36: 9,000 | G36: QA44 QISB 0000 0000 0112 1507 2001 2 | H36: QIB
A37: 21 | B37: Sara Ahmad | C37: 2016-17 | D37: Jordan | E37: HBKU | F37: 9,000 | G37: QA19 QIIB 0000 0000 2222 4900 4520 1 | H37: Qatar International Islamic Bank
A38: 22 | B38: Priyanka Gopalsinh Dodia | C38: 2016-17 | D38: Indian | E38: HBKU | F38: 7,500 | G38: QA42 DOHB 0206 0239 4970 0100 2000 0 | H38: DOHA BANK
A39: 23 | B39: Aseel Ahmad Ghazal | C39: 2016-17 | D39: Jordan | E39: HBKU | F39: 7,500 | G39: QA73 QISB 0000 0000 0111 9088 2001 7 | H39: Qatar Islamic Bank
A40: 24 | B40: Ali Khalil Eldous | C40: 2016-17 | D40: Palestinian | E40: HBKU | F40: 7,500 | G40: QA02 QISB 0000 0000 0111 9134 8001 1 | H40: Qatar Islamic Bank (QIB)
A41: 25 | B41: Ameema Zainab | C41: 2016-17 | D41: Indian | E41: HBKU | F41: 7,500 | G41: QA94 QNBA 0000 0000 0035 4094 1604 3 | H41: QNB
A42: 26 | B42: Bilikis Oluwatoyin Banire | C42: 2016-17 | D42: Nigerian | E42: HBKU | F42: 9,000 | G42: QA38 QNBA 0000 0000 0035 4123 7904 3 | H42: QNB
A43: 27 | B43: Atiq ur Rehman | C43: 2016-17 | D43: Pakistani | E43: HBKU | F43: 9,000 | G43: QA37 QNBA 0000 0000 0035 4114 2904 3 | H43: QNB
A44: 28 | B44: Hend Kamal Gedawy | C44: 2016-17 | D44: Egyptian | E44: HBKU | F44: 9,000 | G44: QA27 MAFR 0000 0000 0004 3043 7400 1 | H44: Masraf Al Rayan
A45: 29 | B45: Kholoud Khalil Aldous | C45: 2016-17 | D45: Palestinian | E45: HBKU | F45: 9,000 | G45: QA41 QNBA 0000 0000 0225 4015 4500 1 | H45: QNB
A46: 30 | B46: Abdurrahman Mohamed Elbasir | C46: 2016-17 | D46: Libyan | E46: HBKU | F46: 9,000 | G46: QA02 QNBA 0000 0000 0035 4094 1304 3 | H46: QNB
A47: 31 | B47: Ghadeer Abuoda | C47: 2016-17 | D47: Palestinian | E47: HBKU | F47: 9,000 | G47: QA11 QNBA 0000 0000 0035 4157 3204 3 | H47: QNB
A48: 32 | B48: Tsz Ngai Lin | C48: 2016-17 | D48: Chinese | E48: HBKU | F48: 9,000 | G48: QA06 QNBA 0000 0000 0035 4225 2504 3 | H48: QNB
A49: 33 | B49: Tahir Abdul Rehman | C49: 2016-17 | D49: Indian | E49: HBKU | F49: 9,000 | G49: QA43 MAFR 0000 0000 0006 5343 7500 1 | H49: Masraf Al Rayan
A50: 1 | B50: Asma Elashi | C50: 2017-18 | D50: Palestinian | E50: HBKU | F50: 5,000 | G50: QA77 ABQQ 0000 0000 0027 3406 9550 1 | H50: Ahli Bank | I50: ABQQQAQA
A51: 2 | B51: Rim Abdul Kader Mousa Bacha | C51: 2017-18 | D51: Qatar | E51: HBKU | F51: 5,000 | G51: QA82 QIIB 0000 0000 4442 0487 0220 1 | H51: Qatar Islamic International Bank | I51: QIIBQAQA
A52: 3 | B52: Eman Aldous | C52: 2017-18 | D52: Palestinian | E52: HBKU | F52: 7,000 | G52: QA10 QISB 0000 0000 0110 9548 5001 3 | H52: Qatar Islamic Bank (QIB) | I52: QISBQAQA
A53: 4 | B53: Mounira Walid Jamil Fayyad | C53: 2017-18 | D53: Qatar | E53: HBKU | F53: 7,000 | G53: QA23 QNBA 0000 0000 0035 3753 3404 3 | H53: QNB | I53: QNBAQAQAXXX
A54: 5 | B54: Safa Salim | C54: 2017-18 | D54: India | E54: HBKU | F54: 7,000 | G54: QA93 DOHB 0211 0204 9800 0100 2000 0 | H54: Doha Bank | I54: DOHBQAQAWBB
A55: 6 | B55: Sabah Mariyam | C55: 2017-18 | D55: India | E55: HBKU | F55: 5,000 | G55: QA49 QNBA 0000 0000 0171 4130 4604 3 | H55: QNB | I55: QNBAQAQAXXX
A56: 7 | B56: Sarah Namany | C56: 2017-18 | D56: Morocco | E56: HBKU | F56: 5,000 | G56: QA47 QNBA 0000 0000 0035 4408 1404 3 | H56: QNB | I56: QNBAQAQAXXX
A57: 8 | B57: Shifa Zuhara | C57: 2017-18 | D57: India | E57: HBKU | F57: 5,000 | G57: QA83 QNBA 0000 0000 0171 4130 4504 3 | H57: QNB | I57: QNBAQAQAXXX
A58: 9 | B58: Haile Tecle Woldesellasse | C58: 2017-18 | D58: Eritrea | E58: HBKU | F58: 7,000 | G58: QA95 QNBA 0000 0000 0035 4418 9104 3 | H58: QNB | I58: QNBAQAQAXXX
A59: 10 | B59: Ismail Walid Khalil Almanassra | C59: 2017-18 | D59: Jordan | E59: HBKU | F59: 7,000 | G59: QA72 QNBA 0000 0000 0035 4434 1804 3 | H59: QNB | I59: QNBAQAQAXXX
A60: 11 | B60: Samar Elkhalifa | C60: 2017-18 | D60: Sudan | E60: HBKU | F60: 7,000 | G60: QA83 QISB 0000 0000 0111 4041 1001 9 | H60: Qatar Islamic Bank (QIB) | I60: QISBQAQA
A61: 12 | B61: Faran Farooq | C61: 2017-18 | D61: Pakistan | E61: HBKU | F61: 5,000 | G61: QA41 QNBA 0000 0000 0035 2820 4804 3 | H61: QNB | I61: QNBAQAQAXXX
A62: 13 | B62: Isra Mohamed Ali | C62: 2017-18 | D62: Libyan | E62: HBKU | F62: 5,000 | G62: QA21 QNBA 0000 0000 0060 4446 3604 3 | H62: QNB | I62: QNBAQAQAXXX
A63: 14 | B63: Omar Adel Ibrahim | C63: 2017-18 | D63: Egyptian | E63: HBKU | F63: 5,000 | G63: QA74 MAFR 0000 0000 0006 5324 8110 0 | H63: Masraf Al Rayan | I63: MAFRQAQAXXX
A64: 15 | B64: Sura Takiddin | C64: 2017-18 | D64: USA | E64: HBKU | F64: 5,000 | G64: QA02 QISB 0000 0000 0102 8448 3002 2 | H64: QIB | I64: QISBQAQA
A65: 16 | B65: Syed Hassan Mehdi | C65: 2017-18 | D65: Pakistan | E65: HBKU | F65: 5,000 | G65: QA23 QNBA 0000 0000 0035 2837 6604 3 | H65: QNB | I65: QNBAQAQA
A66: 17 | B66: Edin Salkovic | C66: 2017-18 | D66: Montserrat | E66: HBKU | F66: 7,000 | G66: QA49 QNBA 0000 0000 0035 4407 7404 3 | H66: QNB | I66: QNBAQAQA
A67: 18 | B67: Lubna Eliyan | C67: 2017-18 | D67: Jordan | E67: HBKU | F67: 7,000 | G67: QA65 MAFR 0000 0000 0006 4964 8010 0 | H67: Masraf Al Rayan | I67: MAFRQAQAXXX
A68: 19 | B68: Maurantonio Caprolu | C68: 2017-18 | D68: Italy | E68: HBKU | F68: 7,000 | G68: QA57 QNBA 0000 0000 0035 4434 2704 3 | H68: QNB | I68: QNBAQAQA
A69: 20 | B69: Md Shafiqul Islam | C69: 2017-18 | D69: Bangladesh | E69: HBKU | F69: 7,000 | G69: QA04 QNBA 0000 0000 0035 4411 8904 3 | H69: QNB | I69: QNBAQAQA
A70: 21 | B70: Xiao Qiang | C70: 2017-18 | D70: China | E70: HBKU | F70: 7,000 | G70: QA38 QNBA 0000 0000 0035 4424 4904 3 | H70: QNB | I70: QNBAQAQA
A71: 22 | B71: Israa Elbashir | C71: 2017-18 | D71: Sudan | E71: HBKU | F71: 5,000 | G71: QA36 MAFR 0000 0000 0006 5143 3900 1 | H71: Masraf Al Rayan | I71: MAFRQAQAXXX
A72: 23 | B72: Naela Mahmoud | C72: 2017-18 | D72: Sudan | E72: HBKU | F72: 5,000 | G72: QA40 DOHB 0220 0340 1790 0100 1000 0 | H72: Doha Bank | I72: DOHBQAQA
A73: 24 | B73: Eman Wehedy Elsayed Abdelsalam | C73: 2017-18 | D73: Egypt | E73: HBKU | F73: 7,000 | G73: QA06 QIIB 0000 0000 2007 1139 3020 1 | H73: Qatar international Islamic bank | I73: QIIBQAQA
A74: 25 | B74: Ghada Mohammed Yousif | C74: 2017-18 | D74: Sudan | E74: HBKU | F74: 7,000 | G74: QA54 QNBA 0000 0000 0035 4422 2604 3 | H74: QNB | I74: QNBAQAQA
A75: 26 | B75: Kripa Subhadra Keyan | C75: 2017-18 | D75: India | E75: HBKU | F75: 7,000 | G75: QA86 QNBA 0000 0000 0035 4435 2604 3 | H75: QNB | I75: QNBAQAQA
A76: 27 | B76: Sarmadia Ashraf | C76: 2017-18 | D76: India | E76: HBKU | F76: 7,000 | G76: QA73 QIIB 0000 0000 2007 1267 5220 1 | H76: Qatar Islamic International Bank | I76: QIIBQAQA
A77: 28 | B77: Zeenath Safira | C77: 2017-18 | D77: India | E77: HBKU | F77: 7,000 | G77: QA89 QNBA 0000 0000 0060 2191 0904 3 | H77: QNB, city Centre branch | I77: QNBAQAQA
A78: 29 | B78: Areej Mesleh | C78: 2017-18 | D78: Jordan | E78: HBKU | F78: 5,000 | G78: QA25 QNBA 0000 0000 0224 3201 3904 3 | H78: QNB | I78: QNBAQAQAXXX
A79: 30 | B79: Reem Subhi Mohammad Al-Disi | C79: 2017-18 | D79: Jordan | E79: HBKU | F79: 7,000 | G79: QA03 MAFR 0000 0000 0006 5141 2600 1 | H79: Masraf Al Rayan | I79: MAFRQAQAXXX
A80: 31 | B80: Iman Hawari | C80: 2017-18 | D80: Syrian | E80: HBKU | F80: 7,000 | G80: QA28 QNBA 0000 0000 0035 4444 9204 3 | H80: QNB | I80: QNBAQAQAXXX
A81: 32 | B81: Kholoud Bastaki | C81: 2017-18 | D81: Qatar | E81: HBKU | F81: 7,000 | G81: QA55 QNBA 0000 0000 0171 3767 4504 3 | H81: QNB | I81: QNBAQAQAXXX
A82: 33 | B82: Amal Abdelmageed | C82: 2017-18 | D82: Sudan | E82: HBKU | F82: 7,000 | G82: QA27 ABQQ 0000 0000 0027 3407 2550 1 | H82: Ahli Bank | I82: ABQQQAQA
A83: 34 | B83: Sarah Al Hussaini | C83: 2017-18 | D83: Qatar | E83: HBKU | F83: 5,000 | G83: QA72 MAFR 0000 0000 0010 5134 9810 0 | H83: Masraf Al Rayan | I83: MAFRQAQAXXX
A84: 35 | B84: Lara Gamgoum | C84: 2017-18 | D84: Egypt | E84: HBKU | F84: 5,000 | G84: QA62 DOHB 0230 0277 0140 0100 2000 0 | H84: Doha Bank | I84: DOHBQAQA
A85: 36 | B85: Ummkulthum Ismail Umlai | C85: 2017-18 | D85: Kenya | E85: HBKU | F85: 7,000 | G85: QA48QISB000000000150464770019 | H85: Qatar Islamic Bank
A86: 37 | B86: Muhammad Ijaz | C86: 2017-18 | D86: Pakistan | E86: HBKU | F86: 7,000 | G86: QA51QNBA000000000035548307043 | H86: QNB
A87: 38 | B87: Muhammad Luqman | C87: 2017-18 | D87: Pakistan | E87: HBKU | F87: 7,000 | G87: QA32QNBA000000000035548766001 | H87: QNB
A88: 39 | B88: Simone Raponi | C88: 2017-18 | D88: Italy | E88: HBKU | F88: 7,000 | G88: QA81QNBA000000000035617741043 | H88: QNB

Sheet Argos data verification (hidden)
A1: QID | B1: SPRIDEN_ID | C1: SPRIDEN_FIRST_NAME | D1: SPRIDEN_MI | E1: SPRIDEN_LAST_NAME | F1: SFRSTCR_TERM_CODE | G1: ADMIT_TERM | H1: STATUS | I1: COLLEGE | J1: Level | K1: DEGREE | L1: SPONSOR | M1: SCHOLOARSHIP | N1: ANNUAL_INVOICE | O1: MAJOR | P1: PROGRAM | Q1: Email | R1: Nationality | S1: Preffered_Phone | T1: alternative_Phone
A2: 29701200074 | B2: 210004050 | C2: Selmane | D2: Nouar | E2: Tabet | F2: 201820 | G2: 201610 | H2: Active | I2: Science & Engineering | J2: Undergraduate | K2: Bachelor of Science | O2: Computer Engineering | P2: BSc in Computer Engineering | Q2: SELTABET@hbku.edu.qa | R2: Algeria | S2: =974-33693992 -> -33693018 | T2: =974-33057812 -> -33056838 | V2: 29701200074
A3: 29743400006 | B3: 210004850 | C3: Abdulrahman | D3: Mohamed | E3: ElKelani | F3: 201820 | G3: 201710 | H3: Active | I3: Science & Engineering | J3: Undergraduate | K3: Bachelor of Science | O3: Computer Engineering | P3: BSc in Computer Engineering | Q3: aelkelani@hbku.edu.qa | R3: Libyan Arab Jamahiriya | S3: -9747765151 | V3: 29743400006
A4: EB3088972 | B4: 210004022 | C4: Augusto | D4: Manuel | E4: Lucas | F4: 201820 | G4: 201610 | H4: Active | I4: Science & Engineering | J4: Undergraduate | K4: Bachelor of Science | O4: Computer Engineering | P4: BSc in Computer Engineering | Q4: AUGLUCAS@hbku.edu.qa | V4: EB3088972
B5: Philippines | C5: 974-33409868 | D5: 974-55534398
A6: 29858601871 | B6: 210007760 | C6: Asra | D6: Saeed | E6: Bashir | F6: 201820 | G6: 201810 | H6: Active | I6: Science & Engineering | J6: Undergraduate | K6: Bachelor of Science | O6: Computer Engineering | P6: BSc in Computer Engineering | Q6: assaeed@hbku.edu.qa | R6: Pakistan | S6: 0092-3370386746 | V6: 29858601871
A7: 29860800243 | B7: 210004650 | C7: Johanne Gren | D7: Duhay | E7: Medina | F7: 201820 | G7: 201710 | H7: Active | I7: Science & Engineering | J7: Undergraduate | K7: Bachelor of Science | O7: Computer Engineering | P7: BSc in Computer Engineering | Q7: jmedina@hbku.edu.qa | R7: Philippines | S7: 974-66067279 | V7: 29860800243
A8: 29758601464 | B8: 210004655 | C8: Shaheer | D8: Ahmed | E8: Bakali | F8: 201820 | G8: 201710 | H8: Active | I8: Science & Engineering | J8: Undergraduate | K8: Bachelor of Science | O8: Computer Engineering | P8: BSc in Computer Engineering | Q8: sbakali@hbku.edu.qa | R8: Pakistan | S8: 974-33842949 | V8: 29758601464
A9: 29899900257 | B9: 210004732 | C9: Rania | E9: Elsharafa | F9: 201820 | G9: 201710 | H9: Active | I9: Science & Engineering | J9: Undergraduate | K9: Bachelor of Science | O9: Computer Engineering | P9: BSc in Computer Engineering | Q9: relsharafa@hbku.edu.qa | R9: Palestinian Territory, Occupie | S9: 974-70997711 | V9: 29899900257
A10: 29981800536 | B10: 210007477 | C10: Mahmoud | D10: Mohamed | E10: ELraei | F10: 201820 | G10: 201810 | H10: Active | I10: Science & Engineering | J10: Undergraduate | K10: Bachelor of Science | O10: Computer Engineering | P10: BSc in Computer Engineering | Q10: melraei@hbku.edu.qa | R10: Egypt | S10: 00974-66582926 | V10: 29981800536
B11: 210004890 | C11: Tala | D11: Basem | E11: Anabtawi | F11: 201820 | G11: 201710 | H11: Active | I11: Science & Engineering | J11: Undergraduate | K11: Bachelor of Science | O11: Computer Engineering | P11: BSc in Computer Engineering | Q11: tanabtawi@hbku.edu.qa | R11: United States | S11: =974-77095894 -> -77094920
A12: 29863401677 | B12: 210004028 | C12: Mohamed | D12: Ahmed | E12: Al-horr | F12: 201820 | G12: 201610 | H12: Active | I12: Science & Engineering | J12: Undergraduate | K12: Bachelor of Science | O12: Computer Engineering | P12: BSc in Computer Engineering | Q12: MOHALHORR@hbku.edu.qa | R12: Qatar | V12: 29863401677
A13: 30081800701 | B13: 210007753 | C13: Shorok | E13: Ayman | F13: 201820 | G13: 201810 | H13: Active | I13: Science & Engineering | J13: Undergraduate | K13: Bachelor of Science | O13: Computer Engineering | P13: BSc in Computer Engineering | Q13: saghonim@hbku.edu.qa | R13: Egypt | S13: 974-55819823 | V13: 30081800701
A14: 29581802527 | B14: 210005311 | C14: Omar | D14: Elwalid | E14: Elshal | F14: 201820 | G14: 201710 | H14: Active | I14: Science & Engineering | J14: Undergraduate | K14: Bachelor of Science | O14: Computer Engineering | P14: BSc in Computer Engineering | Q14: oelshal@hbku.edu.qa | R14: Egypt | S14: 00974-33414517 | V14: 29581802527
B15: 210007479 | C15: Ghassan | D15: Marwan | E15: Saad | F15: 201820 | G15: 201810 | H15: Active | I15: Science & Engineering | J15: Undergraduate | K15: Bachelor of Science | O15: Computer Engineering | P15: BSc in Computer Engineering | Q15: gsaad@hbku.edu.qa | R15: Palestinian Territory, Occupie | S15: 00961-70659402
B16: 210005246 | C16: Mohamed | E16: Amara | F16: 201820 | G16: 201710 | H16: Active | I16: Science & Engineering | J16: Undergraduate | K16: Bachelor of Science | O16: Computer Engineering | P16: BSc in Computer Engineering | Q16: mamara@hbku.edu.qa | R16: Tunisia | S16: 974-66650902
A17: 29805000160 | B17: 210005821 | C17: Zinia | D17: Jaha | E17: Jalal | F17: 201820 | G17: 201810 | H17: Active | I17: Science & Engineering | J17: Undergraduate | K17: Bachelor of Science | O17: Computer Engineering | P17: BSc in Computer Engineering | Q17: zjalal@hbku.edu.qa | R17: Bangladesh | S17: 00974-77232744 | V17: 29805000160
A18: 29163403713 | B18: 210005479 | C18: Mohammad | D18: Ahmad | E18: Al-Sooj | F18: 201820 | G18: 201710 | H18: Active | I18: Science & Engineering | J18: Undergraduate | K18: Bachelor of Science | O18: Computer Engineering | P18: BSc in Computer Engineering | Q18: malsooj@hbku.edu.qa | R18: Qatar | S18: -77000044 | V18: 29163403713
A19: 29735601200 | B19: 210004030 | C19: Safiya | E19: Jan | F19: 201820 | G19: 201610 | H19: Active | I19: Science & Engineering | J19: Undergraduate | K19: Bachelor of Science | O19: Computer Engineering | P19: BSc in Computer Engineering | Q19: SAFKHAN@hbku.edu.qa | R19: India | S19: 974-33652356 | V19: 29735601200
B20: 210007478 | C20: Moza | D20: Hamad | E20: Alkaabi | F20: 201820 | G20: 201810 | H20: Active | I20: Science & Engineering | J20: Undergraduate | K20: Bachelor of Science | O20: Computer Engineering | P20: BSc in Computer Engineering | Q20: mhalkaabi@hbku.edu.qa | R20: Qatar | S20: 00974-55355622
A21: 29881801181 | B21: 210007960 | C21: Sara | E21: Gadelmoula | F21: 201820 | G21: 201810 | H21: Active | I21: Science & Engineering | J21: Undergraduate | K21: Bachelor of Science | O21: Computer Engineering | P21: BSc in Computer Engineering | Q21: sgadelmoula@hbku.edu.qa | R21: Egypt | S21: 974-66257667 | V21: 29881801181
A22: 29873600071 | B22: 210004020 | C22: Almiqdad | D22: Jamal Musa | E22: Elzein | F22: 201820 | G22: 201610 | H22: Active | I22: Science & Engineering | J22: Undergraduate | K22: Bachelor of Science | O22: Computer Engineering | P22: BSc in Computer Engineering | Q22: ALMElzein@hbku.edu.qa | V22: 29873600071
B23: Sudan | C23: 974-33234383 | D23: 974-55297507
A24: 29676000114 | B24: 210004651 | C24: Mhd Talal | E24: Al Mahmalji | F24: 201820 | G24: 201710 | H24: Active | I24: Science & Engineering | J24: Undergraduate | K24: Bachelor of Science | O24: Computer Engineering | P24: BSc in Computer Engineering | Q24: malmahmalji@hbku.edu.qa | R24: Syrian Arab Republic | S24: 00974-66845656 | V24: 29676000114
A25: 30063400623 | B25: 210007414 | C25: Mohammed | D25: Nasser N A | E25: Al-Naimi | F25: 201820 | G25: 201810 | H25: Active | I25: Science & Engineering | J25: Undergraduate | K25: Bachelor of Science | O25: Computer Engineering | P25: BSc in Computer Engineering | Q25: Mohammalnaimi@hbku.edu.qa | R25: Qatar | S25: 00974-66067380 | V25: 30063400623
A26: 29663402112 | B26: 210004023 | C26: Bashayer | D26: Abdulla | E26: Al-Mohammed | F26: 201820 | G26: 201610 | H26: Active | I26: Science & Engineering | J26: Undergraduate | K26: Bachelor of Science | O26: Computer Engineering | P26: BSc in Computer Engineering | Q26: BASALMOHAMMED@hbku.edu.qa | R26: Qatar | V26: 29663402112
A27: 935390 | B27: 210004232 | C27: Muza | D27: Jassim | E27: Alobaidan | F27: 201820 | G27: 201610 | H27: Active | I27: Science & Engineering | J27: Undergraduate | K27: Bachelor of Science | O27: Computer Engineering | P27: BSc in Computer Engineering | Q27: malobaidan@hbku.edu.qa | R27: Qatar | V27: 935390
A28: 29763403228 | B28: 210004049 | C28: Zaynab | D28: Hussein | E28: Makki | F28: 201820 | G28: 201610 | H28: Active | I28: Science & Engineering | J28: Undergraduate | K28: Bachelor of Science | O28: Computer Engineering | P28: BSc in Computer Engineering | Q28: ZAYMAKKI@hbku.edu.qa | R28: Qatar | V28: 29763403228
A29: 11810 | B29: 210004200 | C29: Fatima | D29: Abdulla | E29: Al-thani | F29: 201820 | G29: 201610 | H29: Active | I29: Science & Engineering | J29: Undergraduate | K29: Bachelor of Science | O29: Computer Engineering | P29: BSc in Computer Engineering | Q29: falthani@hbku.edu.qa | R29: Qatar | S29: 974-66739997 | V29: 11810
A30: 29863402012 | B30: 210004201 | C30: Muna | D30: Abdulaziz | E30: Al-sulaiti | F30: 201820 | G30: 201610 | H30: Active | I30: Science & Engineering | J30: Undergraduate | K30: Bachelor of Science | O30: Computer Engineering | P30: BSc in Computer Engineering | Q30: MUNALSULAITI@hbku.edu.qa | R30: Qatar | S30: 974-55225441 | V30: 29863402012
A31: 29842200061 | B31: 210004595 | C31: kenana | E31: Dalle | F31: 201820 | G31: 201710 | H31: Active | I31: Science & Engineering | J31: Undergraduate | K31: Bachelor of Science | O31: Computer Engineering | P31: BSc in Computer Engineering | Q31: kdalle@hbku.edu.qa | R31: Lebanon | S31: 00974-66917579 | V31: 29842200061
B32: 210007180 | C32: Mohamed | E32: Al Mohannadi | F32: 201820 | G32: 201810 | H32: Active | I32: Science & Engineering | J32: Undergraduate | K32: Bachelor of Science | O32: Computer Engineering | P32: BSc in Computer Engineering | Q32: mohaalmohannadi@hbku.edu.qa | R32: Qatar | S32: =974-70301980 -> -70301006
A33: 28299900331 | B33: 210004902 | C33: Amna | D33: Solyman Zaid | E33: AbouNahia | F33: 201820 | G33: 201710 | H33: Active | I33: Science & Engineering | J33: Graduate | K33: Master of Science | O33: Data Science and Engineering | P33: Data Science and Engineering | Q33: aabounahia@hbku.edu.qa | R33: Palestinian Territory, Occupie | S33: =974-55439343 -> -55438369 | V33: 28299900331
A34: 29458601672 | B34: 210008040 | C34: Faran | E34: Farooq | F34: 201820 | G34: 201810 | H34: Active | I34: Science & Engineering | J34: Graduate | K34: Master of Science | O34: Data Science and Engineering | P34: Data Science and Engineering | Q34: fafarooq@hbku.edu.qa | R34: Pakistan | S34: 00974-3365 | V34: 29458601672
A35: 26284000198 | B35: 210007551 | C35: Saleh | E35: Musleh | F35: 201820 | G35: 201810 | H35: Active | I35: Science & Engineering | J35: Graduate | K35: Master of Science | O35: Data Science and Engineering | P35: Data Science and Engineering | Q35: smusleh@hbku.edu.qa | R35: United States | S35: 974-5522 | V35: 26284000198
A36: 28481807826 | B36: 210005303 | C36: Omar | D36: Mohamed Marzouk | E36: Ibrahim | F36: 201820 | G36: 201710 | H36: Active | I36: Science & Engineering | J36: Graduate | K36: Master of Science | O36: Data Science and Engineering | P36: Data Science and Engineering | Q36: oibrahim@hbku.edu.qa | R36: Egypt | S36: =974-77775249 -> -77774275 | V36: 28481807826
A37: 29358600442 | B37: 210004508 | C37: Aqsa | E37: Nazir | F37: 201820 | G37: 201710 | H37: Active | I37: Science & Engineering | J37: Graduate | K37: Master of Science | O37: Data Science and Engineering | P37: Data Science and Engineering | Q37: anazir@hbku.edu.qa | R37: Pakistan | S37: 974-77666369 | V37: 29358600442
A38: 27699900013 | B38: 210005172 | C38: Wael | D38: Rady Mohamed Khalil | E38: Radwan | F38: 201820 | G38: 201710 | H38: Active | I38: Science & Engineering | J38: Graduate | K38: Master of Science | O38: Data Science and Engineering | P38: Data Science and Engineering | Q38: wradwan@hbku.edu.qa | R38: Palestinian Territory, Occupie | S38: 974-55563795 | V38: 27699900013
A39: 28481809041 | B39: 210007436 | C39: Ahmed | D39: Mosaad | E39: Eldaraa | F39: 201820 | G39: 201810 | H39: Active | I39: Science & Engineering | J39: Graduate | K39: Master of Science | O39: Data Science and Engineering | P39: Data Science and Engineering | Q39: aeldaraa@hbku.edu.qa | R39: Egypt | S39: 974-74438956 | V39: 28481809041
A40: 28881811099 | B40: 210008039 | C40: Anas | E40: Abdel Rahman | F40: 201820 | G40: 201810 | H40: Active | I40: Science & Engineering | J40: Graduate | K40: Master of Science | O40: Data Science and Engineering | P40: Data Science and Engineering | Q40: aabdelrahman@hbku.edu.qa | R40: Egypt | S40: =974-33733227 -> -33732253 | V40: 28881811099
A41: 29235620528 | B41: 210004339 | C41: Dabeeruddin | E41: Syed | F41: 201820 | G41: 201710 | H41: Active | I41: Science & Engineering | J41: Graduate | K41: Master of Science | O41: Data Science and Engineering | P41: Data Science and Engineering | Q41: dsyed@hbku.edu.qa | R41: India | S41: 91-8790020154 | V41: 29235620528
A42: 28763400514 | B42: 210008017 | C42: Aljazi | D42: Nasseer | E42: Aljabor | F42: 201820 | G42: 201810 | H42: Active | I42: Science & Engineering | J42: Graduate | K42: Master of Science | O42: Data Science and Engineering | P42: Data Science and Engineering | Q42: aaljabor@hbku.edu.qa | R42: Qatar | S42: 974-55901737 | V42: 28763400514
A43: 29263404368 | B43: 210005068 | C43: Abdulaziz | D43: Yousuf | E43: Al-Homaid | F43: 201820 | G43: 201710 | H43: Active | I43: Science & Engineering | J43: Graduate | K43: Master of Science | O43: Data Science and Engineering | P43: Data Science and Engineering | Q43: aalhomaid@hbku.edu.qa | R43: Qatar | S43: 974-55869646 | V43: 29263404368
A44: 29363404074 | B44: 210005441 | C44: Alanood | E44: Alkuwari | F44: 201820 | G44: 201710 | H44: Active | I44: Science & Engineering | J44: Graduate | K44: Master of Science | O44: Data Science and Engineering | P44: Data Science and Engineering | Q44: alaalkuwari@hbku.edu.qa | R44: Qatar | S44: 00974-55136677 | V44: 29363404074
A45: 29463401652 | B45: 210007942 | C45: Noora | E45: Al-Mulla | F45: 201820 | G45: 201810 | H45: Active | I45: Science & Engineering | J45: Graduate | K45: Master of Science | O45: Data Science and Engineering | P45: Data Science and Engineering | Q45: noalmulla@hbku.edu.qa | R45: Qatar | S45: 974-55276633 | V45: 29463401652
A46: 29081801098 | B46: 210005423 | C46: Shaymaa | D46: Fawzi | E46: Khalifa | F46: 201820 | G46: 201710 | H46: Active | I46: Science & Engineering | J46: Graduate | K46: Master of Science | O46: Data Science and Engineering | P46: Data Science and Engineering | Q46: shkhalifa@hbku.edu.qa | R46: Egypt | S46: 00974-55063740 | T46: 00974-55063740 | V46: 29081801098
A47: 29163402686 | B47: 210005331 | C47: Noora | D47: Mohammed | E47: Al-Maslamani | F47: 201820 | G47: 201710 | H47: Active | I47: Science & Engineering | J47: Graduate | K47: Master of Science | O47: Data Science and Engineering | P47: Data Science and Engineering | Q47: noalmaslamani@hbku.edu.qa | R47: Qatar | S47: =974-55444592 -> -55443618 | V47: 29163402686
A48: 29563404777 | B48: 210006204 | C48: Sarah | E48: Al Hussaini | F48: 201820 | G48: 201810 | H48: Active | I48: Science & Engineering | J48: Graduate | K48: Master of Science | O48: Data Science and Engineering | P48: Data Science and Engineering | Q48: salhussaini@hbku.edu.qa | R48: Qatar | S48: 974-66168151 | V48: 29563404777
A49: 27768200192 | B49: 210005765 | C49: sharoug | E49: alkhater | F49: 201820 | G49: 201810 | H49: Active | I49: Science & Engineering | J49: Graduate | K49: Master of Science | O49: Data Science and Engineering | P49: Data Science and Engineering | Q49: shalkhater@hbku.edu.qa | R49: Qatar | S49: 974-55473733 | V49: 27768200192
A50: 29299900393 | B50: 210005071 | C50: ALI | D50: KHALIL | E50: ELDOUS | F50: 201820 | G50: 201710 | H50: Active | I50: Science & Engineering | J50: Graduate | K50: Master of Science | O50: Data Science and Engineering | P50: Data Science and Engineering | Q50: aeldous@hbku.edu.qa | R50: Palestinian Territory, Occupie | S50: 00974-66979903 | V50: 29299900393
A51: 29235620532 | B51: 210004883 | C51: Ameema | E51: Zainab | F51: 201820 | G51: 201710 | H51: Active | I51: Science & Engineering | J51: Graduate | K51: Master of Science | O51: Data Science and Engineering | P51: Data Science and Engineering | Q51: azainab@hbku.edu.qa | R51: India | S51: 91-8790765040 | V51: 29235620532
A52: 29263402031 | B52: 210008133 | C52: Majed | D52: Mohammed | E52: Al-Nisf | F52: 201820 | G52: 201810 | H52: Active | I52: Science & Engineering | J52: Graduate | K52: Master of Science | O52: Data Science and Engineering | P52: Data Science and Engineering | Q52: maalnisf@hbku.edu.qa | R52: Qatar | S52: 00974-66667454 | V52: 29263402031
A53: 29063403595 | B53: 210005329 | C53: Afaf | D53: Omar | E53: AlSherawi | F53: 201820 | G53: 201710 | H53: Active | I53: Science & Engineering | J53: Graduate | K53: Master of Science | O53: Data Science and Engineering | P53: Data Science and Engineering | Q53: aalsherawi@hbku.edu.qa | R53: Qatar | S53: 00974-66993991 | V53: 29063403595
A54: 28673600922 | B54: 210007239 | C54: Naela | E54: Mahmoud | F54: 201820 | G54: 201810 | H54: Active | I54: Science & Engineering | J54: Graduate | K54: Master of Science | O54: Genomic and Precision Medicine | P54: MS Genomic &Precision Medicine | Q54: namahmoud@hbku.edu.qa | R54: Sudan | S54: 00974-33843138 | V54: 28673600922
A55: 28340000155 | B55: 210008069 | C55: Zenat | D55: Mohmmd | E55: Kanfosh | F55: 201820 | G55: 201810 | H55: Active | I55: Science & Engineering | J55: Graduate | K55: Master of Science | O55: Genomic and Precision Medicine | P55: MS Genomic &Precision Medicine | Q55: zkanfosh@hbku.edu.qa | R55: Jordan | S55: 00974-55732014 | V55: 28340000155
A56: 29540000180 | B56: 210007522 | C56: Nuha | D56: Taysir | E56: Swaidan | F56: 201820 | G56: 201810 | H56: Active | I56: Science & Engineering | J56: Graduate | K56: Master of Science | O56: Genomic and Precision Medicine | P56: MS Genomic &Precision Medicine | Q56: nswaidan@hbku.edu.qa | R56: Jordan | S56: =974-33270477 -> -33269503 | V56: 29540000180
A57: 29473600123 | B57: 210007817 | C57: Israa | E57: Elbashir | F57: 201820 | G57: 201810 | H57: Active | I57: Science & Engineering | J57: Graduate | K57: Master of Science | O57: Genomic and Precision Medicine | P57: MS Genomic &Precision Medicine | Q57: ielbashir@hbku.edu.qa | R57: Sudan | S57: 974-55620389 | V57: 29473600123
A58: 28336400369 | B58: 210008024 | C58: Dalal | D58: Abdureda | E58: Alsharshani | F58: 201820 | G58: 201810 | H58: Active | I58: Science & Engineering | J58: Graduate | K58: Master of Science | O58: Genomic and Precision Medicine | P58: MS Genomic &Precision Medicine | Q58: dalsharshani@hbku.edu.qa | R58: Qatar | S58: 974-66233225 | V58: 28336400369
A59: 29370600178 | B59: 210008023 | C59: Munira | D59: Ali | E59: Aden | F59: 201820 | G59: 201810 | H59: Active | I59: Science & Engineering | J59: Graduate | K59: Master of Science | O59: Genomic and Precision Medicine | P59: MS Genomic &Precision Medicine | Q59: maden@hbku.edu.qa | R59: Somalia | S59: 974-33733138 | V59: 29370600178
A60: 28508000349 | B60: 210007494 | C60: IDRIS | D60: OMER | E60: MOHAMMED | F60: 201820 | G60: 201810 | H60: Active | I60: Science & Engineering | J60: Graduate | K60: Master of Science | O60: Genomic and Precision Medicine | P60: MS Genomic &Precision Medicine | Q60: imohammed@hbku.edu.qa | R60: Eritrea | S60: 6601-66014518 | T60: 00974-66014518 | V60: 28508000349
A61: 29540000179 | B61: 210006692 | C61: Areej | E61: Mesleh | F61: 201820 | G61: 201810 | H61: Active | I61: Science & Engineering | J61: Graduate | K61: Master of Science | O61: Genomic and Precision Medicine | P61: MS Genomic &Precision Medicine | Q61: amesleh@hbku.edu.qa | R61: Jordan | S61: 974-33686833 | V61: 29540000179
A62: 29263404698 | B62: 210005169 | C62: Ahmad | D62: nasser | E62: Alkuwari | F62: 201820 | G62: 201710 | H62: Active | I62: Science & Engineering | J62: Graduate | K62: Master of Science | O62: Cyber Security | P62: MSc Cybersecurity | Q62: ahalkuwari@hbku.edu.qa | R62: Qatar | S62: 974-66995549 | V62: 29263404698
A63: 28863401880 | B63: 210005380 | C63: Amna | D63: Nasser | E63: Almejali | F63: 201820 | G63: 201710 | H63: Active | I63: Science & Engineering | J63: Graduate | K63: Master of Science | O63: Cyber Security | P63: MSc Cybersecurity | Q63: aalmejali@hbku.edu.qa | R63: Qatar | S63: 974-33331812 | V63: 28863401880
A64: 28863402788 | B64: 210007826 | C64: SHAHEEN | D64: SAAD | E64: AL-KAABI | F64: 201820 | G64: 201810 | H64: Active | I64: Science & Engineering | J64: Graduate | K64: Master of Science | O64: Cyber Security | P64: MSc Cybersecurity | Q64: salkaabi@hbku.edu.qa | R64: Qatar | S64: 974-5525 | V64: 28863402788
B65: 210008015 | C65: Essa | E65: AlKubaisi | F65: 201820 | G65: 201810 | H65: Active | I65: Science & Engineering | J65: Graduate | K65: Master of Science | O65: Cyber Security | P65: MSc Cybersecurity | Q65: ealkubaisi@hbku.edu.qa | R65: Qatar | S65: 00974-55887118
A66: 28863400595 | B66: 210005417 | C66: Mohammed | D66: Eassa | E66: Alshriem | F66: 201820 | G66: 201710 | H66: Active | I66: Science & Engineering | J66: Graduate | K66: Master of Science | O66: Cyber Security | P66: MSc Cybersecurity | Q66: malshriem@hbku.edu.qa | R66: Qatar | S66: 974-70006060 | V66: 28863400595
A67: 29363403811 | B67: 210005795 | C67: Saeed | D67: Hamad | E67: Al-Marri | F67: 201820 | G67: 201810 | H67: Active | I67: Science & Engineering | J67: Graduate | K67: Master of Science | O67: Cyber Security | P67: MSc Cybersecurity | Q67: saeedalmarri@hbku.edu.qa | R67: Qatar | S67: 00974-55555099 | V67: 29363403811
A68: 29363401576 | B68: 210005410 | C68: Maryam | E68: Al-Fehani | F68: 201820 | G68: 201710 | H68: Active | I68: Science & Engineering | J68: Graduate | K68: Master of Science | O68: Cyber Security | P68: MSc Cybersecurity | Q68: malfehani@hbku.edu.qa | R68: Qatar | S68: 00974-77772332 | V68: 29363401576
A69: 28881800414 | B69: 210007516 | C69: Omar | D69: Adel | E69: Ibrahim | F69: 201820 | G69: 201810 | H69: Active | I69: Science & Engineering | J69: Graduate | K69: Master of Science | O69: Cyber Security | P69: MSc Cybersecurity | Q69: oaibrahim@hbku.edu.qa | R69: Egypt | S69: 974-66468441 | V69: 28881800414
A70: 29263402873 | B70: 210007875 | C70: Maryam | D70: Jamal | E70: Al-Ammari | F70: 201820 | G70: 201810 | H70: Active | I70: Science & Engineering | J70: Graduate | K70: Master of Science | O70: Cyber Security | P70: MSc Cybersecurity | Q70: malammari@hbku.edu.qa | R70: Qatar | S70: 00974-55926999 | V70: 29263402873
A71: 28763402948 | B71: 210005412 | C71: Fatima | D71: Ahmed | E71: Saifaldeen | F71: 201820 | G71: 201710 | H71: Active | I71: Science & Engineering | J71: Graduate | K71: Master of Science | O71: Cyber Security | P71: MSc Cybersecurity | Q71: fsaifaldeen@hbku.edu.qa | R71: Qatar | S71: 00974-55050977 | V71: 28763402948
A72: 29435601181 | B72: 210005297 | C72: Priyanka | D72: GopalSinh | E72: Dodia | F72: 201820 | G72: 201710 | H72: Active | I72: Science & Engineering | J72: Graduate | K72: Master of Science | O72: Cyber Security | P72: MSc Cybersecurity | Q72: pdodia@hbku.edu.qa | R72: India | S72: 974-44877690 | V72: 29435601181
A73: 29163400888 | B73: 210008016 | C73: Abdulrahman | D73: Misfer | E73: Al-Hababi | F73: 201820 | G73: 201810 | H73: Active | I73: Science & Engineering | J73: Graduate | K73: Master of Science | O73: Cyber Security | P73: MSc Cybersecurity | Q73: aalhababi@hbku.edu.qa | R73: Qatar | S73: 9474-33333423 | V73: 29163400888
A74: 29458601621 | B74: 210007878 | C74: Syed Hassan | E74: Mehdi | F74: 201820 | G74: 201810 | H74: Active | I74: Science & Engineering | J74: Graduate | K74: Master of Science | O74: Cyber Security | P74: MSc Cybersecurity | Q74: smehdi@hbku.edu.qa | R74: Pakistan | S74: 00974-66326036 | V74: 29458601621
A75: 29363403828 | B75: 210008035 | C75: Yousef | D75: Eassa | E75: Al-Shriem | F75: 201820 | G75: 201810 | H75: Active | I75: Science & Engineering | J75: Graduate | K75: Master of Science | O75: Cyber Security | P75: MSc Cybersecurity | Q75: yalshriem@hbku.edu.qa | R75: Qatar | S75: 974-66661233 | V75: 29363403828
A76: 29463401465 | B76: 210008123 | C76: Adnan | D76: Mahmoud | E76: Fekri | F76: 201820 | G76: 201810 | H76: Active | I76: Science & Engineering | J76: Graduate | K76: Master of Science | O76: Cyber Security | P76: MSc Cybersecurity | Q76: afekri@hbku.edu.qa | R76: Qatar | S76: 00974-66677882 | V76: 29463401465
A77: 28363401526 | B77: 210005393 | C77: Eman | D77: Mohammed | E77: Radi | F77: 201820 | G77: 201710 | H77: Active | I77: Science & Engineering | J77: Graduate | K77: Master of Science | O77: Cyber Security | P77: MSc Cybersecurity | Q77: eradi@hbku.edu.qa | R77: Qatar | S77: 00974-55811631 | V77: 28363401526
A78: 28599900087 | B78: 210005180 | C78: Eman | D78: Mohamed | E78: Abouzohri | F78: 201820 | G78: 201710 | H78: Active | I78: Science & Engineering | J78: Graduate | K78: Master of Science | O78: Cyber Security | P78: MSc Cybersecurity | Q78: eabouzohri@hbku.edu.qa | R78: Qatar | S78: 00974-33745131 | V78: 28599900087
A79: 29358600740 | B79: 210005257 | C79: Talal | E79: Shoeb | F79: 201820 | G79: 201710 | H79: Active | I79: Science & Engineering | J79: Graduate | K79: Master of Science | O79: Cyber Security | P79: MSc Cybersecurity | Q79: tshoeb@hbku.edu.qa | R79: Pakistan | S79: 974-77155015 | V79: 29358600740
A80: 28801200147 | B80: 210005293 | C80: Nour Elhouda | D80: Nouar | E80: Tabet | F80: 201820 | G80: 201710 | H80: Active | I80: Science & Engineering | J80: Graduate | K80: Master of Science | O80: Cyber Security | P80: MSc Cybersecurity | Q80: notabet@hbku.edu.qa | R80: Algeria | S80: 00974-55453504 | V80: 28801200147
A81: 29063402028 | B81: 210005171 | C81: Ahmed | D81: Khalil | E81: Abdulla | F81: 201820 | G81: 201710 | H81: Active | I81: Science & Engineering | J81: Graduate | K81: Master of Science | O81: Cyber Security | P81: MSc Cybersecurity | Q81: ahabdulla@hbku.edu.qa | R81: Qatar | S81: 974-55214321 | V81: 29063402028
B82: 210008037 | C82: Isra | D82: Mohamed | E82: Ali | F82: 201820 | G82: 201810 | H82: Active | I82: Science & Engineering | J82: Graduate | K82: Master of Science | O82: Cyber Security | P82: MSc Cybersecurity | Q82: Isali@hbku.edu.qa | R82: Libyan Arab Jamahiriya | S82: 00974-33166187
A83: 29299900234 | B83: 210005578 | C83: Hala | E83: Abou El Oula | F83: 201820 | G83: 201810 | H83: Active | I83: Science & Engineering | J83: Graduate | K83: Master of Science | O83: Cyber Security | P83: MSc Cybersecurity | Q83: heloula@hbku.edu.qa | R83: Palestinian Territory, Occupie | S83: 00974-55943009 | V83: 29299900234
A84: 29440000587 | B84: 210005386 | C84: Aseel | D84: Ahmad | E84: Ghazal | F84: 201820 | G84: 201710 | H84: Active | I84: Science & Engineering | J84: Graduate | K84: Master of Science | O84: Cyber Security | P84: MSc Cybersecurity | Q84: aghazal@hbku.edu.qa | R84: Jordan | S84: 974-66629110 | V84: 29440000587
A85: 28342200049 | B85: 210004888 | C85: Mahmoud | D85: Mohamed | E85: El Achi | F85: 201820 | G85: 201710 | H85: Active | I85: Science & Engineering | J85: Graduate | K85: Master of Science | O85: Cyber Security | P85: MSc Cybersecurity | Q85: maelachi@hbku.edu.qa | R85: Lebanon | S85: 974-5 | V85: 28342200049
A86: 29088600352 | B86: 210006089 | C86: MOHAMMED M. A. | E86: AL-SADI | F86: 201820 | G86: 201810 | H86: Active | I86: Science & Engineering | J86: Graduate | K86: Master of Science | O86: Cyber Security | P86: MSc Cybersecurity | Q86: mmalsadi@hbku.edu.qa | R86: Yemen | S86: 974-55311562 | V86: 29088600352
A87: 28863401330 | B87: 210005070 | C87: Saleh | E87: Almannai | F87: 201820 | G87: 201710 | H87: Active | I87: Science & Engineering | J87: Graduate | K87: Master of Science | O87: Cyber Security | P87: MSc Cybersecurity | Q87: salalmannai@hbku.edu.qa | R87: Qatar | S87: 974-66166662 | V87: 28863401330
A88: 28876000059 | B88: 210007524 | C88: Sura | E88: Takiddin | F88: 201820 | G88: 201810 | H88: Active | I88: Science & Engineering | J88: Graduate | K88: Master of Science | O88: Cyber Security | P88: MSc Cybersecurity | Q88: stakiddin@hbku.edu.qa | R88: Syrian Arab Republic | S88: 00974-55334337 | V88: 28876000059
A89: 28963404316 | B89: 210005405 | C89: Abdulaziz | E89: Al-Thani | F89: 201820 | G89: 201710 | H89: Active | I89: Science & Engineering | J89: Graduate | K89: Master of Science | O89: Cyber Security | P89: MSc Cybersecurity | Q89: abdulazizalthani@hbku.edu.qa | R89: Qatar | S89: 00974-55883084 | V89: 28963404316
A90: 29363400090 | B90: 210005327 | C90: Abdulaziz | D90: Hamed | E90: Al-Marwani | F90: 201820 | G90: 201710 | H90: Active | I90: Science & Engineering | J90: Graduate | K90: Master of Science | O90: Cyber Security | P90: MSc Cybersecurity | Q90: aalmarwani@hbku.edu.qa | R90: Qatar | S90: 00974-55594428 | V90: 29363400090
A91: 29435601629 | B91: 210004495 | C91: Bushra | E91: Memon | F91: 201820 | G91: 201710 | H91: Active | I91: Science & Engineering | J91: Graduate | K91: Masters | O91: Biomedical Biological and Sc | P91: MSc in Biol & Biomed scien | Q91: bmemon@hbku.edu.qa | R91: India | S91: 974-77827080 | V91: 29435601629
A92: 29063403815 | B92: 210005286 | C92: Ghada | E92: Mubarak | F92: 201820 | G92: 201710 | H92: Active | I92: Science & Engineering | J92: Graduate | K92: Masters | O92: Biomedical Biological and Sc | P92: MSc in Biol & Biomed scien | Q92: gmubarak@hbku.edu.qa | R92: Qatar | S92: 5544-4649 | T92: 974-55444619 | V92: 29063403815
A93: 28955400010 | B93: 210005072 | C93: Heba | D93: Rashid | E93: Yasin | F93: 201820 | G93: 201710 | H93: Active | I93: Science & Engineering | J93: Graduate | K93: Masters | O93: Biomedical Biological and Sc | P93: MSc in Biol & Biomed scien | Q93: hyasin@hbku.edu.qa | R93: New Zealand | S93: =974-55048317 -> -55047343 | V93: 28955400010
A94: 29163403820 | B94: 210005811 | C94: Maha | D94: Abdulla | E94: AL-Thani | F94: 201820 | G94: 201810 | H94: Active | I94: Science & Engineering | J94: Graduate | K94: Masters | O94: Biomedical Biological and Sc | P94: MSc in Biol & Biomed scien | Q94: mahalthani@hbku.edu.qa | R94: Qatar | S94: 00974-66433003 | V94: 29163403820
A95: 28663402865 | B95: 210005277 | C95: Muna | D95: Nasser | E95: AL-Noubi | F95: 201820 | G95: 201710 | H95: Active | I95: Science & Engineering | J95: Graduate | K95: Masters | O95: Biomedical Biological and Sc | P95: MSc in Biol & Biomed scien | Q95: malnoubi@hbku.edu.qa | R95: Qatar | S95: 00974-55658189 | V95: 28663402865
A96: 29081800115 | B96: 210004449 | C96: Karim | D96: Esmat | E96: Shalaby | F96: 201820 | G96: 201710 | H96: Active | I96: Science & Engineering | J96: Graduate | K96: Masters | O96: Biomedical Biological and Sc | P96: MSc in Biol & Biomed scien | Q96: keshalaby@hbku.edu.qa | R96: Egypt | S96: -70791177 | V96: 29081800115
A97: 29140000221 | B97: 210003935 | C97: Sara | D97: Fuad Ahmed | E97: Owaida | F97: 201820 | G97: 201610 | H97: Active | I97: Science & Engineering | J97: Graduate | K97: Masters | O97: Biomedical Biological and Sc | P97: MSc in Biol & Biomed scien | Q97: SarOwaida@hbku.edu.qa | R97: Jordan | V97: 29140000221
A98: 29063401821 | B98: 210005266 | C98: Amera | D98: Khalil | E98: Al Saadoun | F98: 201820 | G98: 201710 | H98: Active | I98: Science & Engineering | J98: Graduate | K98: Masters | O98: Biomedical Biological and Sc | P98: MSc in Biol & Biomed scien | Q98: aalsaadoun@hbku.edu.qa | R98: Qatar | S98: 00974-55231412 | V98: 29063401821
A99: 29476000237 | B99: 210007511 | C99: Rim | D99: Abdul Kader | E99: Mousa Bacha | F99: 201820 | G99: 201810 | H99: Active | I99: Science & Engineering | J99: Graduate | K99: Masters | O99: Biomedical Biological and Sc | P99: MSc in Biol & Biomed scien | Q99: rbacha@hbku.edu.qa | R99: Syrian Arab Republic | S99: 00974-55052919 | V99: 29476000237
A100: 28563404076 | B100: 210004882 | C100: Maryam | D100: Saleh | E100: Al Motawa | F100: 201820 | G100: 201710 | H100: Active | I100: Science & Engineering | J100: Graduate | K100: Masters | O100: Biomedical Biological and Sc | P100: MSc in Biol & Biomed scien | Q100: maalmotawa@hbku.edu.qa | R100: Qatar | S100: =974-55590040 -> -55589066 | V100: 28563404076
A101: 29573600364 | B101: 210006493 | C101: Asma | E101: Elashi | F101: 201820 | G101: 201810 | H101: Active | I101: Science & Engineering | J101: Graduate | K101: Masters | O101: Biomedical Biological and Sc | P101: MSc in Biol & Biomed scien | Q101: aelashi@hbku.edu.qa | R101: Palestinian Territory, Occupie | S101: 00974-55600989 | V101: 29573600364
A102: 29563404133 | B102: 210007510 | C102: Aisha | D102: Abdulla H A | E102: Al-Mulla | F102: 201820 | G102: 201810 | H102: Active | I102: Science & Engineering | J102: Graduate | K102: Masters | O102: Biomedical Biological and Sc | P102: MSc in Biol & Biomed scien | Q102: aaalmulla@hbku.edu.qa | R102: Qatar | S102: 44-7479474990 | V102: 29563404133
A103: 28335650815 | B103: 210006883 | C103: Gaurav | E103: Thareja | F103: 201820 | G103: 201810 | H103: Active | I103: Science & Engineering | J103: Graduate | K103: Masters | O103: Biomedical Biological and Sc | P103: MSc in Biol & Biomed scien | Q103: gthareja@hbku.edu.qa | R103: India | S103: 974-70730139 | V103: 28335650815
B104: 210004411 | C104: Sara | E104: ALTamimi | F104: 201820 | G104: 201710 | H104: Active | I104: Science & Engineering | J104: Graduate | K104: Masters | O104: Biomedical Biological and Sc | P104: MSc in Biol & Biomed scien | Q104: saaltamimi@hbku.edu.qa | R104: Qatar | S104: 00974-55898004
A105: 28540000288 | B105: 210004429 | C105: Yasmeen | D105: Mahmoud | E105: Salameh | F105: 201820 | G105: 201710 | H105: Active | I105: Science & Engineering | J105: Graduate | K105: Masters | O105: Biomedical Biological and Sc | P105: MSc in Biol & Biomed scien | Q105: ysalameh@hbku.edu.qa | R105: Jordan | S105: 974-55474377 | V105: 28540000288
A106: 29550400325 | B106: 210007214 | C106: Sarah | E106: Namany | F106: 201820 | G106: 201810 | H106: Active | I106: Science & Engineering | J106: Graduate | K106: Masters | O106: Sustainable Energy | P106: MSc in Sustainable Energy | Q106: snamany@hbku.edu.qa | R106: Morocco | S106: 212-616508812 | V106: 29550400325
A107: 29535600084 | B107: 210006683 | C107: Sabah | E107: Mariyam | F107: 201820 | G107: 201810 | H107: Active | I107: Science & Engineering | J107: Graduate | K107: Masters | O107: Sustainable Energy | P107: MSc in Sustainable Energy | Q107: smariyam@hbku.edu.qa | R107: India | S107: 00974-55638125 | V107: 29535600084
A108: 29063402440 | B108: 210003998 | C108: Mohammed | D108: Ibrahim | E108: Al-Housani | F108: 201820 | G108: 201610 | H108: Active | I108: Science & Engineering | J108: Graduate | K108: Masters | O108: Sustainable Energy | P108: MSc in Sustainable Energy | Q108: malhousani@hbku.edu.qa | R108: Qatar | S108: -55393355 | V108: 29063402440
B109: 210004514 | C109: Meaad | D109: Yousef | E109: Al-Jassim | F109: 201820 | G109: 201710 | H109: Active | I109: Science & Engineering | J109: Graduate | K109: Masters | O109: Sustainable Energy | P109: MSc in Sustainable Energy | Q109: maljassim@hbku.edu.qa | R109: Qatar | S109: 00974-55009976
A110: 29040001275 | B110: 210004675 | C110: Hani | E110: Ababneh | F110: 201820 | G110: 201710 | H110: Active | I110: Science & Engineering | J110: Graduate | K110: Masters | O110: Sustainable Energy | P110: MSc in Sustainable Energy | Q110: hababneh@hbku.edu.qa | R110: Jordan | S110: 974-33487478 | T110: 00966-592255626 | V110: 29040001275
A111: 29363402315 | B111: 210005308 | C111: Wadha | E111: Al-Thani | F111: 201820 | G111: 201810 | H111: Active | I111: Science & Engineering | J111: Graduate | K111: Masters | O111: Sustainable Energy | P111: MSc in Sustainable Energy | Q111: wadhaalthani@hbku.edu.qa | R111: Qatar | S111: =974-55558707 -> -55557733 | V111: 29363402315
A112: 29363403169 | B112: 210005024 | C112: Abdulwahab | D112: Abdulla | E112: Bukshaisha | F112: 201820 | G112: 201710 | H112: Active | I112: Science & Engineering | J112: Graduate | K112: Masters | O112: Sustainable Energy | P112: MSc in Sustainable Energy | Q112: abukshaisha@hbku.edu.qa | R112: Qatar | S112: 00974-55103399 | V112: 29363403169
A113: 29163402921 | B113: 210004513 | C113: Aisha | D113: Hamad | E113: Al-Rumaihi | F113: 201820 | G113: 201710 | H113: Active | I113: Science & Engineering | J113: Graduate | K113: Masters | O113: Sustainable Energy | P113: MSc in Sustainable Energy | Q113: aalrumaihi@hbku.edu.qa | R113: Qatar | S113: 00974-33553366 | V113: 29163402921
A114: 29063401228 | B114: 210004215 | C114: Sara | D114: S. | E114: AlMulla | F114: 201820 | G114: 201610 | H114: Active | I114: Science & Engineering | J114: Graduate | K114: Masters | O114: Sustainable Energy | P114: MSc in Sustainable Energy | Q114: salmulla@hbku.edu.qa | R114: Qatar | S114: 974-55546226 | V114: 29063401228
A115: 29079200549 | B115: 210004803 | C115: Ebubekir | D115: Sıddık | E115: Sahin | F115: 201820 | G115: 201710 | H115: Active | I115: Science & Engineering | J115: Graduate | K115: Masters | O115: Sustainable Energy | P115: MSc in Sustainable Energy | Q115: esahin@hbku.edu.qa | R115: Turkey | S115: 0090-5066837271 | V115: 29079200549
A116: 29263403066 | B116: 210007429 | C116: Saleh | E116: Al-Hor | F116: 201820 | G116: 201810 | H116: Active | I116: Science & Engineering | J116: Graduate | K116: Masters | O116: Sustainable Energy | P116: MSc in Sustainable Energy | Q116: salhor@hbku.edu.qa | R116: Qatar | S116: 00974-55350504 | V116: 29263403066
A117: 29163403535 | B117: 210005322 | C117: Maryam | D117: Ali | E117: Al-Hail | F117: 201820 | G117: 201810 | H117: Active | I117: Science & Engineering | J117: Graduate | K117: Masters | O117: Sustainable Energy | P117: MSc in Sustainable Energy | Q117: moaalhail@hbku.edu.qa | R117: Qatar | S117: =974-55255335 -> -55254361 | V117: 29163403535
A118: 29236800102 | B118: 210004829 | C118: Omar | D118: Farook | E118: Alrawi | F118: 201820 | G118: 201710 | H118: Active | I118: Science & Engineering | J118: Graduate | K118: Masters | O118: Sustainable Energy | P118: MSc in Sustainable Energy | Q118: omalrawi@hbku.edu.qa | R118: Iraq | S118: 00974-55068925 | V118: 29236800102
A119: 29350400478 | B119: 210004971 | C119: Safae | E119: Sali | F119: 201820 | G119: 201710 | H119: Active | I119: Science & Engineering | J119: Graduate | K119: Masters | O119: Sustainable Energy | P119: MSc in Sustainable Energy | Q119: ssali@hbku.edu.qa | R119: Morocco | S119: 212-642981475 | V119: 29350400478
B120: 210007430 | C120: Shaikha | E120: Al-Nuaimi | F120: 201820 | G120: 201810 | H120: Active | I120: Science & Engineering | J120: Graduate | K120: Masters | O120: Sustainable Energy | P120: MSc in Sustainable Energy | Q120: Shaikaalnuaimi@hbku.edu.qa | R120: Qatar | S120: 974-55784545
A121: 29163400206 | B121: 210005028 | C121: Mohammed | D121: Ibrahim A S | E121: Al-Marzooqi | F121: 201820 | G121: 201710 | H121: Active | I121: Science & Engineering | J121: Graduate | K121: Master of Science | O121: Sustainable Environment | P121: MSc in Sustainable Environment | Q121: moalmarzooqi@hbku.edu.qa | R121: Qatar | S121: 00974-66841414 | T121: 00974-66841414 | V121: 29163400206
A122: 29163400623 | B122: 210007368 | C122: Fatima | D122: Essa | E122: Al-Thawadi | F122: 201820 | G122: 201810 | H122: Active | I122: Science & Engineering | J122: Graduate | K122: Master of Science | O122: Sustainable Environment | P122: MSc in Sustainable Environment | Q122: falthawadi@hbku.edu.qa | R122: Qatar | S122: 974-30069000 | V122: 29163400623
A123: 28463402786 | B123: 210003946 | C123: Hanadi | D123: Ghanim | E123: AL- Thani | F123: 201820 | G123: 201610 | H123: Active | I123: Science & Engineering | J123: Graduate | K123: Master of Science | O123: Sustainable Environment | P123: MSc in Sustainable Environment | Q123: hanalthani@hbku.edu.qa | V123: 28463402786
B124: Qatar | C124: 974-30053003
A125: 28958603079 | B125: 210003950 | C125: Saad | D125: Ghani Ullah | E125: Hafiz | F125: 201820 | G125: 201610 | H125: Active | I125: Science & Engineering | J125: Graduate | K125: Master of Science | O125: Sustainable Environment | P125: MSc in Sustainable Environment | Q125: SaaHafiz@hbku.edu.qa | R125: Pakistan | S125: -31320066 | V125: 28958603079
A126: 29058604486 | B126: 210004672 | C126: Usman | D126: Bin | E126: Shahid | F126: 201820 | G126: 201710 | H126: Active | I126: Science & Engineering | J126: Graduate | K126: Master of Science | O126: Sustainable Environment | P126: MSc in Sustainable Environment | Q126: ushahid@hbku.edu.qa | R126: Pakistan | S126: 92-3314236457 | T126: -33552175 | V126: 29058604486
A127: 29535600083 | B127: 210007317 | C127: Shifa | E127: Zuhara | F127: 201820 | G127: 201810 | H127: Active | I127: Science & Engineering | J127: Graduate | K127: Master of Science | O127: Sustainable Environment | P127: MSc in Sustainable Environment | Q127: szuhara@hbku.edu.qa | R127: India | S127: =974-5565 -> -4591 | V127: 29535600083
A128: 28204800054 | B128: 210005476 | C128: Haya | D128: Saleh | E128: Alyasi | F128: 201820 | G128: 201710 | H128: Active | I128: Science & Engineering | J128: Graduate | K128: Master of Science | O128: Sustainable Environment | P128: MSc in Sustainable Environment | Q128: haalyasi@hbku.edu.qa | R128: Qatar | S128: 974-55888982 | V128: 28204800054
A129: 28663400814 | B129: 210004511 | C129: Abdulrahman | E129: Al tamimi | F129: 201820 | G129: 201710 | H129: Active | I129: Science & Engineering | J129: Graduate | K129: Master of Science | O129: Sustainable Environment | P129: MSc in Sustainable Environment | Q129: abaltamimi@hbku.edu.qa | R129: Qatar | S129: =974-77870870 -> -77869896 | V129: 28663400814
A130: 28763402986 | B130: 210007852 | C130: Mohammed | D130: Ali | E130: Alghamdi | F130: 201820 | G130: 201810 | H130: Active | I130: Science & Engineering | J130: Graduate | K130: Master of Science | O130: Sustainable Environment | P130: MSc in Sustainable Environment | Q130: malghamdi@hbku.edu.qa | R130: Qatar | S130: 00974-55516187 | V130: 28763402986
A131: 28905006966 | B131: 210004673 | C131: Mehzabeen | E131: Mannan | F131: 201820 | G131: 201710 | H131: Active | I131: Science & Engineering | J131: Graduate | K131: Master of Science | O131: Sustainable Environment | P131: MSc in Sustainable Environment | Q131: mmannan@hbku.edu.qa | R131: Bangladesh | S131: =974-50110340 -> -50109366 | V131: 28905006966
A132: 28463401918 | B132: 210004039 | C132: Balqes | D132: Mohsin | E132: Saeed | F132: 201820 | G132: 201610 | H132: Active | I132: Science & Engineering | J132: Graduate | K132: Master of Science | O132: Sustainable Environment | P132: MSc in Sustainable Environment | Q132: BalSaeed@hbku.edu.qa | R132: Qatar | T132: 974-66662664 | V132: 28463401918
A133: 28963400577 | B133: 210005233 | C133: Reem | D133: Hassan | E133: ALNaama | F133: 201820 | G133: 201710 | H133: Active | I133: Science & Engineering | J133: Graduate | K133: Master of Science | O133: Sustainable Environment | P133: MSc in Sustainable Environment | Q133: ralnaama@hbku.edu.qa | R133: Qatar | S133: 00974-55325232 | V133: 28963400577
A134: 28763401324 | B134: 210004677 | C134: Khalid | D134: Saqr | E134: Alhajri | F134: 201820 | G134: 201710 | H134: Active | I134: Science & Engineering | J134: Graduate | K134: Master of Science | O134: Sustainable Environment | P134: MSc in Sustainable Environment | Q134: ksalalhajri@hbku.edu.qa | R134: Qatar | S134: 00974-55573370 | V134: 28763401324
A135: 28681800007 | B135: 210005166 | C135: Hend | D135: Kamal | E135: Gedawy | F135: 201820 | G135: 201710 | H135: Active | I135: Science & Engineering | J135: Doctorate | K135: PHD | O135: Computer Science & Engineering | P135: PhD Computer Science & Eng | Q135: hgedawy@hbku.edu.qa | R135: Egypt | S135: 00974-66506474 | V135: 28681800007
A136: 28899900457 | B136: 210004903 | C136: Kholoud | D136: Khalil | E136: Aldous | F136: 201820 | G136: 201710 | H136: Active | I136: Science & Engineering | J136: Doctorate | K136: PHD | O136: Computer Science & Engineering | P136: PhD Computer Science & Eng | Q136: kaldous@hbku.edu.qa | R136: Palestinian Territory, Occupie | S136: 00974-33637697 | V136: 28899900457
B137: 210008268 | C137: Simone | E137: Raponi | F137: 201820 | G137: 201820 | H137: Active | I137: Science & Engineering | J137: Doctorate | K137: PHD | O137: Computer Science & Engineering | P137: PhD Computer Science & Eng | Q137: sraponi@hbku.edu.qa | R137: Italy | S137: 393-0897242
A138: 26983400003 | B138: 210005333 | C138: Masoud | D138: Udi | E138: Mwinyi | F138: 201820 | G138: 201710 | H138: Active | I138: Science & Engineering | J138: Doctorate | K138: PHD | O138: Computer Science & Engineering | P138: PhD Computer Science & Eng | Q138: mmwinyi@hbku.edu.qa | R138: Tanzania, United Republic of | S138: 974-55816968 | V138: 26983400003
A139: 28958604524 | B139: 210004909 | C139: Atiq | D139: Ur | E139: Rehman | F139: 201820 | G139: 201710 | H139: Active | I139: Science & Engineering | J139: Doctorate | K139: PHD | O139: Computer Science & Engineering | P139: PhD Computer Science & Eng | Q139: arehman@hbku.edu.qa | R139: Pakistan | S139: 092-3328927445 | V139: 28958604524
A140: 27163400443 | B140: 210005056 | C140: Aref | E140: Al-Tamimi | F140: 201820 | G140: 201710 | H140: Active | I140: Science & Engineering | J140: Doctorate | K140: PHD | O140: Computer Science & Engineering | P140: PhD Computer Science & Eng | Q140: araltamimi@hbku.edu.qa | R140: Qatar | S140: 974-33244258 | V140: 27163400443
A141: 28299900124 | B141: 210006162 | C141: Mohnad | E141: Abunada | F141: 201820 | G141: 201810 | H141: Active | I141: Science & Engineering | J141: Doctorate | K141: PHD | O141: Computer Science & Engineering | P141: PhD Computer Science & Eng | Q141: moabunada@hbku.edu.qa | R141: Palestinian Territory, Occupie | S141: 00974-55720702 | V141: 28299900124
A142: 28638000114 | B142: 210007311 | C142: Maurantonio | E142: Caprolu | F142: 201820 | G142: 201810 | H142: Active | I142: Science & Engineering | J142: Doctorate | K142: PHD | O142: Computer Science & Engineering | P142: PhD Computer Science & Eng | Q142: mcaprolu@hbku.edu.qa | R142: Italy | S142: =39-3338946893 -> -3338946854 | V142: 28638000114
A143: 28163403217 | B143: 210005603 | C143: Ali | E143: Al-Rashid | F143: 201820 | G143: 201720 | H143: Active | I143: Science & Engineering | J143: Doctorate | K143: PHD | O143: Computer Science & Engineering | P143: PhD Computer Science & Eng | Q143: alialrashid@hbku.edu.qa | R143: Qatar | S143: 00974-55483311 | V143: 28163403217
A144: 28072400156 | B144: 210008043 | C144: Javier | E144: Hernandez Fernandez | F144: 201820 | G144: 201810 | H144: Active | I144: Science & Engineering | J144: Doctorate | K144: PHD | O144: Computer Science & Engineering | P144: PhD Computer Science & Eng | Q144: jfernandez@hbku.edu.qa | R144: Spain | S144: =974-70396819 -> -70395845 | V144: 28072400156
A145: 29040000572 | B145: 210008044 | C145: Lubna | E145: Eliyan | F145: 201820 | G145: 201810 | H145: Active | I145: Science & Engineering | J145: Doctorate | K145: PHD | O145: Computer Science & Engineering | P145: PhD Computer Science & Eng | Q145: leliyan@hbku.edu.qa | R145: Jordan | S145: 00974-6099506 | V145: 29040000572
A146: 28805030323 | B146: 210006054 | C146: Md Shafiqul | E146: Islam | F146: 201820 | G146: 201810 | H146: Active | I146: Science & Engineering | J146: Doctorate | K146: PHD | O146: Computer Science & Engineering | P146: PhD Computer Science & Eng | Q146: mislam@hbku.edu.qa | R146: Bangladesh | S146: =961-81787756 -> -81786795 | V146: 28805030323
A147: 28836400224 | B147: 210005797 | C147: Hamed | E147: Al-Shaibani | F147: 201820 | G147: 201810 | H147: Active | I147: Science & Engineering | J147: Doctorate | K147: PHD | O147: Computer Science & Engineering | P147: PhD Computer Science & Eng | Q147: halshaibani@hbku.edu.qa | R147: Qatar | S147: 00974-66788665 | V147: 28836400224
A148: 28915600961 | B148: 210005991 | C148: Qiang | E148: Xiao | F148: 201820 | G148: 201810 | H148: Active | I148: Science & Engineering | J148: Doctorate | K148: PHD | O148: Computer Science & Engineering | P148: PhD Computer Science & Eng | Q148: xqiang@hbku.edu.qa | R148: China | S148: 86-18986268971 | V148: 28915600961
A149: 29563403598 | B149: 210007540 | C149: Noor | D149: Hussain | E149: Al-Ansari | F149: 201820 | G149: 201810 | H149: Active | I149: Science & Engineering | J149: Doctorate | K149: PHD | O149: Computer Science & Engineering | P149: PhD Computer Science & Eng | Q149: nhalansari@hbku.edu.qa | R149: Qatar | S149: 974-50022881 | V149: 29563403598
B150: 210007562 | C150: Muhammad | E150: Ijaz | F150: 201820 | G150: 201810 | H150: Active | I150: Science & Engineering | J150: Doctorate | K150: PHD | O150: Computer Science & Engineering | P150: PhD Computer Science & Eng | Q150: mijaz@hbku.edu.qa | R150: Pakistan | S150: - | T150: -
A151: 28099900202 | B151: 210004908 | C151: Aboubakr | D151: Ahmed | E151: Aqle | F151: 201820 | G151: 201710 | H151: Active | I151: Science & Engineering | J151: Doctorate | K151: PHD | O151: Computer Science & Engineering | P151: PhD Computer Science & Eng | Q151: aaqle@hbku.edu.qa | R151: Palestinian Territory, Occupie | S151: 974-55246182 | V151: 28099900202
A152: 28636800050 | B152: 210005225 | C152: AlHasan | D152: Adnan | E152: AlSammarraie | F152: 201820 | G152: 201710 | H152: Active | I152: Science & Engineering | J152: Doctorate | K152: PHD | O152: Computer Science & Engineering | P152: PhD Computer Science & Eng | Q152: aalsammarraie@hbku.edu.qa | R152: Bahrain | S152: 974-55221367 | V152: 28636800050
A153: 28863404386 | B153: 210007950 | C153: Haya | D153: A | E153: Al-Thani | F153: 201820 | G153: 201810 | H153: Active | I153: Science & Engineering | J153: Doctorate | K153: PHD | O153: Computer Science & Engineering | P153: PhD Computer Science & Eng | Q153: hayaalthani@hbku.edu.qa | R153: Qatar | S153: 974-66770202 | V153: 28863404386
A154: 27651200016 | B154: 210005251 | C154: Sana | D154: Faiyz | E154: Alfarsi | F154: 201820 | G154: 201710 | H154: Active | I154: Science & Engineering | J154: Doctorate | K154: PHD | O154: Computer Science & Engineering | P154: PhD Computer Science & Eng | Q154: saalfarsi@hbku.edu.qa | R154: Qatar | S154: 00974-33886534 | V154: 27651200016
A155: 29001200111 | B155: 210005288 | C155: Elmahdi Abderrahim | E155: Bentafat | F155: 201820 | G155: 201710 | H155: Active | I155: Science & Engineering | J155: Doctorate | K155: PHD | O155: Computer Science & Engineering | P155: PhD Computer Science & Eng | Q155: ebentafat@hbku.edu.qa | R155: Algeria | S155: =974-50423243 -> -50422269 | V155: 29001200111
A156: 29363405028 | B156: 210007444 | C156: Danya | D156: Ahmed | E156: Saifaldeen | F156: 201820 | G156: 201810 | H156: Active | I156: Science & Engineering | J156: Doctorate | K156: PHD | O156: Computer Science & Engineering | P156: PhD Computer Science & Eng | Q156: dsaifaldeen@hbku.edu.qa | R156: Qatar | S156: 00974-77751771 | V156: 29363405028
A157: 28256600748 | B157: 210004884 | C157: Bilikis | D157: Oluwatoyin | E157: Banire | F157: 201820 | G157: 201710 | H157: Active | I157: Science & Engineering | J157: Doctorate | K157: PHD | O157: Computer Science & Engineering | P157: PhD Computer Science & Eng | Q157: bbanire@hbku.edu.qa | R157: Nigeria | S157: 971-528424478 | T157: -50211789 | V157: 28256600748
A158: 27699900029 | B158: 210005055 | C158: Sami | E158: Elzeiny | F158: 201820 | G158: 201710 | H158: Active | I158: Science & Engineering | J158: Doctorate | K158: PHD | O158: Computer Science & Engineering | P158: PhD Computer Science & Eng | Q158: selzeiny@hbku.edu.qa | R158: Palestinian Territory, Occupie | S158: 00974-55801084 | V158: 27699900029
A159: 29163402572 | B159: 210005062 | C159: Jaber | D159: Sadiqe | E159: Al-khori | F159: 201820 | G159: 201710 | H159: Active | I159: Science & Engineering | J159: Doctorate | K159: PHD | O159: Computer Science & Engineering | P159: PhD Computer Science & Eng | Q159: jalkhori@hbku.edu.qa | R159: Qatar | S159: 974-55591166 | V159: 29163402572
A160: 28763400971 | B160: 210007673 | C160: Ali | D160: Fahad | E160: Al-Qahtani | F160: 201820 | G160: 201810 | H160: Active | I160: Science & Engineering | J160: Doctorate | K160: PHD | O160: Computer Science & Engineering | P160: PhD Computer Science & Eng | Q160: afalqahtani@hbku.edu.qa | R160: Qatar | S160: =974-66680273 -> -66679299 | V160: 28763400971
A161: 29463402084 | B161: 210005294 | C161: Alkhzami | D161: Salman A H | E161: Al-Harami | F161: 201820 | G161: 201710 | H161: Active | I161: Science & Engineering | J161: Doctorate | K161: PHD | O161: Computer Science & Engineering | P161: PhD Computer Science & Eng | Q161: aalharami@hbku.edu.qa | R161: Qatar | S161: 00974-66002722 | V161: 29463402084
A162: 28963404379 | B162: 210003924 | C162: Hanadi | D162: Mohammed | E162: Al-Mohsin | F162: 201820 | G162: 201610 | H162: Active | I162: Science & Engineering | J162: Doctorate | K162: PHD | O162: Computer Science & Engineering | P162: PhD Computer Science & Eng | Q162: HanAlMohsin@hbku.edu.qa | R162: Qatar | T162: -33232289 | V162: 28963404379
A163: 28349900003 | B163: 210005898 | C163: Edin | E163: Salkovic | F163: 201820 | G163: 201810 | H163: Active | I163: Science & Engineering | J163: Doctorate | K163: PHD | O163: Computer Science & Engineering | P163: PhD Computer Science & Eng | Q163: esalkovic@hbku.edu.qa | R163: Yugoslavia | S163: 382-69823408 | V163: 28349900003
A164: 28963400636 | B164: 210005289 | C164: Khalid | D164: Mohammed | E164: Al-Kubaisi | F164: 201820 | G164: 201710 | H164: Active | I164: Science & Engineering | J164: Doctorate | K164: PHD | O164: Computer Science & Engineering | P164: PhD Computer Science & Eng | Q164: kmalkubaisi@hbku.edu.qa | R164: Qatar | S164: 974-77766640 | V164: 28963400636
A165: 28143400039 | B165: 210005228 | C165: Abdurrahman | E165: Elbasir | F165: 201820 | G165: 201710 | H165: Active | I165: Science & Engineering | J165: Doctorate | K165: PHD | O165: Computer Science & Engineering | P165: PhD Computer Science & Eng | Q165: aelbasir@hbku.edu.qa | R165: Liberia | S165: -50246199 | T165: 218-924299007 | V165: 28143400039
A166: 28399900515 | B166: 210005378 | C166: Ghadeer | D166: Said | E166: AbuOda | F166: 201820 | G166: 201710 | H166: Active | I166: Science & Engineering | J166: Doctorate | K166: PHD | O166: Computer Science & Engineering | P166: PhD Computer Science & Eng | Q166: gabuoda@hbku.edu.qa | R166: Palestinian Territory, Occupie | S166: 974-50592904 | T166: 970-599628633 | V166: 28399900515
B167: 210005390 | C167: Kamela | D167: Ali | E167: Al-Mannai | F167: 201820 | G167: 201710 | H167: Active | I167: Science & Engineering | J167: Doctorate | K167: PHD | O167: Computer Science & Engineering | P167: PhD Computer Science & Eng | Q167: kaalmannai@hbku.edu.qa | R167: Qatar | S167: 00974-66796688
A168: 29115600557 | B168: 210005563 | C168: Tsz Ngai | E168: Lin | F168: 201820 | G168: 201720 | H168: Active | I168: Science & Engineering | J168: Doctorate | K168: PHD | O168: Computer Science & Engineering | P168: PhD Computer Science & Eng | Q168: tngai@hbku.edu.qa | R168: China | S168: 852-90807103 | V168: 29115600557
A169: 28963403594 | B169: 210005379 | C169: Hind | D169: Ali | E169: Almerekhi | F169: 201820 | G169: 201710 | H169: Active | I169: Science & Engineering | J169: Doctorate | K169: PHD | O169: Computer Science & Engineering | P169: PhD Computer Science & Eng | Q169: hialmerekhi@hbku.edu.qa | R169: Qatar | S169: 974-66586510 | V169: 28963403594
A170: 27635644330 | B170: 210008026 | C170: Sarmadia | E170: Ashraf | F170: 201820 | G170: 201810 | H170: Active | I170: Science & Engineering | J170: Doctorate | K170: PHD | O170: Genomic and Precision Medicine | P170: PhD Genomic&Precision Medicine | Q170: saashraf@hbku.edu.qa | R170: India | S170: 91-7006857202 | V170: 27635644330
A171: 29073601478 | B171: 210008027 | C171: Amal | D171: Elfatih | E171: abdelmageed | F171: 201820 | G171: 201810 | H171: Active | I171: Science & Engineering | J171: Doctorate | K171: PHD | O171: Genomic and Precision Medicine | P171: PhD Genomic&Precision Medicine | Q171: aabdelmageed@hbku.edu.qa | R171: Sudan | S171: 974-50595802 | V171: 29073601478
A172: 28776002527 | B172: 210007507 | C172: Iman | E172: Hawari | F172: 201820 | G172: 201810 | H172: Active | I172: Science & Engineering | J172: Doctorate | K172: PHD | O172: Genomic and Precision Medicine | P172: PhD Genomic&Precision Medicine | Q172: ihawari@hbku.edu.qa | R172: Syrian Arab Republic | S172: 00974-33013688 | V172: 28776002527
B173: 210008183 | C173: Kholoud | E173: Bastaki | F173: 201820 | G173: 201810 | H173: Active | I173: Science & Engineering | J173: Doctorate | K173: PHD | O173: Genomic and Precision Medicine | P173: PhD Genomic&Precision Medicine | Q173: khbastaki@hbku.edu.qa | R173: Qatar | S173: 00974-66000781
A174: 28781809491 | B174: 210007495 | C174: Eman | D174: Wehedy Elsayed | E174: Abdelsalam | F174: 201820 | G174: 201810 | H174: Active | I174: Science & Engineering | J174: Doctorate | K174: PHD | O174: Genomic and Precision Medicine | P174: PhD Genomic&Precision Medicine | Q174: eabdelsalam@hbku.edu.qa | R174: Egypt | S174: 0094-30369272 | V174: 28781809491
A175: 29042200042 | B175: 210008163 | C175: Maha | D175: Hussin | E175: Hassan | F175: 201820 | G175: 201810 | H175: Active | I175: Science & Engineering | J175: Doctorate | K175: PHD | O175: Genomic and Precision Medicine | P175: PhD Genomic&Precision Medicine | Q175: mhelakoum@hbku.edu.qa | R175: Lebanon | S175: 974-66186742 | V175: 29042200042
A176: 29540400002 | B176: 210004499 | C176: Umm-Kulthum | D176: Ismail | E176: Umlai | F176: 201820 | G176: 201810 | H176: Active | I176: Science & Engineering | J176: Doctorate | K176: PHD | O176: Genomic and Precision Medicine | P176: PhD Genomic&Precision Medicine | Q176: uumlai@hbku.edu.qa | R176: Kenya | S176: =974-55197741 -> -55196767 | V176: 29540400002
A177: 28673602007 | B177: 210008063 | C177: Ghada | D177: Yousif Mohammed | E177: Yousif | F177: 201820 | G177: 201810 | H177: Active | I177: Science & Engineering | J177: Doctorate | K177: PHD | O177: Genomic and Precision Medicine | P177: PhD Genomic&Precision Medicine | Q177: gyousif@hbku.edu.qa | R177: Sudan | S177: 00249-900988031 | V177: 28673602007
A178: 28640000341 | B178: 210006152 | C178: Yasmin | D178: Walid | E178: Abu Aqel | F178: 201820 | G178: 201810 | H178: Active | I178: Science & Engineering | J178: Doctorate | K178: PHD | O178: Genomic and Precision Medicine | P178: PhD Genomic&Precision Medicine | Q178: yaqel@hbku.edu.qa | R178: Jordan | S178: 00974-55386405 | V178: 28640000341
A179: 28788600425 | B179: 210007497 | C179: Wafa | D179: Abdulsalam Abdulrazzaq | E179: al-Ameri | F179: 201820 | G179: 201810 | H179: Active | I179: Science & Engineering | J179: Doctorate | K179: PHD | O179: Genomic and Precision Medicine | P179: PhD Genomic&Precision Medicine | Q179: walameri@hbku.edu.qa | R179: Yemen | S179: -33879779 | V179: 28788600425
B180: 210008078 | C180: KRIPA | D180: SUBHADRA | E180: KEYAN | F180: 201820 | G180: 201810 | H180: Active | I180: Science & Engineering | J180: Doctorate | K180: PHD | O180: Genomic and Precision Medicine | P180: PhD Genomic&Precision Medicine | Q180: kkeyan@hbku.edu.qa | R180: India | S180: =91-7034432970 -> -7034432879
A181: 29140000269 | B181: 210007651 | C181: Reem | D181: Subhi Mohammad | E181: Al Disi | F181: 201820 | G181: 201810 | H181: Active | I181: Science & Engineering | J181: Doctorate | K181: PHD | O181: Genomic and Precision Medicine | P181: PhD Genomic&Precision Medicine | Q181: raldisi@hbku.edu.qa | R181: Jordan | S181: =974-55836928 -> -55835954 | V181: 29140000269
A182: 28735600078 | B182: 210008076 | C182: Zeenath | E182: Safira | F182: 201820 | G182: 201810 | H182: Active | I182: Science & Engineering | J182: Doctorate | K182: PHD | O182: Genomic and Precision Medicine | P182: PhD Genomic&Precision Medicine | Q182: zsafira@hbku.edu.qa | R182: India | S182: 974-44319339 | V182: 28735600078
A183: 28476001451 | B183: 210004371 | C183: Abdulghani | E183: Khilan | F183: 201820 | G183: 201710 | H183: Active | I183: Science & Engineering | J183: Doctorate | K183: PHD | O183: Biomedical Biological and Sc | P183: PhD in Biomed & Biol sciences | Q183: akhilan@hbku.edu.qa | R183: Syrian Arab Republic | S183: 00966-509750963 | V183: 28476001451
A184: 29163400793 | B184: 210003918 | C184: Aisha | D184: MOHD | E184: Al-Qahtani | F184: 201820 | G184: 201810 | H184: Active | I184: Science & Engineering | J184: Doctorate | K184: PHD | O184: Biomedical Biological and Sc | P184: PhD in Biomed & Biol sciences | Q184: AisAlQahtani@hbku.edu.qa | R184: Qatar | S184: 974-66735554 | V184: 29163400793
A185: 28350400006 | B185: 210008421 | C185: Khaoula | E185: Errafii | F185: 201820 | G185: 201820 | H185: Active | I185: Science & Engineering | J185: Doctorate | K185: PHD | O185: Biomedical Biological and Sc | P185: PhD in Biomed & Biol sciences | Q185: kherrafii@hbku.edu.qa | R185: Morocco | S185: =974-33840364 -> -33839390 | V185: 28350400006
A186: 29299900437 | B186: 210004046 | C186: Sanaa | D186: Ali | E186: Sharari | F186: 201820 | G186: 201810 | H186: Active | I186: Science & Engineering | J186: Doctorate | K186: PHD | O186: Biomedical Biological and Sc | P186: PhD in Biomed & Biol sciences | Q186: SanSharari@hbku.edu.qa | R186: Palestinian Territory, Occupie | S186: 974-74746003 | V186: 29299900437
A187: 28463402655 | B187: 210003919 | C187: Noor | D187: Ali | E187: Al-Maslamani | F187: 201820 | G187: 201610 | H187: Active | I187: Science & Engineering | J187: Doctorate | K187: PHD | O187: Biomedical Biological and Sc | P187: PhD in Biomed & Biol sciences | Q187: NooAlMaslamani@hbku.edu.qa | R187: Qatar | V187: 28463402655
A188: 28382600193 | B188: 210003922 | C188: Ahmad | E188: Najjar | F188: 201820 | G188: 201610 | H188: Active | I188: Science & Engineering | J188: Doctorate | K188: PHD | O188: Biomedical Biological and Sc | P188: PhD in Biomed & Biol sciences | Q188: AhmNajjar@hbku.edu.qa | R188: United Kingdom | T188: 00974-66070669 | V188: 28382600193
A189: 27512400214 | B189: 210003934 | C189: Sahar | D189: Isa | E189: Daas | F189: 201820 | G189: 201610 | H189: Active | I189: Science & Engineering | J189: Doctorate | K189: PHD | O189: Biomedical Biological and Sc | P189: PhD in Biomed & Biol sciences | Q189: SahDaas@hbku.edu.qa | R189: Canada | V189: 27512400214
A190: 28982600266 | B190: 210007237 | C190: Hibah | E190: Shaath | F190: 201820 | G190: 201810 | H190: Active | I190: Science & Engineering | J190: Doctorate | K190: PHD | O190: Biomedical Biological and Sc | P190: PhD in Biomed & Biol sciences | Q190: hishaath@hbku.edu.qa | R190: England | S190: 00974-33646723 | V190: 28982600266
A191: 28363403040 | B191: 210003992 | C191: Ghaneya | D191: Mesaad | E191: Al-Khadairi | F191: 201820 | G191: 201810 | H191: Active | I191: Science & Engineering | J191: Doctorate | K191: PHD | O191: Biomedical Biological and Sc | P191: PhD in Biomed & Biol sciences | Q191: GhaAlKhadairi@hbku.edu.qa | R191: Qatar | S191: 00974-70781929 | V191: 28363403040
A192: 29440000251 | B192: 210003920 | C192: Mounira | D192: Walid Jamil | E192: Fayyad | F192: 201820 | G192: 201810 | H192: Active | I192: Science & Engineering | J192: Doctorate | K192: PHD | O192: Biomedical Biological and Sc | P192: PhD in Biomed & Biol sciences | Q192: MunFayyad@hbku.edu.qa | R192: Jordan | S192: 974-3378 | T192: -33782129 | V192: 29440000251
A193: 28935629152 | B193: 210004492 | C193: Drishya | D193: Maria | E193: George | F193: 201820 | G193: 201710 | H193: Active | I193: Science & Engineering | J193: Doctorate | K193: PHD | O193: Biomedical Biological and Sc | P193: PhD in Biomed & Biol sciences | Q193: dgeorge@hbku.edu.qa | R193: India | S193: 00974-66480615 | V193: 28935629152
A194: 28670600001 | B194: 210003927 | C194: Asha | D194: Abdelsalam Ali | E194: Elmi | F194: 201820 | G194: 201610 | H194: Active | I194: Science & Engineering | J194: Doctorate | K194: PHD | O194: Biomedical Biological and Sc | P194: PhD in Biomed & Biol sciences | Q194: AshElmi@hbku.edu.qa | R194: Somalia | V194: 28670600001
A195: 28540000086 | B195: 210004571 | C195: Arwa | D195: A.H. | E195: Aldaalis | F195: 201820 | G195: 201710 | H195: Active | I195: Science & Engineering | J195: Doctorate | K195: PHD | O195: Biomedical Biological and Sc | P195: PhD in Biomed & Biol sciences | Q195: araldaalis@hbku.edu.qa | R195: Palestinian Territory, Occupie | S195: 974-33194533 | V195: 28540000086
A196: 28163401858 | B196: 210003929 | C196: Bakhita | D196: Rashid | E196: Meqbel | F196: 201820 | G196: 201610 | H196: Active | I196: Science & Engineering | J196: Doctorate | K196: PHD | O196: Biomedical Biological and Sc | P196: PhD in Biomed & Biol sciences | Q196: BakMeqbel@hbku.edu.qa | R196: Qatar | T196: -55906600 | V196: 28163401858
A197: 28426200001 | B197: 210004358 | C197: Idil | E197: Ahmed | F197: 201820 | G197: 201710 | H197: Active | I197: Science & Engineering | J197: Doctorate | K197: PHD | O197: Biomedical Biological and Sc | P197: PhD in Biomed & Biol sciences | Q197: iahmed@hbku.edu.qa | R197: Djibouti | S197: 00974-33968898 | V197: 28426200001
A198: 28636400054 | B198: 210004614 | C198: Ayeshah | D198: Yaghoub | E198: Madani | F198: 201820 | G198: 201710 | H198: Active | I198: Science & Engineering | J198: Doctorate | K198: PHD | O198: Biomedical Biological and Sc | P198: PhD in Biomed & Biol sciences | Q198: amadani@hbku.edu.qa | R198: Iran (Islamic Republic Of) | S198: =974-55425954 -> -55424980 | V198: 28636400054
A199: 28235654617 | B199: 210005791 | C199: TAHIR | E199: ABDULREHMAN | F199: 201820 | G199: 201720 | H199: Active | I199: Science & Engineering | J199: Doctorate | K199: PHD | O199: Biomedical Biological and Sc | P199: PhD in Biomed & Biol sciences | Q199: tabdulrahman@hbku.edu.qa | R199: India | S199: 00974-66419568 | V199: 28235654617
A200: 29040000311 | B200: 210005086 | C200: Ayat | D200: Samir Mah'd | E200: Hammad | F200: 201820 | G200: 201710 | H200: Active | I200: Science & Engineering | J200: Doctorate | K200: PHD | O200: Biomedical Biological and Sc | P200: PhD in Biomed & Biol sciences | Q200: ahammad@hbku.edu.qa | R200: Jordan | S200: 974-55151965 | V200: 29040000311
... 59 more rows

Sheet Stipend Pmt Nov-19
E2: Stipend Payment for Month/ YEAR
A6: Ref.
A7: To: Accounts Payable Manager / QF-Finance
A8: CC: Executive Director / QF-Finance
A9: CC: Chief Financial Officer / HBKU-Finance
A10: Date:
A12: Please arrange for the payment of QRXXXX/- stipend to the following students receiving scholarships via bank transfer to their respective below bank accounts. The HBKU account to be charged is HU.BW.85A.724009.S0XX.HBKU.0000.00
A14: # | B14: QID Student Name | C14: Banner Student Name | D14: Banner ID | E14: Qatar ID | F14: Admit Semester | G14: Program | H14: Amount | I14: IBAN | J14: Bank Name | K14: Swift Code | L14: Status Check | M14: Further Notes | N14: OS Fees | O14: Tui/Housing
A15: 1 | N15: =IFERROR(VLOOKUP(Table434[[#This Row],[Banner ID]],'[1]31072019 Ageing'!$D$29:$E$244,2,FALSE),0) -> 0 | O15: =IFERROR(VLOOKUP(Table434[[#This Row],[Banner ID]],'[1]31072019 Ageing'!$D$29:$L$244,9,FALSE),0) -> 0
N16: =IFERROR(VLOOKUP(Table434[[#This Row],[Banner ID]],'[1]31072019 Ageing'!$D$29:$E$244,2,FALSE),0) -> 0 | O16: =IFERROR(VLOOKUP(Table434[[#This Row],[Banner ID]],'[1]31072019 Ageing'!$D$29:$L$244,9,FALSE),0) -> 0
N17: =IFERROR(VLOOKUP(Table434[[#This Row],[Banner ID]],'[1]31072019 Ageing'!$D$29:$E$244,2,FALSE),0) -> 0 | O17: =IFERROR(VLOOKUP(Table434[[#This Row],[Banner ID]],'[1]31072019 Ageing'!$D$29:$L$244,9,FALSE),0) -> 0
N18: =IFERROR(VLOOKUP(Table434[[#This Row],[Banner ID]],'[1]31072019 Ageing'!$D$29:$E$244,2,FALSE),0) -> 0 | O18: =IFERROR(VLOOKUP(Table434[[#This Row],[Banner ID]],'[1]31072019 Ageing'!$D$29:$L$244,9,FALSE),0) -> 0
N19: =IFERROR(VLOOKUP(Table434[[#This Row],[Banner ID]],'[1]31072019 Ageing'!$D$29:$E$244,2,FALSE),0) -> 0 | O19: =IFERROR(VLOOKUP(Table434[[#This Row],[Banner ID]],'[1]31072019 Ageing'!$D$29:$L$244,9,FALSE),0) -> 0
N20: =IFERROR(VLOOKUP(Table434[[#This Row],[Banner ID]],'[1]31072019 Ageing'!$D$29:$E$244,2,FALSE),0) -> 0 | O20: =IFERROR(VLOOKUP(Table434[[#This Row],[Banner ID]],'[1]31072019 Ageing'!$D$29:$L$244,9,FALSE),0) -> 0
N21: =IFERROR(VLOOKUP(Table434[[#This Row],[Banner ID]],'[1]31072019 Ageing'!$D$29:$E$244,2,FALSE),0) -> 0 | O21: =IFERROR(VLOOKUP(Table434[[#This Row],[Banner ID]],'[1]31072019 Ageing'!$D$29:$L$244,9,FALSE),0) -> 0
N22: =IFERROR(VLOOKUP(Table434[[#This Row],[Banner ID]],'[1]31072019 Ageing'!$D$29:$E$244,2,FALSE),0) -> 0 | O22: =IFERROR(VLOOKUP(Table434[[#This Row],[Banner ID]],'[1]31072019 Ageing'!$D$29:$L$244,9,FALSE),0) -> 0
N23: =IFERROR(VLOOKUP(Table434[[#This Row],[Banner ID]],'[1]31072019 Ageing'!$D$29:$E$244,2,FALSE),0) -> 0 | O23: =IFERROR(VLOOKUP(Table434[[#This Row],[Banner ID]],'[1]31072019 Ageing'!$D$29:$L$244,9,FALSE),0) -> 0
N24: =IFERROR(VLOOKUP(Table434[[#This Row],[Banner ID]],'[1]31072019 Ageing'!$D$29:$E$244,2,FALSE),0) -> 0 | O24: =IFERROR(VLOOKUP(Table434[[#This Row],[Banner ID]],'[1]31072019 Ageing'!$D$29:$L$244,9,FALSE),0) -> 0
N25: =IFERROR(VLOOKUP(Table434[[#This Row],[Banner ID]],'[1]31072019 Ageing'!$D$29:$E$244,2,FALSE),0) -> 0 | O25: =IFERROR(VLOOKUP(Table434[[#This Row],[Banner ID]],'[1]31072019 Ageing'!$D$29:$L$244,9,FALSE),0) -> 0
N26: =IFERROR(VLOOKUP(Table434[[#This Row],[Banner ID]],'[1]31072019 Ageing'!$D$29:$E$244,2,FALSE),0) -> 0 | O26: =IFERROR(VLOOKUP(Table434[[#This Row],[Banner ID]],'[1]31072019 Ageing'!$D$29:$L$244,9,FALSE),0) -> 0
N27: =IFERROR(VLOOKUP(Table434[[#This Row],[Banner ID]],'[1]31072019 Ageing'!$D$29:$E$244,2,FALSE),0) -> 0 | O27: =IFERROR(VLOOKUP(Table434[[#This Row],[Banner ID]],'[1]31072019 Ageing'!$D$29:$L$244,9,FALSE),0) -> 0
N28: =IFERROR(VLOOKUP(Table434[[#This Row],[Banner ID]],'[1]31072019 Ageing'!$D$29:$E$244,2,FALSE),0) -> 0 | O28: =IFERROR(VLOOKUP(Table434[[#This Row],[Banner ID]],'[1]31072019 Ageing'!$D$29:$L$244,9,FALSE),0) -> 0
N29: =IFERROR(VLOOKUP(Table434[[#This Row],[Banner ID]],'[1]31072019 Ageing'!$D$29:$E$244,2,FALSE),0) -> 0 | O29: =IFERROR(VLOOKUP(Table434[[#This Row],[Banner ID]],'[1]31072019 Ageing'!$D$29:$L$244,9,FALSE),0) -> 0
N30: =IFERROR(VLOOKUP(Table434[[#This Row],[Banner ID]],'[1]31072019 Ageing'!$D$29:$E$244,2,FALSE),0) -> 0 | O30: =IFERROR(VLOOKUP(Table434[[#This Row],[Banner ID]],'[1]31072019 Ageing'!$D$29:$L$244,9,FALSE),0) -> 0
N31: =IFERROR(VLOOKUP(Table434[[#This Row],[Banner ID]],'[1]31072019 Ageing'!$D$29:$E$244,2,FALSE),0) -> 0 | O31: =IFERROR(VLOOKUP(Table434[[#This Row],[Banner ID]],'[1]31072019 Ageing'!$D$29:$L$244,9,FALSE),0) -> 0
N32: =IFERROR(VLOOKUP(Table434[[#This Row],[Banner ID]],'[1]31072019 Ageing'!$D$29:$E$244,2,FALSE),0) -> 0 | O32: =IFERROR(VLOOKUP(Table434[[#This Row],[Banner ID]],'[1]31072019 Ageing'!$D$29:$L$244,9,FALSE),0) -> 0
N33: =IFERROR(VLOOKUP(Table434[[#This Row],[Banner ID]],'[1]31072019 Ageing'!$D$29:$E$244,2,FALSE),0) -> 0 | O33: =IFERROR(VLOOKUP(Table434[[#This Row],[Banner ID]],'[1]31072019 Ageing'!$D$29:$L$244,9,FALSE),0) -> 0
G35: QR | H35: =SUM(H15:H34) -> 0 | K35: [Signed by:] Dr. XXXX (Dean of " student entity-HBKU)
